Workbook

Sheet Maquette
A2: VARIABLES A SAISIR
A3: Année | B3: 2022
A4: Budget | B4: rectificatif
A5: N° budget | B5: n° 1

Sheet récap
B1: EPSCP - synthèse des documents budgétaires
B4: Intitulé du tableau | C4: Périmètre | D4: Soumission au CA | E4: Contrôles entre tableaux
A6: 1 | B6: Tableau des emplois | C6: Budget de l'établissement | D6: Pour vote | E6: =IF('1-tab emplois_ETAB'!F20<>"","Problème dotation < emplois ETAB","OK") -> OK
A7: 2 | B7: Tableau des autorisations budgétaires | C7: Budget de l'établissement (3) = (1)+(2) | D7: Pour vote. Pour les SIE, le vote relève du CA de l'établissement de rattachement | E7: =IF((IF(AND('2-tab_aut_budg_ETAB'!E32="",'2-tab_aut_budg_ETAB'!F32="",'2-tab_aut_budg_ETAB'!E33="",'2-tab_aut_budg_ETAB'!F33="",'2-tab_aut_budg_ETAB'!E34="",'2-tab_aut_budg_ETAB'!F34="",'2-tab_aut_budg_ETAB'!N32="",'2-tab_aut_budg_ETAB'!O32="",'2-tab_aut_budg_ETAB'!N33="",'2-tab_aut_budg_ETAB'!O33="",'2-tab_aut_budg_ETAB'!N34="",'2-tab_aut_budg_ETAB'!O34="",'2-tab_aut_budg_ETAB'!N35="",'2-tab_aut_budg_ETAB'!O35="",'2-tab_aut_budg_ETAB'!L32=""),"","Problème(s) avec tableau 3 ETAB")&" "&IF('2-tab_aut_budg_ETAB'!L33="","","Problème(s) avec tableau 4")&" "&IF(AND('2-tab_aut_budg_ETAB'!G32="",'2-tab_aut_budg_ETAB'!G33="",'2-tab_aut_budg_ETAB'!G34="",'2-tab_aut_budg_ETAB'!G35="",'2-tab_aut_budg_ETAB'!H32="",'2-tab_aut_budg_ETAB'!H33="",'2-tab_aut_budg_ETAB'!H34="",'2-tab_aut_budg_ETAB'!H35="",'6-tab CR_TF_ETAB'!N46=""),"","Problème(s) avec tableau 6 ETAB")&" "&IF(AND('2-tab_aut_budg_ETAB'!I32="",'2-tab_aut_budg_ETAB'!I33="",'2-tab_aut_budg_ETAB'!I34="",'2-tab_aut_budg_ETAB'!P32="",'2-tab_aut_budg_ETAB'!P33="",'2-tab_aut_budg_ETAB'!P34="",'2-tab_aut_budg_ETAB'!P35="",'2-tab_aut_budg_ETAB'!P36="",'2-tab_aut_budg_ETAB'!Q32="",'2-tab_aut_budg_ETAB'!Q33="",'2-tab_aut_budg_ETAB'!Q34=""),"","Problème(s) avec tableau 7")&" "&IF(AND('2-tab_aut_budg_ETAB'!R32="",'2-tab_aut_budg_ETAB'!R33="",'2-tab_aut_budg_ETAB'!R34=""),"","Problème(s) avec tableau 8 ETAB"))=" ","OK",(IF(AND('2-tab_aut_budg_ETAB'!E32="",'2-tab_aut_budg_ETAB'!F32="",'2-tab_aut_budg_ETAB'!E33="",'2-tab_aut_budg_ETAB'!F33="",'2-tab_aut_budg_ETAB'!E34="",'2-tab_aut_budg_ETAB'!F34="",'2-tab_aut_budg_ETAB'!N32="",'2-tab_aut_budg_ETAB'!O32="",'2-tab_aut_budg_ETAB'!N33="",'2-tab_aut_budg_ETAB'!O33="",'2-tab_aut_budg_ETAB'!N34="",'2-tab_aut_budg_ETAB'!O34="",'2-tab_aut_budg_ETAB'!N35="",'2-tab_aut_budg_ETAB'!O35="",'2-tab_aut_budg_ETAB'!L32=""),"","Problème(s) avec tableau 3 ETAB")&" "&IF('2-tab_aut_budg_ETAB'!L33="","","Problème(s) avec tableau 4")&" "&IF(AND('2-tab_aut_budg_ETAB'!G32="",'2-tab_aut_budg_ETAB'!G33="",'2-tab_aut_budg_ETAB'!G34="",'2-tab_aut_budg_ETAB'!G35="",'2-tab_aut_budg_ETAB'!H32="",'2-tab_aut_budg_ETAB'!H33="",'2-tab_aut_budg_ETAB'!H34="",'2-tab_aut_budg_ETAB'!H35="",'6-tab CR_TF_ETAB'!N46=""),"","Problème(s) avec tableau 6 ETAB")&" "&IF(AND('2-tab_aut_budg_ETAB'!I32="",'2-tab_aut_budg_ETAB'!I33="",'2-tab_aut_budg_ETAB'!I34="",'2-tab_aut_budg_ETAB'!P32="",'2-tab_aut_budg_ETAB'!P33="",'2-tab_aut_budg_ETAB'!P34="",'2-tab_aut_budg_ETAB'!P35="",'2-tab_aut_budg_ETAB'!P36="",'2-tab_aut_budg_ETAB'!Q32="",'2-tab_aut_budg_ETAB'!Q33="",'2-tab_aut_budg_ETAB'!Q34=""),"","Problème(s) avec tableau 7")&" "&IF(AND('2-tab_aut_budg_ETAB'!R32="",'2-tab_aut_budg_ETAB'!R33="",'2-tab_aut_budg_ETAB'!R34=""),"","Problème(s) avec tableau 8 ETAB"))) -> OK
C8: Budget établissement principal (1) | E8: =IF((IF(AND('2-tab_aut_budg_PRINC'!E32="",'2-tab_aut_budg_PRINC'!F32="",'2-tab_aut_budg_PRINC'!E33="",'2-tab_aut_budg_PRINC'!F33="",'2-tab_aut_budg_PRINC'!E34="",'2-tab_aut_budg_PRINC'!F34="",'2-tab_aut_budg_PRINC'!N32="",'2-tab_aut_budg_PRINC'!O32="",'2-tab_aut_budg_PRINC'!N33="",'2-tab_aut_budg_PRINC'!O33="",'2-tab_aut_budg_PRINC'!N34="",'2-tab_aut_budg_PRINC'!O34="",'2-tab_aut_budg_PRINC'!N35="",'2-tab_aut_budg_PRINC'!O35="",'2-tab_aut_budg_PRINC'!L32=""),"","Problème(s) avec tableau 3 PRINC")&" "&IF(AND('2-tab_aut_budg_PRINC'!G32="",'2-tab_aut_budg_PRINC'!G33="",'2-tab_aut_budg_PRINC'!G34="",'2-tab_aut_budg_PRINC'!G35="",'2-tab_aut_budg_PRINC'!H32="",'2-tab_aut_budg_PRINC'!H33="",'2-tab_aut_budg_PRINC'!H34="",'2-tab_aut_budg_PRINC'!H35="",'6-tab CR_TF_PRINC'!N46=""),"","Problème(s) avec tableau 6 PRINC")&" "&IF(AND('2-tab_aut_budg_PRINC'!R32="",'2-tab_aut_budg_PRINC'!R33="",'2-tab_aut_budg_PRINC'!R34=""),"","Problème(s) avec tableau 8 PRINC"))=" ","OK",(IF(AND('2-tab_aut_budg_PRINC'!E32="",'2-tab_aut_budg_PRINC'!F32="",'2-tab_aut_budg_PRINC'!E33="",'2-tab_aut_budg_PRINC'!F33="",'2-tab_aut_budg_PRINC'!E34="",'2-tab_aut_budg_PRINC'!F34="",'2-tab_aut_budg_PRINC'!N32="",'2-tab_aut_budg_PRINC'!O32="",'2-tab_aut_budg_PRINC'!N33="",'2-tab_aut_budg_PRINC'!O33="",'2-tab_aut_budg_PRINC'!N34="",'2-tab_aut_budg_PRINC'!O34="",'2-tab_aut_budg_PRINC'!N35="",'2-tab_aut_budg_PRINC'!O35="",'2-tab_aut_budg_PRINC'!L32=""),"","Problème(s) avec tableau 3 PRINC")&" "&IF(AND('2-tab_aut_budg_PRINC'!G32="",'2-tab_aut_budg_PRINC'!G33="",'2-tab_aut_budg_PRINC'!G34="",'2-tab_aut_budg_PRINC'!G35="",'2-tab_aut_budg_PRINC'!H32="",'2-tab_aut_budg_PRINC'!H33="",'2-tab_aut_budg_PRINC'!H34="",'2-tab_aut_budg_PRINC'!H35="",'6-tab CR_TF_PRINC'!N46=""),"","Problème(s) avec tableau 6 PRINC")&" "&IF(AND('2-tab_aut_budg_PRINC'!R32="",'2-tab_aut_budg_PRINC'!R33="",'2-tab_aut_budg_PRINC'!R34=""),"","Problème(s) avec tableau 8 PRINC"))) -> OK
C9: Fondation universitaire (2) | E9: =IF((IF(AND('2-tab_aut_budg_FU'!G32="",'2-tab_aut_budg_FU'!G33="",'2-tab_aut_budg_FU'!G34="",'2-tab_aut_budg_FU'!G35="",'2-tab_aut_budg_FU'!H32="",'2-tab_aut_budg_FU'!H33="",'2-tab_aut_budg_FU'!H34="",'2-tab_aut_budg_FU'!H35="",'6-tab CR_TF_FU'!N46=""),"","Problème(s) avec tableau 6 FU"))="","OK",(IF(AND('2-tab_aut_budg_FU'!G32="",'2-tab_aut_budg_FU'!G33="",'2-tab_aut_budg_FU'!G34="",'2-tab_aut_budg_FU'!G35="",'2-tab_aut_budg_FU'!H32="",'2-tab_aut_budg_FU'!H33="",'2-tab_aut_budg_FU'!H34="",'2-tab_aut_budg_FU'!H35="",'6-tab CR_TF_FU'!N46=""),"","Problème(s) avec tableau 6 FU"))) -> OK
A10: 3 | B10: Tableau des dépenses par destination et recettes par origine | C10: Budget de l'établissement | D10: Pour information | E10: OK
C11: Budget établissement principal | E11: OK
A12: 4 | B12: Tableau d'équilibre financier | C12: Budget de l'établissement | D12: Pour vote | E12: OK
A13: 5 | B13: Tableau des opération pour compte de tiers | C13: Budget de l'établissement | D13: Pour information | E13: =IF((IF(AND('5-tab compte de tiers_ETAB'!E25="",'5-tab compte de tiers_ETAB'!F25=""),"","Problème(s) avec tableau 4"))="","OK",(IF(AND('5-tab compte de tiers_ETAB'!E25="",'5-tab compte de tiers_ETAB'!F25=""),"","Problème(s) avec tableau 4"))) -> OK
A14: 6 | B14: Tableau de situation patrimoniale (tableau compte de résultat - tableau de financement) | C14: Budget de l'établissement (3) = (1)+(2) | D14: Pour vote | E14: OK
C15: Budget établissement principal (1) | E15: OK
C16: Fondation universitaire (2) | E16: OK
A17: 7 | B17: Tableau présentant le plan de trésorerie | C17: Budget de l'établissement | D17: Pour information | E17: =IF((IF(AND('7-tab Plan_tréso_ETAB'!P10="",'7-tab Plan_tréso_ETAB'!P11="",'7-tab Plan_tréso_ETAB'!P12="",'7-tab Plan_tréso_ETAB'!P13="",'7-tab Plan_tréso_ETAB'!P14="",'7-tab Plan_tréso_ETAB'!P16="",'7-tab Plan_tréso_ETAB'!P17="",'7-tab Plan_tréso_ETAB'!P18="",'7-tab Plan_tréso_ETAB'!P30="",'7-tab Plan_tréso_ETAB'!P31="",'7-tab Plan_tréso_ETAB'!P33=""),"","Problème(s) avec tableau 2 ETAB")&" "&IF(AND('7-tab Plan_tréso_ETAB'!P19="",'7-tab Plan_tréso_ETAB'!P23="",'7-tab Plan_tréso_ETAB'!P39="",'7-tab Plan_tréso_ETAB'!P43="",'7-tab Plan_tréso_ETAB'!P48=""),"","Problème(s) avec tableau 4")&" "&IF('7-tab Plan_tréso_ETAB'!P49="","","Problème avec tableau 6 ETAB")&" "&IF(AND('7-tab Plan_tréso_ETAB'!Q16="",'7-tab Plan_tréso_ETAB'!Q17="",'7-tab Plan_tréso_ETAB'!Q18="",'7-tab Plan_tréso_ETAB'!Q35="",'7-tab Plan_tréso_ETAB'!Q36="",'7-tab Plan_tréso_ETAB'!Q38=""),"","Problème(s) avec tableau 8 ETAB"))=" ","OK",(IF(AND('7-tab Plan_tréso_ETAB'!P10="",'7-tab Plan_tréso_ETAB'!P11="",'7-tab Plan_tréso_ETAB'!P12="",'7-tab Plan_tréso_ETAB'!P13="",'7-tab Plan_tréso_ETAB'!P14="",'7-tab Plan_tréso_ETAB'!P16="",'7-tab Plan_tréso_ETAB'!P17="",'7-tab Plan_tréso_ETAB'!P18="",'7-tab Plan_tréso_ETAB'!P30="",'7-tab Plan_tréso_ETAB'!P31="",'7-tab Plan_tréso_ETAB'!P33=""),"","Problème(s) avec tableau 2 ETAB")&" "&IF(AND('7-tab Plan_tréso_ETAB'!P19="",'7-tab Plan_tréso_ETAB'!P23="",'7-tab Plan_tréso_ETAB'!P39="",'7-tab Plan_tréso_ETAB'!P43="",'7-tab Plan_tréso_ETAB'!P48=""),"","Problème(s) avec tableau 4")&" "&IF('7-tab Plan_tréso_ETAB'!P49="","","Problème avec tableau 6 ETAB")&" "&IF(AND('7-tab Plan_tréso_ETAB'!Q16="",'7-tab Plan_tréso_ETAB'!Q17="",'7-tab Plan_tréso_ETAB'!Q18="",'7-tab Plan_tréso_ETAB'!Q35="",'7-tab Plan_tréso_ETAB'!Q36="",'7-tab Plan_tréso_ETAB'!Q38=""),"","Problème(s) avec tableau 8 ETAB"))) -> OK
A18: 8 | B18: Tableau des opérations liées aux recettes fléchées | C18: Budget de l'établissement | D18: Pour information | E18: =IF((IF(AND('8-tab recettes_fléchées_ETAB'!H13="",'8-tab recettes_fléchées_ETAB'!H14="",'8-tab recettes_fléchées_ETAB'!H15=""),"","Problème(s) avec tableau 2 ETAB")&" "&IF(AND('8-tab recettes_fléchées_ETAB'!I13="",'8-tab recettes_fléchées_ETAB'!I14="",'8-tab recettes_fléchées_ETAB'!I15=""),"","Problème(s) avec tableau 3 ETAB")&" "&IF('8-tab recettes_fléchées_ETAB'!D31="","","Problème avec tableau 4")&" "&IF(AND('8-tab recettes_fléchées_ETAB'!J13="",'8-tab recettes_fléchées_ETAB'!J14="",'8-tab recettes_fléchées_ETAB'!J15="",'8-tab recettes_fléchées_ETAB'!H19="",'8-tab recettes_fléchées_ETAB'!H21="",'8-tab recettes_fléchées_ETAB'!H24=""),"","Problème(s) avec tableau 7"))=" ","OK",(IF(AND('8-tab recettes_fléchées_ETAB'!H13="",'8-tab recettes_fléchées_ETAB'!H14="",'8-tab recettes_fléchées_ETAB'!H15=""),"","Problème(s) avec tableau 2 ETAB")&" "&IF(AND('8-tab recettes_fléchées_ETAB'!I13="",'8-tab recettes_fléchées_ETAB'!I14="",'8-tab recettes_fléchées_ETAB'!I15=""),"","Problème(s) avec tableau 3 ETAB")&" "&IF('8-tab recettes_fléchées_ETAB'!D31="","","Problème avec tableau 4")&" "&IF(AND('8-tab recettes_fléchées_ETAB'!J13="",'8-tab recettes_fléchées_ETAB'!J14="",'8-tab recettes_fléchées_ETAB'!J15="",'8-tab recettes_fléchées_ETAB'!H19="",'8-tab recettes_fléchées_ETAB'!H21="",'8-tab recettes_fléchées_ETAB'!H24=""),"","Problème(s) avec tableau 7"))) -> OK
C19: Budget établissement principal | E19: =IF((IF(AND('8-tab recettes_fléchées_PRINC'!H13="",'8-tab recettes_fléchées_PRINC'!H14="",'8-tab recettes_fléchées_PRINC'!H15=""),"","Problème(s) avec tableau 2 PRINC")&" "&IF(AND('8-tab recettes_fléchées_PRINC'!I13="",'8-tab recettes_fléchées_PRINC'!I14="",'8-tab recettes_fléchées_PRINC'!I15=""),"","Problème(s) avec tableau 3 PRINC"))=" ","OK",(IF(AND('8-tab recettes_fléchées_PRINC'!H13="",'8-tab recettes_fléchées_PRINC'!H14="",'8-tab recettes_fléchées_PRINC'!H15=""),"","Problème(s) avec tableau 2 PRINC")&" "&IF(AND('8-tab recettes_fléchées_PRINC'!I13="",'8-tab recettes_fléchées_PRINC'!I14="",'8-tab recettes_fléchées_PRINC'!I15=""),"","Problème(s) avec tableau 3 PRINC"))) -> OK
A20: 9 | B20: Tableau des opérations pluriannuelles | C20: Budget de l'établissement | D20: Pour vote
A21: 10 | B21: Tableau détaillé des opérations pluriannuelles et programmation | C21: Budget de l'établissement | D21: Pour information
A22: 11 | B22: Tableau retraçant les moyens des unités mixtes de recherche | D22: Pour information
A23: Annexe 5 | B23: Tableau de synthèse | C23: Budget de l'établissement | E23: OK
A24: Annexe 14 | B24: Plan d'actions achats prévisionnel | C24: Budget de l'établissement
A25: Annexe 15 | B25: Annexe immobilière | C25: Budget de l'établissement

Sheet 1-tab emplois_ETAB
B1: Tableau 1 - Université de Bretagne Sud (0561718N) : Etablissement principal + Fondation
B2: ="Tableau des emplois présenté par l’établissement à l’appui du budget "&Maquette!B4&" "&Maquette!B5&" "&Maquette!B3 -> Tableau des emplois présenté par l’établissement à l’appui du budget rectificatif n° 1 2022
B4: POUR VOTE DE L'ORGANE DÉLIBÉRANT
G5: (A) | L5: (B) | P5: ( C ) = (A) + (B)
F6: Emplois sous plafond Etat * | K6: Emplois financés hors SCSP | P6: Global
B7: Catégories d'emplois | C7: Nature des emplois | F7: En ETPT | K7: En ETPT
B8: Enseignants, enseignants-chercheurs, chercheurs | C8: Permanents | D8: Titulaires | F8: 372.54 | N8: 0 | P8: =F8 -> 372.54
D9: CDI | F9: 5.75 | K9: 3.5 | P9: =F9+K9 -> 9.25
C10: Non permanents | D10: CDD | F10: 70.21 | K10: 75.7 | P10: =F10+K10 -> 145.91
B11: S/total EC | F11: =SUM(F8:I10) -> 448.5 | K11: =SUM(K9:N10) -> 79.2 | P11: =SUM(P8:P10) -> 527.7
B13: Elèves fonctionnaires stagiaires des écoles nationales supérieures (ENS) | P13: =F13 -> 0
B15: BIATSS (personnels de bibliothèques, ingénieurs, administratifs, techniques et de service) | C15: Permanents | D15: Titulaires | F15: 287.65 | P15: =F15 -> 287.65
D16: CDI | F16: 16.5 | K16: 16.3 | P16: =K16+F16 -> 32.8
C17: Non permanents | D17: CDD | F17: 72.85 | K17: 109 | P17: =K17+F17 -> 181.85
B18: S/total Biatss | F18: =SUM(F15:I17) -> 377 | K18: =SUM(K16:N17) -> 125.3 | P18: =SUM(P15:P17) -> 502.3
B19: Totaux | F19: =F11+F13+F18 -> 825.5 | J19: (1) | K19: =K11+K18 -> 204.5 | P19: =P11+P13+P18 -> 1030
P20: Plafond global des emplois voté par le CA ** | Q20: (2)
B21: Rappel du plafond des emplois fixé par l'Etat | F21: 828 | J21: (3)
B22: Note sur les modalités de renseignement du tableau
B23: Ce tableau doit être annexé au budget de l'établissement et, en cas de modification, aux budgets rectificatifs. Les chiffres qu'il contient doivent être exprimés en équivalents temps plein travaillés (ETPT). Le guide de décompte des emplois élaboré par la DAF et la DGESIP précise les régles de décompte des emplois en ETPT en fonction des catégories de personnel.
B24: Seul est soumis au vote du conseil d'administration le plafond global des emplois (case annotée (2))
B25: Le nombre total d'emplois sous plafond Etat (case annotée (1)) ne peut être supérieur au plafond des emplois Etat qui a été notifié à l'établissement et rappelé en case (3)
B26: * : cf. article R719-54 du code de l'éducation : "plafond d'emplois fixé par l'État relatif aux emplois financés par l'État" ** : cf. article R719-54 du code de l'éducation : "plafond d'autorisation de l'ensemble des emplois rémunérés par l'établissement"

Sheet 2-tab_aut_budg_ETAB
B1: Tableau 2 - Université de Bretagne Sud (0561718N) : Etablissement principal + Fondation
B2: ="Autorisations budgétaires - Budget consolidé "&Maquette!B4&" "&Maquette!B5&" "&Maquette!B3 -> Autorisations budgétaires - Budget consolidé rectificatif n° 1 2022
B5: POUR VOTE DE L'ORGANE DÉLIBÉRANT
B8: Dépenses | N8: Recettes
C9: Exécution N-1 | E9: Budget initial (a) | G9: Nouveau BR | I9: Somme des BR (yc nouveau BR) (b) | K9: TOTAL : dernier budget modifié (c) = (a) + (b) | N9: Exécution N-1 | O9: Budget initial (d) | P9: Nouveau BR | Q9: Somme des BR (yc nouveau BR) (e) | R9: TOTAL : dernier budget modifié (f) = (d) + (e)
C10: AE | D10: CP | E10: AE | F10: CP | G10: AE | H10: CP | I10: AE | J10: CP | K10: AE | L10: CP | N10: Montants | O10: Montants | P10: Montants | Q10: Montants | R10: Montants
B11: Personnel | C11: 70871968.53 | D11: 70865964.67 | E11: ='2-tab_aut_budg_PRINC'!E11+'2-tab_aut_budg_FU'!E11 -> 76136253.7 | F11: ='2-tab_aut_budg_PRINC'!F11+'2-tab_aut_budg_FU'!F11 -> 76136253.7 | G11: ='2-tab_aut_budg_PRINC'!G11+'2-tab_aut_budg_FU'!G11 -> 170199.77 | H11: ='2-tab_aut_budg_PRINC'!H11+'2-tab_aut_budg_FU'!H11 -> 169092.66 | I11: ='2-tab_aut_budg_PRINC'!I11+'2-tab_aut_budg_FU'!I11 -> 170199.77 | J11: ='2-tab_aut_budg_PRINC'!J11+'2-tab_aut_budg_FU'!J11 -> 169092.66 | K11: =E11+I11 -> 76306453.47 | L11: =F11+J11 -> 76305346.36 | N11: =SUM(N12:N16) -> 91213716.48 | O11: =SUM(O12:O16) -> 95361369.73 | P11: =SUM(P12:P16) -> 241186.96 | Q11: 241186.96 | R11: =O11+Q11 -> 95602556.69 | S11: Recettes globalisées
B12: dont contributions employeur au CAS Pension | C12: 19748103.52 | D12: 19748103.52 | E12: ='2-tab_aut_budg_PRINC'!E12+'2-tab_aut_budg_FU'!E12 -> 20455893 | F12: ='2-tab_aut_budg_PRINC'!F12+'2-tab_aut_budg_FU'!F12 -> 20455893 | G12: ='2-tab_aut_budg_PRINC'!G12+'2-tab_aut_budg_FU'!G12 -> 0 | H12: ='2-tab_aut_budg_PRINC'!H12+'2-tab_aut_budg_FU'!H12 -> 0 | I12: ='2-tab_aut_budg_PRINC'!I12+'2-tab_aut_budg_FU'!I12 -> 0 | J12: ='2-tab_aut_budg_PRINC'!J12+'2-tab_aut_budg_FU'!J12 -> 0 | K12: =E12+I12 -> 20455893 | L12: =F12+J12 -> 20455893 | N12: 67703186 | O12: =+'2-tab_aut_budg_PRINC'!O12+'2-tab_aut_budg_FU'!O12 -> 66458360 | P12: =+'2-tab_aut_budg_PRINC'!P12+'2-tab_aut_budg_FU'!P12 -> 398857 | Q12: =+'2-tab_aut_budg_PRINC'!Q12+'2-tab_aut_budg_FU'!Q12 -> 398857 | R12: =O12+Q12 -> 66857217 | S12: Subvention pour charges de service public
K13: 0 | L13: 0 | N13: 4691844.96 | O13: =+'2-tab_aut_budg_PRINC'!O13+'2-tab_aut_budg_FU'!O13 -> 4380495.6 | P13: =+'2-tab_aut_budg_PRINC'!P13+'2-tab_aut_budg_FU'!P13 -> -880530.1 | Q13: =+'2-tab_aut_budg_PRINC'!Q13+'2-tab_aut_budg_FU'!Q13 -> -880530.1 | R13: 3499965.5 | S13: Autres financements de l'Etat
K14: 0 | L14: 0 | N14: 611679.76 | O14: =+'2-tab_aut_budg_PRINC'!O14+'2-tab_aut_budg_FU'!O14 -> 600000 | P14: =+'2-tab_aut_budg_PRINC'!P14+'2-tab_aut_budg_FU'!P14 -> 0 | Q14: =+'2-tab_aut_budg_PRINC'!Q14+'2-tab_aut_budg_FU'!Q14 -> 0 | R14: 600000 | S14: Fiscalité affectée
B15: Fonctionnement et intervention | C15: 10231369.66 | D15: 9937131.29 | E15: ='2-tab_aut_budg_PRINC'!E15+'2-tab_aut_budg_FU'!E15 -> 13871894.92 | F15: ='2-tab_aut_budg_PRINC'!F15+'2-tab_aut_budg_FU'!F15 -> 13660886.58 | G15: ='2-tab_aut_budg_PRINC'!G15+'2-tab_aut_budg_FU'!G15 -> 1643195.44 | H15: ='2-tab_aut_budg_PRINC'!H15+'2-tab_aut_budg_FU'!H15 -> 1894841.28 | I15: ='2-tab_aut_budg_PRINC'!I15+'2-tab_aut_budg_FU'!I15 -> 1643195.44 | J15: ='2-tab_aut_budg_PRINC'!J15+'2-tab_aut_budg_FU'!J15 -> 1894841.28 | K15: 15515090.36 | L15: 15555727.86 | N15: 5666385.23 | O15: =+'2-tab_aut_budg_PRINC'!O15+'2-tab_aut_budg_FU'!O15 -> 7803541.13 | P15: =+'2-tab_aut_budg_PRINC'!P15+'2-tab_aut_budg_FU'!P15 -> -313165.35 | Q15: =+'2-tab_aut_budg_PRINC'!Q15+'2-tab_aut_budg_FU'!Q15 -> -313165.35 | R15: 7490375.78 | S15: Autres financements publics
K16: 0 | L16: 0 | N16: 12540620.53 | O16: =+'2-tab_aut_budg_PRINC'!O16+'2-tab_aut_budg_FU'!O16 -> 16118973 | P16: =+'2-tab_aut_budg_PRINC'!P16+'2-tab_aut_budg_FU'!P16 -> 1036025.41 | Q16: =+'2-tab_aut_budg_PRINC'!Q16+'2-tab_aut_budg_FU'!Q16 -> 1036025.41 | R16: 17154998.41 | S16: Recettes propres
K17: 0 | L17: 0
K18: 0 | L18: 0 | N18: =SUM(N19:N21) -> 0 | O18: =SUM(O19:O21) -> 0 | P18: 2221464 | Q18: 2221464 | R18: 2221464 | S18: Recettes fléchées **
K19: 0 | L19: 0 | O19: ='2-tab_aut_budg_PRINC'!O19+'2-tab_aut_budg_FU'!P19 -> 0 | P19: ='2-tab_aut_budg_PRINC'!P19+'2-tab_aut_budg_FU'!Q19 -> 0 | Q19: ='2-tab_aut_budg_PRINC'!Q19+'2-tab_aut_budg_FU'!R19 -> 0 | R19: 0 | S19: Financements de l'Etat fléchés
B20: Investissement | C20: 7593202.3 | D20: 6201568.17 | E20: ='2-tab_aut_budg_PRINC'!E20+'2-tab_aut_budg_FU'!E20 -> 7579491.88 | F20: ='2-tab_aut_budg_PRINC'!F20+'2-tab_aut_budg_FU'!F20 -> 7303449.62 | G20: ='2-tab_aut_budg_PRINC'!G20+'2-tab_aut_budg_FU'!G20 -> 1175714.27 | H20: ='2-tab_aut_budg_PRINC'!H20+'2-tab_aut_budg_FU'!H20 -> 1461331.11 | I20: ='2-tab_aut_budg_PRINC'!I20+'2-tab_aut_budg_FU'!I20 -> 1175714.27 | J20: ='2-tab_aut_budg_PRINC'!J20+'2-tab_aut_budg_FU'!J20 -> 1461331.11 | K20: 8755206.15 | L20: 8764780.73 | O20: ='2-tab_aut_budg_PRINC'!O20+'2-tab_aut_budg_FU'!P20 -> 0 | P20: ='2-tab_aut_budg_PRINC'!P20+'2-tab_aut_budg_FU'!Q20 -> 2221464 | Q20: ='2-tab_aut_budg_PRINC'!Q20+'2-tab_aut_budg_FU'!R20 -> 2221464 | R20: 2221464 | S20: Autres financements publics fléchés
K21: 0 | L21: 0 | O21: ='2-tab_aut_budg_PRINC'!O21+'2-tab_aut_budg_FU'!P21 -> 0 | P21: ='2-tab_aut_budg_PRINC'!P21+'2-tab_aut_budg_FU'!Q21 -> 0 | Q21: ='2-tab_aut_budg_PRINC'!Q21+'2-tab_aut_budg_FU'!R21 -> 0 | R21: 0 | S21: Recettes propres fléchées
K22: 0 | L22: 0
B23: Enveloppes* destinées à des contrats de recherche | G23: =G24+G25+G26 -> 0 | H23: 0 | I23: 0 | J23: 0 | K23: 0 | L23: 0
B24: Personnel | K24: =E24+I24 -> 0 | L24: =F24+J24 -> 0
B25: Fonctionnement | K25: 0 | L25: 0
B26: Investissement | K26: 0 | L26: 0
B28: TOTAL DES DÉPENSES | C28: =C20+C15+C11+C23 -> 88696540.49 | D28: =D20+D15+D11+D23 -> 87004664.13 | E28: =E20+E15+E11+E23 -> 97587640.5 | F28: =F20+F15+F11+F23 -> 97100589.9 | G28: 2989109.48 | H28: 3525265.05 | I28: 2989109.48 | J28: 3525265.05 | K28: 100576750 | L28: 100625855 | N28: =N11+N18 -> 91213716.48 | O28: 95361369.73 | P28: =P11+P18 -> 2462650.96 | Q28: =Q11+Q18 -> 2462650.96 | R28: =R11+R18 -> 97824020.69 | S28: TOTAL DES RECETTES
B30: Solde budgétaire (excédent) | D30: =IF(N28-D28>=0,N28-D28,0) -> 4209052.35 | F30: =IF(O28-F28>=0,O28-F28,0) -> 0 | H30: =IF(P28-H28>=0,P28-H28,0) -> 0 | J30: =IF(Q28-J28>=0,Q28-J28,0) -> 0 | L30: =IF(R28-L28>=0,R28-L28,0) -> 0 | N30: =IF(D28-N28>0,D28-N28,0) -> 0 | O30: =IF(F28-O28>0,F28-O28,0) -> 1739220.17 | P30: =IF(H28-P28>0,H28-P28,0) -> 1062614.09 | Q30: =IF(J28-Q28>0,J28-Q28,0) -> 1062614.09 | R30: =IF(L28-R28>0,L28-R28,0) -> 2801834.26 | S30: Solde budgétaire (déficit)
B32: * Chaque enveloppe peut être détaillée en fonction des besoins des organismes.
B33: ** Montant issu du tableau "Opérations sur recettes fléchées" (tableau 8)
E36: ="BI : Différence charges de personnel entre tableau 2 et tableau 6 est de : "&'6-tab CR_TF_ETAB'!C9-ROUND('2-tab_aut_budg_ETAB'!F11+'2-tab_aut_budg_ETAB'!F24,-1) -> BI : Différence charges de personnel entre tableau 2 et tableau 6 est de : -792701 | P36: =IF('7-tab Plan_tréso_ETAB'!P14="","","! Incohérence Recettes propres Tab7") -> 
E37: ="Budget BI+BR : Différence charges de personnel entre tableau 2 et tableau 6 est de : "&'6-tab CR_TF_ETAB'!F9-ROUND('2-tab_aut_budg_ETAB'!L11+'2-tab_aut_budg_ETAB'!L24,-1) -> Budget BI+BR : Différence charges de personnel entre tableau 2 et tableau 6 est de : -791601,230000004

Sheet 2-tab_aut_budg_PRINC
B1: Tableau 2 - Université de Bretagne Sud (0561718N) : Etablissement principal
B2: ="Autorisations budgétaires - Budget "&Maquette!B4&" "&Maquette!B5&" "&Maquette!B3 -> Autorisations budgétaires - Budget rectificatif n° 1 2022
B5: POUR VOTE DE L'ORGANE DÉLIBÉRANT
B8: Dépenses | N8: Recettes
C9: Exécution N-1 | E9: Budget initial (a) | G9: Nouveau BR | I9: Somme des BR (yc nouveau BR) (b) | K9: TOTAL : dernier budget modifié (c) = (a) + (b) | N9: Exécution N-1 | O9: Budget initial (d) | P9: Nouveau BR | Q9: Somme des BR (yc nouveau BR) (e) | R9: TOTAL : dernier budget modifié (f) = (d) + (e)
C10: AE | D10: CP | E10: AE | F10: CP | G10: AE | H10: CP | I10: AE | J10: CP | K10: AE | L10: CP | N10: Montants | O10: Montants | P10: Montants | Q10: Montants | R10: Montants
B11: Personnel | C11: 70782610.26 | D11: 70776606.4 | E11: 75943253.7 | F11: 75943253.7 | G11: 169721.53 | H11: 168614.42 | I11: =G11 -> 169721.53 | J11: =H11 -> 168614.42 | K11: =E11+I11 -> 76112975.23 | L11: =F11+J11 -> 76111868.12 | N11: =SUM(N12:N16) -> 90850658.5 | O11: =SUM(O12:O16) -> 94730369.73 | P11: =SUM(P12:P16) -> 240119.96 | Q11: 240119.96 | R11: =O11+Q11 -> 94970489.69 | S11: Recettes globalisées
B12: dont contributions employeur au CAS Pension | C12: 19748103.52 | D12: 19748103.52 | E12: 20455893 | F12: 20455893 | K12: =E12+I12 -> 20455893 | L12: 20455893 | N12: 67703186 | O12: =66649560-191200 -> 66458360 | P12: 398857 | Q12: =P12 -> 398857 | R12: =O12+Q12 -> 66857217 | S12: Subvention pour charges de service public
K13: 0 | L13: 0 | N13: 4633571.26 | O13: =4189295.6+191200 -> 4380495.6 | P13: -880530.1 | Q13: =P13 -> -880530.1 | R13: 3499965.5 | S13: Autres financements de l'Etat
K14: 0 | L14: 0 | N14: 611679.76 | O14: 600000 | P14: 0 | Q14: 0 | R14: 600000 | S14: Fiscalité affectée
B15: Fonctionnement et intervention | C15: 10105598.14 | D15: 9809390.31 | E15: 13555894.92 | F15: 13402561.58 | G15: 1643195.44 | H15: 1894841.28 | I15: =G15 -> 1643195.44 | J15: =H15 -> 1894841.28 | K15: 15199090.36 | L15: 15297402.86 | N15: 5529450.95 | O15: 7668541.13 | P15: -314232.35 | Q15: -314232.35 | R15: 7354308.78 | S15: Autres financements publics
K16: 0 | L16: 0 | N16: 12372770.53 | O16: 15622973 | P16: 1036025.41 | Q16: 1036025.41 | R16: 16658998.41 | S16: Recettes propres
K17: 0 | L17: 0
K18: 0 | L18: 0 | N18: =SUM(N19:N21) -> 0 | O18: =SUM(O19:O21) -> 0 | P18: 2221464 | Q18: 2221464 | R18: 2221464 | S18: Recettes fléchées **
K19: 0 | L19: 0 | R19: 0 | S19: Financements de l'Etat fléchés
B20: Investissement | C20: 7584906.67 | D20: 6184857.17 | E20: 7504491.88 | F20: 7258449.62 | G20: 1175714.27 | H20: 1461331.11 | I20: =G20 -> 1175714.27 | J20: =H20 -> 1461331.11 | K20: 8680206.15 | L20: 8719780.73 | P20: 2221464 | Q20: =P20 -> 2221464 | R20: 2221464 | S20: Autres financements publics fléchés
K21: 0 | L21: 0 | R21: 0 | S21: Recettes propres fléchées
K22: 0 | L22: 0
B23: Enveloppes* destinées à des contrats de recherche | C23: =C24+C25+C26 -> 0 | D23: =D24+D25+D26 -> 0 | E23: =E24+E25+E26 -> 0 | F23: =F24+F25+F26 -> 0 | G23: 0 | H23: 0 | I23: 0 | J23: 0 | K23: 0 | L23: 0
B24: Personnel | K24: 0 | L24: 0
B25: Fonctionnement | K25: 0 | L25: 0
B26: Investissement | K26: 0 | L26: 0
B28: TOTAL DES DÉPENSES | C28: =C20+C15+C11+C23 -> 88473115.07 | D28: =D20+D15+D11+D23 -> 86770853.88 | E28: =E20+E15+E11+E23 -> 97003640.5 | F28: =F20+F15+F11+F23 -> 96604264.9 | G28: 2988631.24 | H28: 3524786.81 | I28: 2988631.24 | J28: 3524786.81 | K28: =K20+K15+K11+K23 -> 99992271.74 | L28: =L20+L15+L11+L23 -> 100129051.7 | N28: =N11+N18 -> 90850658.5 | O28: 94730369.73 | P28: =P11+P18 -> 2461583.96 | Q28: =Q11+Q18 -> 2461583.96 | R28: =R11+R18 -> 97191953.69 | S28: TOTAL DES RECETTES
B30: Solde budgétaire (excédent) | D30: =IF(N28-D28>=0,N28-D28,0) -> 4079804.62 | F30: =IF(O28-F28>=0,O28-F28,0) -> 0 | H30: =IF(P28-H28>=0,P28-H28,0) -> 0 | J30: =IF(Q28-J28>=0,Q28-J28,0) -> 0 | L30: =IF(R28-L28>=0,R28-L28,0) -> 0 | N30: =IF(D28-N28>0,D28-N28,0) -> 0 | O30: =IF(F28-O28>0,F28-O28,0) -> 1873895.17 | P30: =IF(H28-P28>0,H28-P28,0) -> 1063202.85 | Q30: =IF(J28-Q28>0,J28-Q28,0) -> 1063202.85 | R30: =IF(L28-R28>0,L28-R28,0) -> 2937098.02 | S30: Solde budgétaire (déficit)
B32: * Chaque enveloppe peut être détaillée en fonction des besoins des organismes.
B33: ** Montant issu du tableau "Opérations sur recettes fléchées" (tableau 8)
E36: ="BI : Différence charges de personnel entre tableau 2 et tableau 6 est de : "&'6-tab CR_TF_PRINC'!C9-ROUND('2-tab_aut_budg_PRINC'!F11+'2-tab_aut_budg_PRINC'!F24,-1) -> BI : Différence charges de personnel entre tableau 2 et tableau 6 est de : -789806
E37: ="Budget BI+BR : Différence charges de personnel entre tableau 2 et tableau 6 est de : "&'6-tab CR_TF_PRINC'!F9-ROUND('2-tab_aut_budg_PRINC'!L11+'2-tab_aut_budg_PRINC'!L24,-1) -> Budget BI+BR : Différence charges de personnel entre tableau 2 et tableau 6 est de : -788704,469999999

Sheet 2-tab_aut_budg_FU
B1: Tableau 2 - Université de Bretagne Sud (0561718N) : Fondation
B2: ="Autorisations budgétaires - Budget "&Maquette!B4&" "&Maquette!B5&" "&Maquette!B3 -> Autorisations budgétaires - Budget rectificatif n° 1 2022
B5: POUR VOTE DE L'ORGANE DÉLIBÉRANT
B8: Dépenses | N8: Recettes
C9: Exécution N-1 | E9: Budget initial (a) | G9: Nouveau BR | I9: Somme des BR (yc nouveau BR) (b) | K9: TOTAL : dernier budget modifié (c) = (a) + (b) | N9: Exécution N-1 | O9: Budget initial (d) | P9: Nouveau BR | Q9: Somme des BR (yc nouveau BR) (e) | R9: TOTAL : dernier budget modifié (f) = (d) + (e)
C10: AE | D10: CP | E10: AE | F10: CP | G10: AE | H10: CP | I10: AE | J10: CP | K10: AE | L10: CP | N10: Montants | O10: Montants | P10: Montants | Q10: Montants | R10: Montants
B11: Personnel | C11: 89358.27 | D11: 89358.27 | E11: 193000 | F11: 193000 | G11: 478.24 | H11: 478.24 | I11: =G11 -> 478.24 | J11: =H11 -> 478.24 | K11: =E11+I11 -> 193478.24 | L11: =F11+J11 -> 193478.24 | N11: =SUM(N12:N16) -> 363057.98 | O11: =SUM(O12:O16) -> 631000 | P11: =SUM(P12:P16) -> 1067 | Q11: 1067 | R11: =O11+Q11 -> 632067 | S11: Recettes globalisées
B12: dont contributions employeur au CAS Pension | C12: 0 | D12: 0 | K12: =E12+I12 -> 0 | L12: 0 | N12: 0 | R12: =O12+Q12 -> 0 | S12: Subvention pour charges de service public
K13: 0 | L13: 0 | N13: 58273.7 | R13: 0 | S13: Autres financements de l'Etat
K14: 0 | L14: 0 | N14: 0 | R14: 0 | S14: Fiscalité affectée
B15: Fonctionnement et intervention | C15: 125771.52 | D15: 127740.98 | E15: 316000 | F15: 258325 | K15: 316000 | L15: 258325 | N15: 136934.28 | O15: 135000 | P15: 1067 | Q15: =P15 -> 1067 | R15: 136067 | S15: Autres financements publics
K16: 0 | L16: 0 | N16: 167850 | O16: 496000 | R16: 496000 | S16: Recettes propres
K17: 0 | L17: 0
K18: 0 | L18: 0 | N18: =SUM(N19:N21) -> 0 | O18: =SUM(O19:O21) -> 0 | P18: 0 | Q18: 0 | R18: 0 | S18: Recettes fléchées **
K19: 0 | L19: 0 | R19: 0 | S19: Financements de l'Etat fléchés
B20: Investissement | C20: 8295.63 | D20: 16711 | E20: 75000 | F20: 45000 | K20: 75000 | L20: 45000 | R20: 0 | S20: Autres financements publics fléchés
K21: 0 | L21: 0 | R21: 0 | S21: Recettes propres fléchées
K22: 0 | L22: 0
B23: Enveloppes* destinées à des contrats de recherche | C23: =C24+C25+C26 -> 0 | D23: =D24+D25+D26 -> 0 | E23: =E24+E25+E26 -> 0 | F23: =F24+F25+F26 -> 0 | G23: 0 | H23: 0 | I23: 0 | J23: 0 | K23: 0 | L23: 0
B24: Personnel | K24: 0 | L24: 0
B25: Fonctionnement | K25: 0 | L25: 0
B26: Investissement | K26: 0 | L26: 0
B28: TOTAL DES DÉPENSES | C28: =C20+C15+C11+C23 -> 223425.42 | D28: =D20+D15+D11+D23 -> 233810.25 | E28: =E20+E15+E11+E23 -> 584000 | F28: =F20+F15+F11+F23 -> 496325 | G28: 478.24 | H28: 478.24 | I28: 478.24 | J28: 478.24 | K28: =K20+K15+K11+K23 -> 584478.24 | L28: =L20+L15+L11+L23 -> 496803.24 | N28: =N11+N18 -> 363057.98 | O28: 631000 | P28: =P11+P18 -> 1067 | Q28: =Q11+Q18 -> 1067 | R28: =R11+R18 -> 632067 | S28: TOTAL DES RECETTES
B30: Solde budgétaire (excédent) | D30: =IF(N28-D28>=0,N28-D28,0) -> 129247.73 | F30: =IF(O28-F28>=0,O28-F28,0) -> 134675 | H30: =IF(P28-H28>=0,P28-H28,0) -> 588.76 | J30: =IF(Q28-J28>=0,Q28-J28,0) -> 588.76 | L30: =IF(R28-L28>=0,R28-L28,0) -> 135263.76 | N30: =IF(D28-N28>0,D28-N28,0) -> 0 | O30: =IF(F28-O28>0,F28-O28,0) -> 0 | P30: =IF(H28-P28>0,H28-P28,0) -> 0 | Q30: =IF(J28-Q28>0,J28-Q28,0) -> 0 | R30: =IF(L28-R28>0,L28-R28,0) -> 0 | S30: Solde budgétaire (déficit)
B32: * Chaque enveloppe peut être détaillée en fonction des besoins des organismes.
B33: ** Montant issu du tableau "Opérations sur recettes fléchées" (tableau 8)
E35: ="Exécution N-1 : Différence charges de personnel entre tableau 2 et tableau 6 est de : "&'6-tab CR_TF_FU'!B9-ROUND('2-tab_aut_budg_FU'!D11+'2-tab_aut_budg_FU'!D24,-1) -> Exécution N-1 : Différence charges de personnel entre tableau 2 et tableau 6 est de : -1348,85000000001 | H35: =IF(L24="",IF(ROUND(J12,-1)<>ROUND('6-tab CR_TF_FU'!E10,-1),"! Incohérence pensions civ. total BR Tab6 FU",""),"") -> 
E36: ="BI : Différence charges de personnel entre tableau 2 et tableau 6 est de : "&'6-tab CR_TF_FU'!C9-ROUND('2-tab_aut_budg_FU'!F11+'2-tab_aut_budg_FU'!F24,-1) -> BI : Différence charges de personnel entre tableau 2 et tableau 6 est de : -2895
E37: ="Budget BI+BR : Différence charges de personnel entre tableau 2 et tableau 6 est de : "&'6-tab CR_TF_FU'!F9-ROUND('2-tab_aut_budg_FU'!L11+'2-tab_aut_budg_FU'!L24,-1) -> Budget BI+BR : Différence charges de personnel entre tableau 2 et tableau 6 est de : -2896,76

Sheet 3-tab_destination_origine_ETAB
B1: Tableau 3 - Université de Bretagne Sud (0561718N) : Etablissement principal + Fondation
B2: ="Dépenses par destination et recettes par origine - Budget consolidé "&Maquette!B4&" "&Maquette!B5&" "&Maquette!B3 -> Dépenses par destination et recettes par origine - Budget consolidé rectificatif n° 1 2022
B4: POUR INFORMATION DE L'ORGANE DÉLIBÉRANT
B5: Tableau des dépenses par destination (obligatoire)
B6: Budget | C6: Dépenses de l’organisme
C7: Personnel | E7: Fonctionnement et intervention | G7: Investissement | I7: Total
C8: AE = CP | E8: AE | F8: CP | G8: AE | H8: CP | I8: AE | J8: CP
B9: Formation initiale et continue (d) = (a) + (b) + (c) | C9: =SUM(C10:C12) -> 43477646.92 | D9: =SUM(D10:D12) -> 43477648.89 | E9: 2951424.36 | F9: 2985587.79 | G9: 2331232.94 | H9: 2331232.94 | I9: =C9+E9+G9 -> 48760304.22 | J9: =D9+F9+H9 -> 48794469.62
B10: D101 - Formation initiale et continue de niveau Licence (a) | C10: 31830017.45 | D10: 31830017.45 | E10: 1771594.26 | F10: 1754709.55 | G10: 1815448.96 | H10: 1815448.96 | I10: =C10+E10+G10 -> 35417060.67 | J10: 35400175.96
B11: D102 - Formation initiale et continue de niveau Master (b) | C11: 10174059.96 | D11: 10174059.96 | E11: 1054732.1 | F11: 1105780.24 | G11: 515783.98 | H11: 515783.98 | I11: 11744576.04 | J11: 11795624.18
B12: D103 - Formation initiale et continue de niveau Doctorat (c) | C12: 1473569.51 | D12: 1473571.48 | E12: 125098 | F12: 125098 | G12: 0 | H12: 0 | I12: 1598667.51 | J12: 1598669.48
B13: D105 - Bibliothèques et documentation | C13: 1733336 | D13: 1733336 | E13: 499915 | F13: 499248 | G13: 20000 | H13: 20000 | I13: 2253251 | J13: 2252584
B14: D106 - Recherche universitaire en sciences de la vie, biotechnologie et santé | C14: 1361205.25 | D14: 1361205.25 | E14: 356329.57 | F14: 356720.37 | G14: 133116.37 | H14: 135500 | I14: 1850651.19 | J14: 1853425.62
B15: D107 - Recherche universitaire en mathématiques, sciences et techniques de l'information et de la communication, micro et nanotechnologies | C15: 6642409.34 | D15: 6642459.5 | E15: 1008309.03 | F15: 1039937.65 | G15: 393210.66 | H15: 382627.55 | I15: 8043929.03 | J15: 8065024.7
B16: D108 - Recherche universitaire en physique, chimie et sciences pour l'ingénieur | C16: 6533464.49 | D16: 6533462.59 | E16: 2477221.32 | F16: 2570038.65 | G16: 843898.37 | H16: 831014.33 | I16: 9854584.18 | J16: 9934515.57
B17: D109 - Recherche universitaire en physique nucléaire et des hautes énergies | C17: 0 | D17: 0 | E17: 0 | F17: 0 | G17: 0 | H17: 0 | I17: 0 | J17: 0
B18: D110 - Recherche universitaire en sciences de la terre, de l'univers et de l'environnement | C18: 585599.24 | D18: 585599.24 | E18: 246868.55 | F18: 241503.84 | G18: 115424 | H18: 114281.03 | I18: 947891.79 | J18: 941384.11
B19: D111 - Recherche universitaire en sciences de l'homme et de la société | C19: 5255592.98 | D19: 5255592.98 | E19: 802814.83 | F19: 774501.85 | G19: 45242.66 | H19: 36242.66 | I19: 6103650.47 | J19: 6066337.49
B20: D112 - Recherche universitaire interdisciplinaire et transversale | C20: 288334.41 | D20: 288334.41 | E20: 272004.38 | F20: 264578.38 | G20: 3730 | H20: 3730 | I20: 564068.79 | J20: 556642.79
B21: D113 - Diffusion des savoirs et musées | I21: 0 | J21: 0
B22: D114 - Immobilier | C22: 2199360 | D22: 2199360 | E22: 3737358 | F22: 3729161 | G22: 2909687.07 | H22: 3562255.02 | I22: 8846405.07 | J22: 9490776.02
B23: D115 - Pilotage et support | C23: 6536075.12 | D23: 6536075.12 | E23: 2193317.45 | F23: 2189451.95 | G23: 555314.04 | H23: 543314.04 | I23: 9284706.61 | J23: 9268841.11
B24: Étudiants (h) = (e) + (f) + (g) | C24: =SUM(C25:C27) -> 1693429.72 | D24: =SUM(D25:D27) -> 1692272.38 | E24: 969527.87 | F24: 904998.38 | G24: 1404350.04 | H24: 804583.16 | I24: 4067307.63 | J24: 3401853.92
B25: D201 - Aides directes aux étudiants (e) | C25: 0 | D25: 0 | E25: 435177.87 | F25: 380175.38 | G25: 0 | H25: 0 | I25: 435177.87 | J25: 380175.38
B26: D202 - Aides indirectes (f) | C26: 0 | D26: 0 | E26: 0 | F26: 0 | G26: 0 | H26: 0 | I26: 0 | J26: 0
B27: D203 - Santé des étudiants et activités associatives, culturelles et sportives (g) | C27: 1693429.72 | D27: 1692272.38 | E27: 534350 | F27: 524823 | G27: 1404350.04 | H27: 804583.16 | I27: 3632129.76 | J27: 3021678.54
B28: Total | C28: =SUM(C10:C24) -> 76306453.47 | D28: =SUM(D10:D24) -> 76305346.36 | E28: 15515090.36 | F28: 15555727.86 | G28: 8755206.15 | H28: 8764780.73 | I28: =C28+E28+G28 -> 100576750 | J28: =D28+F28+H28 -> 100625854.9
B32: Tableau des recettes par origine (obligatoire)
B34: Budget | C34: Recettes de l'organisme
C35: Recettes globalisées | H35: Recettes fléchées | K35: Total
C36: Subvention pour charges de service public | D36: Autres financements de l'Etat | E36: Fiscalité affectée | F36: Autres financements publics | G36: Recettes propres | H36: Financements de l'Etat fléchés | I36: Autres financements publics fléchés | J36: Recettes propres fléchées
B37: Subvention pour charges de service public | C37: 66857217 | D37: 0 | E37: 0 | F37: 0 | G37: 0 | H37: 0 | I37: 0 | J37: 0 | K37: =C37 -> 66857217
B38: Droits d'inscription | C38: 0 | D38: 0 | E38: 0 | F38: 0 | G38: 1276397 | H38: 0 | I38: 0 | J38: 0 | K38: =SUM(G38:J38) -> 1276397
B39: Formation continue, diplômes propres et VAE | C39: 0 | D39: 0 | E39: 0 | F39: 0 | G39: 7418300.76 | H39: 0 | I39: 0 | J39: 0 | K39: =SUM(G39:J39) -> 7418300.76
B40: Taxe d'apprentissage | C40: 0 | D40: 0 | E40: 0 | F40: 0 | G40: 610000 | H40: 0 | I40: 0 | J40: 0 | K40: =SUM(G40:J40) -> 610000
B41: Contrats et prestations de recherche hors ANR | C41: 0 | D41: 0 | E41: 0 | F41: 0 | G41: 1758378.34 | H41: 0 | I41: 0 | J41: 0 | K41: =SUM(G41:J41) -> 1758378.34
B42: Valorisation | C42: 0 | D42: 0 | E42: 0 | F42: 0 | G42: 675049.62 | H42: 0 | I42: 0 | J42: 0 | K42: =SUM(G42:J42) -> 675049.62
B43: ANR investissements d'avenir | C43: 0 | D43: 0 | E43: 0 | F43: 95857.96 | G43: 0 | H43: 0 | I43: 0 | J43: 0 | K43: =SUM(F43,H43:J43) -> 95857.96
B44: ANR hors investissements d'avenir | C44: 0 | D44: 0 | E44: 0 | F44: 1513897.29 | G44: 0 | H44: 0 | I44: 0 | J44: 0 | K44: =SUM(F44,H44:J44) -> 1513897.29
B45: Subventions d'exploitation et financement des actifs - Région | C45: 0 | D45: 0 | E45: 0 | F45: 1823258.36 | G45: 0 | H45: 0 | I45: 0 | J45: 0 | K45: =SUM(F45,H45:J45) -> 1823258.36
B46: Subventions d'exploitation et financement des actifs - Union Européenne | C46: 0 | D46: 0 | E46: 0 | F46: 2678213.34 | G46: 0 | H46: 0 | I46: 2221464 | J46: 0 | K46: =SUM(F46,H46:J46) -> 4899677.34
B47: Subventions d'exploitation et financement des actifs - Autres | C47: 0 | D47: 3499965.5 | E47: 0 | F47: 1379148.83 | G47: 119723.2 | H47: 0 | I47: 0 | J47: 0 | K47: =SUM(D47,F47:J47) -> 4998837.53
B48: Fondations - fonds propres, réserves, dons et legs | C48: 0 | D48: 0 | E48: 0 | F48: 0 | G48: 0 | H48: 0 | I48: 0 | J48: 0 | K48: =SUM(D48,F48:J48) -> 0
B49: Autres recettes | C49: 0 | D49: 0 | E49: 600000 | F49: 0 | G49: 5297149.49 | H49: 0 | I49: 0 | J49: 0 | K49: =SUM(E49:J49) -> 5897149.49
B50: Total | C50: =C37 -> 66857217 | D50: =SUM(D47:D48) -> 3499965.5 | E50: =E49 -> 600000 | F50: =SUM(F43:F49) -> 7490375.78 | G50: =SUM(G38:G42,G47:G49) -> 17154998.41 | H50: =SUM(H38:H49) -> 0 | I50: =SUM(I38:I49) -> 2221464 | J50: 0 | K50: =SUM(K37:K49) -> 97824020.69
B52: La liste des destination est susceptible d'être modifiée par le ministre chargé de l'enseignement supérieur | I52: SOLDE BUDGETAIRE (déficit) | K52: =IF(J28>K50,J28-K50,0) -> 2801834.26

Sheet 3-tab_destination_origine_PRINC
B1: Tableau 3 - Université de Bretagne Sud (0561718N) : Etablissement principal
B2: ="Dépenses par destination et recettes par origine - Budget "&Maquette!B4&" "&Maquette!B5&" "&Maquette!B3 -> Dépenses par destination et recettes par origine - Budget rectificatif n° 1 2022
B4: POUR INFORMATION DE L'ORGANE DÉLIBÉRANT
B5: Tableau des dépenses par destination (obligatoire)
B6: Budget | C6: Dépenses de l’organisme
C7: Personnel | E7: Fonctionnement et intervention | G7: Investissement | I7: Total
C8: AE = CP | E8: AE | F8: CP | G8: AE | H8: CP | I8: AE | J8: CP
B9: Formation initiale et continue (d) = (a) + (b) + (c) | C9: =SUM(C10:C12) -> 43477646.92 | D9: =SUM(D10:D12) -> 43477648.89 | E9: 2951424.36 | F9: 2985587.79 | G9: 2331232.94 | H9: 2331232.94 | I9: =C9+E9+G9 -> 48760304.22 | J9: =D9+F9+H9 -> 48794469.62
B10: D101 - Formation initiale et continue de niveau Licence (a) | C10: 31830017.45 | D10: 31830017.45 | E10: 1771594.26 | F10: 1754709.55 | G10: 1815448.96 | H10: 1815448.96 | I10: =C10+E10+G10 -> 35417060.67 | J10: 35400175.96
B11: D102 - Formation initiale et continue de niveau Master (b) | C11: 10174059.96 | D11: 10174059.96 | E11: 1054732.1 | F11: 1105780.24 | G11: 515783.98 | H11: 515783.98 | I11: 11744576.04 | J11: 11795624.18
B12: D103 - Formation initiale et continue de niveau Doctorat (c) | C12: 1473569.51 | D12: 1473571.48 | E12: 125098 | F12: 125098 | G12: 0 | H12: 0 | I12: 1598667.51 | J12: 1598669.48
B13: D105 - Bibliothèques et documentation | C13: 1733336 | D13: 1733336 | E13: 499915 | F13: 499248 | G13: 20000 | H13: 20000 | I13: 2253251 | J13: 2252584
B14: D106 - Recherche universitaire en sciences de la vie, biotechnologie et santé | C14: 1361205.25 | D14: 1361205.25 | E14: 356329.57 | F14: 356720.37 | G14: 133116.37 | H14: 135500 | I14: 1850651.19 | J14: 1853425.62
B15: D107 - Recherche universitaire en mathématiques, sciences et techniques de l'information et de la communication, micro et nanotechnologies | C15: 6499931.1 | D15: 6499981.26 | E15: 872309.03 | F15: 924412.65 | G15: 367210.66 | H15: 365627.55 | I15: 7739450.79 | J15: 7790021.46
B16: D108 - Recherche universitaire en physique, chimie et sciences pour l'ingénieur | C16: 6533464.49 | D16: 6533462.59 | E16: 2467221.32 | F16: 2563038.65 | G16: 843898.37 | H16: 831014.33 | I16: 9844584.18 | J16: 9927515.57
B17: D109 - Recherche universitaire en physique nucléaire et des hautes énergies | C17: 0 | D17: 0 | E17: 0 | F17: 0 | G17: 0 | H17: 0 | I17: 0 | J17: 0
B18: D110 - Recherche universitaire en sciences de la terre, de l'univers et de l'environnement | C18: 585599.24 | D18: 585599.24 | E18: 246868.55 | F18: 241503.84 | G18: 115424 | H18: 114281.03 | I18: 947891.79 | J18: 941384.11
B19: D111 - Recherche universitaire en sciences de l'homme et de la société | C19: 5234592.98 | D19: 5234592.98 | E19: 691814.83 | F19: 683301.85 | G19: 24242.66 | H19: 24242.66 | I19: 5950650.47 | J19: 5942137.49
B20: D112 - Recherche universitaire interdisciplinaire et transversale | C20: 288334.41 | D20: 288334.41 | E20: 272004.38 | F20: 264578.38 | G20: 3730 | H20: 3730 | I20: 564068.79 | J20: 556642.79
B21: D113 - Diffusion des savoirs et musées | I21: 0 | J21: 0
B22: D114 - Immobilier | C22: 2199360 | D22: 2199360 | E22: 3737358 | F22: 3729161 | G22: 2909687.07 | H22: 3562255.02 | I22: 8846405.07 | J22: 9490776.02
B23: D115 - Pilotage et support | C23: 6506075.12 | D23: 6506075.12 | E23: 2134317.45 | F23: 2144851.95 | G23: 527314.04 | H23: 527314.04 | I23: 9167706.61 | J23: 9178241.11
B24: Étudiants (h) = (e) + (f) + (g) | C24: =SUM(C25:C27) -> 1693429.72 | D24: =SUM(D25:D27) -> 1692272.38 | E24: 969527.87 | F24: 904998.38 | G24: 1404350.04 | H24: 804583.16 | I24: 4067307.63 | J24: 3401853.92
B25: D201 - Aides directes aux étudiants (e) | C25: 0 | D25: 0 | E25: 435177.87 | F25: 380175.38 | G25: 0 | H25: 0 | I25: 435177.87 | J25: 380175.38
B26: D202 - Aides indirectes (f) | C26: 0 | D26: 0 | E26: 0 | F26: 0 | G26: 0 | H26: 0 | I26: 0 | J26: 0
B27: D203 - Santé des étudiants et activités associatives, culturelles et sportives (g) | C27: 1693429.72 | D27: 1692272.38 | E27: 534350 | F27: 524823 | G27: 1404350.04 | H27: 804583.16 | I27: 3632129.76 | J27: 3021678.54
B28: Total | C28: =SUM(C10:C24) -> 76112975.23 | D28: =SUM(D10:D24) -> 76111868.12 | E28: 15199090.36 | F28: 15297402.86 | G28: 8680206.15 | H28: 8719780.73 | I28: =C28+E28+G28 -> 99992271.74 | J28: =D28+F28+H28 -> 100129051.7
H30: SOLDE BUDGETAIRE (excédent) | J30: =IF(K50>J28,K50-J28,0) -> 0
B32: Tableau des recettes par origine (obligatoire)
B34: Budget | C34: Recettes de l'organisme
C35: Recettes globalisées | H35: Recettes fléchées | K35: Total
C36: Subvention pour charges de service public | D36: Autres financements de l'Etat | E36: Fiscalité affectée | F36: Autres financements publics | G36: Recettes propres | H36: Financements de l'Etat fléchés | I36: Autres financements publics fléchés | J36: Recettes propres fléchées
B37: Subvention pour charges de service public | C37: 66857217 | D37: 0 | E37: 0 | F37: 0 | G37: 0 | H37: 0 | I37: 0 | J37: 0 | K37: =C37 -> 66857217
B38: Droits d'inscription | C38: 0 | D38: 0 | E38: 0 | F38: 0 | G38: 1276397 | H38: 0 | I38: 0 | J38: 0 | K38: =SUM(G38:J38) -> 1276397
B39: Formation continue, diplômes propres et VAE | C39: 0 | D39: 0 | E39: 0 | F39: 0 | G39: 7418300.76 | H39: 0 | I39: 0 | J39: 0 | K39: =SUM(G39:J39) -> 7418300.76
B40: Taxe d'apprentissage | C40: 0 | D40: 0 | E40: 0 | F40: 0 | G40: 610000 | H40: 0 | I40: 0 | J40: 0 | K40: 610000
B41: Contrats et prestations de recherche hors ANR | C41: 0 | D41: 0 | E41: 0 | F41: 0 | G41: 1758378.34 | H41: 0 | I41: 0 | J41: 0 | K41: 1758378.34
B42: Valorisation | C42: 0 | D42: 0 | E42: 0 | F42: 0 | G42: 675049.62 | H42: 0 | I42: 0 | J42: 0 | K42: 675049.62
B43: ANR investissements d'avenir | C43: 0 | D43: 0 | E43: 0 | F43: 95857.96 | G43: 0 | H43: 0 | I43: 0 | J43: 0 | K43: =SUM(F43,H43:J43) -> 95857.96
B44: ANR hors investissements d'avenir | C44: 0 | D44: 0 | E44: 0 | F44: 1513897.29 | G44: 0 | H44: 0 | I44: 0 | J44: 0 | K44: =SUM(F44,H44:J44) -> 1513897.29
B45: Subventions d'exploitation et financement des actifs - Région | C45: 0 | D45: 0 | E45: 0 | F45: 1822191.36 | G45: 0 | H45: 0 | I45: 0 | J45: 0 | K45: 1822191.36
B46: Subventions d'exploitation et financement des actifs - Union Européenne | C46: 0 | D46: 0 | E46: 0 | F46: 2648213.34 | G46: 0 | H46: 0 | I46: 2221464 | J46: 0 | K46: 4869677.34
B47: Subventions d'exploitation et financement des actifs - Autres | C47: 0 | D47: 3499965.5 | E47: 0 | F47: 1274148.83 | G47: 119723.2 | H47: 0 | I47: 0 | J47: 0 | K47: =SUM(D47,F47:J47) -> 4893837.53
B48: Fondations - fonds propres, réserves, dons et legs | C48: 0 | D48: 0 | E48: 0 | F48: 0 | G48: 0 | H48: 0 | I48: 0 | J48: 0 | K48: =SUM(D48,F48:J48) -> 0
B49: Autres recettes | C49: 0 | D49: 0 | E49: 600000 | F49: 0 | G49: 4801149.49 | H49: 0 | I49: 0 | J49: 0 | K49: =SUM(E49:J49) -> 5401149.49
B50: Total | C50: =C37 -> 66857217 | D50: =SUM(D47:D48) -> 3499965.5 | E50: =E49 -> 600000 | F50: =SUM(F43:F49) -> 7354308.78 | G50: =SUM(G38:G42,G47:G49) -> 16658998.41 | H50: =SUM(H38:H49) -> 0 | I50: =SUM(I38:I49) -> 2221464 | J50: 0 | K50: =SUM(K37:K49) -> 97191953.69
B52: La liste des destination est susceptible d'être modifiée par le ministre chargé de l'enseignement supérieur | I52: SOLDE BUDGETAIRE (déficit) | K52: =IF(J28>K50,J28-K50,0) -> 2937098.02

Sheet 3-tab_destination_origine_AGR (hidden)
B1: Tableau 3 - Université de Bretagne Sud (0561718N) : Etablissement principal + Fondation
B2: ="Dépenses par destination et recettes par origine - Budget agrégé "&Maquette!B4&" "&Maquette!B5&" "&Maquette!B3 -> Dépenses par destination et recettes par origine - Budget agrégé rectificatif n° 1 2022
B4: POUR INFORMATION DE L'ORGANE DÉLIBÉRANT
B5: Tableau des dépenses par destination (obligatoire)
B6: Budget | C6: Dépenses de l’organisme
C7: Personnel | E7: Fonctionnement et intervention | G7: Investissement | I7: Total
C8: AE = CP | E8: AE | F8: CP | G8: AE | H8: CP | I8: AE | J8: CP
B9: Formation initiale et continue (d) = (a) + (b) + (c) | C9: =SUM(C10:C12) -> 0 | D9: =SUM(D10:D12) -> 0 | E9: 0 | F9: 0 | G9: 0 | H9: 0 | I9: =C9+E9+G9 -> 0 | J9: =D9+F9+H9 -> 0
B10: D101 - Formation initiale et continue de niveau Licence (a) | I10: =C10+E10+G10 -> 0 | J10: 0
B11: D102 - Formation initiale et continue de niveau Master (b) | I11: 0 | J11: 0
B12: D103 - Formation initiale et continue de niveau Doctorat (c) | I12: 0 | J12: 0
B13: D105 - Bibliothèques et documentation | I13: 0 | J13: 0
B14: D106 - Recherche universitaire en sciences de la vie, biotechnologie et santé | I14: 0 | J14: 0
B15: D107 - Recherche universitaire en mathématiques, sciences et techniques de l'information et de la communication, micro et nanotechnologies | I15: 0 | J15: 0
B16: D108 - Recherche universitaire en physique, chimie et sciences pour l'ingénieur | I16: 0 | J16: 0
B17: D109 - Recherche universitaire en physique nucléaire et des hautes énergies | I17: 0 | J17: 0
B18: D110 - Recherche universitaire en sciences de la terre, de l'univers et de l'environnement | I18: 0 | J18: 0
B19: D111 - Recherche universitaire en sciences de l'homme et de la société | I19: 0 | J19: 0
B20: D112 - Recherche universitaire interdisciplinaire et transversale | I20: 0 | J20: 0
B21: D113 - Diffusion des savoirs et musées | I21: 0 | J21: 0
B22: D114 - Immobilier | I22: 0 | J22: 0
B23: D115 - Pilotage et support | I23: 0 | J23: 0
B24: Étudiants (h) = (e) + (f) + (g) | C24: =SUM(C25:C27) -> 0 | D24: =SUM(D25:D27) -> 0 | E24: 0 | F24: 0 | G24: 0 | H24: 0 | I24: 0 | J24: 0
B25: D201 - Aides directes aux étudiants (e) | I25: 0 | J25: 0
B26: D202 - Aides indirectes (f) | I26: 0 | J26: 0
B27: D203 - Santé des étudiants et activités associatives, culturelles et sportives (g) | I27: 0 | J27: 0
B28: Total | C28: =SUM(C10:C24) -> 0 | D28: =SUM(D10:D24) -> 0 | E28: 0 | F28: 0 | G28: 0 | H28: 0 | I28: =C28+E28+G28 -> 0 | J28: =D28+F28+H28 -> 0
C30: =IF(SUM(C9:C28)<>SUM(D9:D28),"! Dépenses de personnel AE <> CP","") ->  | H30: SOLDE BUDGETAIRE (excédent) | J30: =IF(K50>J28,K50-J28,0) -> 0 | K30: =IF(ROUND(J30,-1)<>ROUND(#REF!,-1),"Incohérence solde budgétaire avec Tab2 AGR","") -> 
C31: =IF(ROUND(C28,-1)<>ROUND(#REF!+#REF!,-1),"! Incohérence total Personnel AE avec Tab2 AGR","") ->  | D31: =IF(ROUND(D28,-1)<>ROUND(#REF!+#REF!,-1),"! Incohérence total Personnel CP avec Tab2 AGR","") ->  | E31: =IF(ROUND(E28,-1)<>ROUND(#REF!+#REF!,-1),"! Incohérence total Fonctionnement AE avec Tab2 AGR","") ->  | F31: =IF(ROUND(F28,-1)<>ROUND(#REF!+#REF!,-1),"! Incohérence total Fonctionnement CP avec Tab2 AGR","") ->  | G31: =IF(ROUND(G28,-1)<>ROUND(#REF!+#REF!,-1),"! Incohérence total Investissement AE avec Tab2 AGR","") ->  | H31: =IF(ROUND(H28,-1)<>ROUND(#REF!+#REF!,-1),"! Incohérence total Investissement CP avec Tab2 AGR","") ->  | I31: =IF(ROUND(I28,-1)<>ROUND(#REF!,-1),"! Incohérence Total dépenses AE avec Tab2 AGR","") ->  | J31: =IF(ROUND(J28,-1)<>ROUND(#REF!,-1),"! Incohérence Total dépenses CP avec Tab2 AGR","") -> 
B32: Tableau des recettes par origine (obligatoire)
B34: Budget | C34: Recettes de l'organisme
C35: Recettes globalisées | H35: Recettes fléchées | K35: Total
C36: Subvention pour charges de service public | D36: Autres financements de l'Etat | E36: Fiscalité affectée | F36: Autres financements publics | G36: Recettes propres | H36: Financements de l'Etat fléchés | I36: Autres financements publics fléchés | J36: Recettes propres fléchées
B37: Subvention pour charges de service public | K37: =C37 -> 0
B38: Droits d'inscription | K38: =SUM(G38:J38) -> 0
B39: Formation continue, diplômes propres et VAE | K39: =SUM(G39:J39) -> 0
B40: Taxe d'apprentissage | K40: 0
B41: Contrats et prestations de recherche hors ANR | K41: 0
B42: Valorisation | K42: 0
B43: ANR investissements d'avenir | K43: =SUM(F43,H43:J43) -> 0
B44: ANR hors investissements d'avenir | K44: =SUM(F44,H44:J44) -> 0
B45: Subventions d'exploitation et financement des actifs - Région | K45: 0
B46: Subventions d'exploitation et financement des actifs - Union Européenne | K46: 0
B47: Subventions d'exploitation et financement des actifs - Autres | K47: =SUM(D47,F47:J47) -> 0
B48: Fondations - fonds propres, réserves, dons et legs | K48: =SUM(D48,F48:J48) -> 0
B49: Autres recettes | K49: =SUM(F49:J49) -> 0
B50: Total | C50: =C37 -> 0 | D50: =SUM(D47:D48) -> 0 | E50: =SUM(E47:E48) -> 0 | F50: =SUM(F43:F49) -> 0 | G50: =SUM(G38:G42,G47:G49) -> 0 | H50: =SUM(H38:H49) -> 0 | I50: =SUM(I38:I49) -> 0 | J50: 0 | K50: =SUM(K37:K49) -> 0
B52: La liste des destination est susceptible d'être modifiée par le ministre chargé de l'enseignement supérieur | I52: SOLDE BUDGETAIRE (déficit) | K52: =IF(J28>K50,J28-K50,0) -> 0 | L52: =IF(ROUND(K52,-1)<>ROUND(#REF!,-1),"! Incohérence solde budgétaire avec Tab2 AGR","") -> 
C53: =IF(ROUND(C50,-1)<>ROUND(#REF!,-1),"! Incohérence total Subv charges serv public avec Tab2 AGR","") ->  | D53: =IF(ROUND(D50,-1)<>ROUND(#REF!,-1),"! Incohérence total Autres financements Etat avec Tab2 AGR","") ->  | E53: =IF(ROUND(E50,-1)<>ROUND(#REF!,-1),"! Incohérence total Fiscalité affectée avec Tab2 AGR","") ->  | F53: =IF(ROUND(F50,-1)<>ROUND(#REF!,-1),"! Incohérence total Autres financements publics avec Tab2 AGR","") ->  | G53: =IF(ROUND(G50,-1)<>ROUND(#REF!,-1),"! Incohérence total Recettes propres avec Tab2 AGR","") ->  | H53: =IF(ROUND(H50,-1)<>ROUND(#REF!,-1),"! Incohérence total Financements Etat fléchés avec Tab2 AGR","") ->  | I53: =IF(ROUND(I50,-1)<>ROUND(#REF!,-1),"! Incohérence total Autres financements fléchés avec Tab2 AGR","") ->  | J53: =IF(ROUND(J50,-1)<>ROUND(#REF!,-1),"! Incohérence total Recettes propres fléchées avec Tab2 AGR","") ->  | K53: =IF(ROUND(K50,-1)<>ROUND(#REF!,-1),"! Incohérence total avec Tab2 AGR","") -> 
H54: =IF(H50<>'8-tab recettes_fléchées_ETAB'!D13,"! Incohérence Financements Etat fléchés avec Tab8 ETAB","") ->  | I54: =IF(ROUND(I50,-1)<>ROUND('8-tab recettes_fléchées_AGR'!D14,-1),"! Incohérence Autres financements fléchés avec Tab8 AGR","") ->  | J54: =IF(ROUND(J50,-1)<>ROUND('8-tab recettes_fléchées_AGR'!D15,-1),"! Incohérences Recettes propres fléchées avec Tab8 AGR ","") -> 

Sheet 4-tab_financier_ETAB
B1: Tableau 4 - Université de Bretagne Sud (0561718N) : Etablissement principal + Fondation
B2: ="Équilibre financier - Budget consolidé "&Maquette!B4&" "&Maquette!B5&" "&Maquette!B3 -> Équilibre financier - Budget consolidé rectificatif n° 1 2022
B5: POUR VOTE DE L'ORGANE DÉLIBÉRANT
B9: Besoins (utilisation des financements) | I9: Financements (couverture des besoins)
C10: Exécution N-1 | D10: Budget initial (a) | E10: Nouveau BR | F10: Somme des BR (yc nouveau BR) (b) | G10: TOTAL : dernier budget modifié (c) = (a) + (b) | I10: Exécution N-1 | J10: Budget initial (d) | K10: Nouveau BR | L10: Somme des BR (yc nouveau BR) (e) | M10: TOTAL : dernier budget modifié (f) = (d) + (e)
B11: Solde budgétaire (déficit) * (D2) | D11: ='2-tab_aut_budg_ETAB'!O30 -> 1739220.17 | E11: 1062614.09 | F11: =E11 -> 1062614.09 | G11: =IF(SUM(J11,L11)-SUM(D11,F11)<0,-(SUM(J11,L11)-SUM(D11,F11)),0) -> 2801834.26 | I11: 4209052.35 | L11: =K11 -> 0 | M11: =IF(SUM(J11,L11)-SUM(D11,F11)>=0,SUM(J11,L11)-SUM(D11,F11),0) -> 0 | N11: Solde budgétaire (excédent) * (D1) | R11: Opérations ayant un impact sur la trésorerie
B12: dont solde budgétaire budget principal | D12: ='2-tab_aut_budg_PRINC'!O30 -> 1873895.17 | E12: ='2-tab_aut_budg_PRINC'!P30 -> 1063202.85 | F12: =E12 -> 1063202.85 | G12: =D12+F12 -> 2937098.02 | I12: 4079804.62 | M12: =IF(SUM(J12,L12)-SUM(D12,F12)>=0,SUM(J12,L12)-SUM(D12,F12),0) -> 0 | N12: dont solde budgétaire budget principal
B13: dont solde budgétaire budget du SAIC | G13: 0 | M13: 0 | N13: dont solde budgétaire budget du SAIC | P13: Opérations budgétaires
B14: dont solde budgétaire FU | G14: 0 | I14: 129247.73 | J14: ='2-tab_aut_budg_FU'!F30 -> 134675 | K14: ='2-tab_aut_budg_FU'!H30 -> 588.76 | L14: =K14 -> 588.76 | M14: 135263.76 | N14: dont solde budgétaire FU
B15: dont solde budgétaire BAI | G15: 0 | M15: 0 | N15: dont solde budgétaire BAI
B16: dont solde budgétaire SIE | G16: 0 | M16: 0 | N16: dont solde budgétaire SIE
G17: 0 | M17: =J17+L17 -> 0
B18: Remboursements d'emprunts (capital) ; Nouveaux prêts (capital) ; Dépôts et cautionnements (b1) | G18: 0 | M18: 0 | N18: Nouveaux emprunts (capital) ; Remboursements de prêts (capital) ; Dépôts et cautionnements (b2)
G19: 0 | M19: 0
B20: Opérations au nom et pour le compte de tiers ** (décaissements de l’exercice) (c1) | C20: 1731308.32 | D20: 2487505 | E20: -412189.8 | F20: =E20 -> -412189.8 | G20: 2075315.2 | I20: 1683018.96 | J20: 2948410 | K20: -464889.05 | L20: =K20 -> -464889.05 | M20: 2483520.95 | N20: Opérations au nom et pour le compte de tiers ** (encaissements de l’exercice) (c2) | P20: Opérations non budgétaires
G21: 0 | M21: 0
B22: Autres décaissements sur comptes de tiers (non budgétaires) (e1) | C22: 293672.29 | D22: 0 | G22: 0 | I22: 138103.14 | J22: 0 | M22: 0 | N22: Autres encaissements sur comptes de tiers (non budgétaires) (e2)
G23: 0 | M23: 0
B24: Sous-total des opérations ayant un impact négatif sur la trésorerie de l'organisme (1= D2+b1+c1+e1) | C24: =C11+C18+C20+C22 -> 2024980.61 | D24: =D11+D18+D20+D22 -> 4226725.17 | E24: 650424.29 | F24: =F11+F18+F20+F22 -> 650424.29 | G24: =G11+G18+G20+G22 -> 4877149.46 | H24: et | I24: =I11+I18+I20+I22 -> 6030174.45 | J24: =J11+J18+J20+J22 -> 2948410 | K24: =K11+K18+K20+K22 -> -464889.05 | L24: =L11+L18+L20+L22 -> -464889.05 | M24: =M11+M18+M20+M22 -> 2483520.95 | N24: Sous-total des opérations ayant un impact positif sur la trésorerie de l'organisme (2=D1+b2+c2+e2) | P24: La variation de trésorerie : - se détermine par différence entre (1) et (2), - se décompose en (a) et (d), - s'explique par D, (b), (c), (e).
B25: Variation de trésorerie (I) | C25: =IF(I24-C24>0,I24-C24,) -> 4005193.84 | D25: =IF(J24-D24>0,J24-D24,) -> 0 | E25: =IF(K24-E24>0,K24-E24,) -> 0 | F25: =IF(L24-F24>0,L24-F24,) -> 0 | G25: =IF(M24-G24>0,M24-G24,) -> 0 | H25: ou | I25: =IF(C24-I24>0,C24-I24,0) -> 0 | J25: =IF(D24-J24>0,D24-J24,0) -> 1278315.17 | K25: =IF(E24-K24>0,E24-K24,0) -> 1115313.34 | L25: =IF(F24-L24>0,F24-L24,0) -> 1115313.34 | M25: =IF(G24-M24>0,G24-M24,0) -> 2393628.51 | N25: Variation de trésorerie (II)
G26: =D26+F26 -> 0 | M26: =J26+L26 -> 0 | R26: Décomposition de la variation de trésorerie
B27: dont Abondement de la trésorerie fléchée *** (a1) | E27: ='8-tab recettes_fléchées_ETAB'!D28 -> 1929527 | F27: =E27 -> 1929527 | G27: 1929527 | H27: ou | M27: 0 | N27: dont Prélèvement sur la trésorerie fléchée *** (a2)
G28: 0 | M28: 0
B29: dont Abondement sur la trésorerie non fléchée (d1) | C29: 4005193.84 | G29: 0 | H29: ou | J29: =J25 -> 1278315.17 | K29: 3044841 | L29: =K29 -> 3044841 | M29: 4323156.17 | N29: dont Prélèvement sur la trésorerie non fléchée (d2) | P29: = différence entre variation de trésorerie (I ou II) et (a)
G30: 0 | M30: 0
B31: TOTAL DES BESOINS (1 + I) | C31: =C25+C24 -> 6030174.45 | D31: =D25+D24 -> 4226725.17 | E31: 650424.29 | F31: =F25+F24 -> 650424.29 | G31: =G25+G24 -> 4877149.46 | H31: et | I31: =I25+I24 -> 6030174.45 | J31: =J25+J24 -> 4226725.17 | K31: 650424.29 | L31: 650424.29 | M31: 4877149.46 | N31: TOTAL DES FINANCEMENTS (2 + II)
B33: * solde budgétaire à détailler pour chaque composante du budget de l'établissement
B34: Montant issu du tableau "Autorisations budgétaires" (tableau 2) | F34: =IF(ROUND(G11,-1)<>ROUND('3-tab_destination_origine_ETAB'!K52,-1),"! Incohérence solde budgétaire avec Tab3 ETAB","") ->  | G34: =IF(ROUND(G20,-1)<>ROUND('5-tab compte de tiers_ETAB'!E20,-1),"! Incohérence décaissements tiers avec Tab5","") ->  | L34: =IF(ROUND(M11,-1)<>ROUND('3-tab_destination_origine_ETAB'!J30,-1),"! Incohérence solde budgétaire avec Tab3 ETAB","") -> 
B35: ** Montants issus du tableau "Opérations pour compte de tiers" (tableau 5) | F35: =IF(ROUND(G18,-1)<>ROUND('7-tab Plan_tréso_ETAB'!O39,-1),"! Incohérence remb emprunts avec Tab7","") ->  | G35: =IF(ROUND(G20+G22,-1)<>ROUND('7-tab Plan_tréso_ETAB'!O43,-1),"! Incohérence décaissements tiers avec Tab7","") ->  | L35: =IF(ROUND(M18,-1)<>ROUND('7-tab Plan_tréso_ETAB'!O19,-1),"! Incohérence recettes emprunts avec Tab7","") -> 
B36: *** Montant issu du tableau "Opérations sur recettes fléchées" (tableau 8) | C36: =IF('6-tab CR_TF_ETAB'!H48<=0,IF(ROUND('6-tab CR_TF_ETAB'!H48,-1)<>-ROUND(I25,-1),"! Incohérence var trésorerie N-1 Tab6 ETAB",""),IF(ROUND('6-tab CR_TF_ETAB'!H48,-1)<>ROUND(C25,-1),"! Incohérence var N-1 trésorerie Tab6 ETAB","")) ->  | E36: =IF('6-tab CR_TF_ETAB'!J48<=0,IF(ROUND('6-tab CR_TF_ETAB'!J48,-1)<>-ROUND(K25,-1),"! Incohérence var trésorerie BR Tab6 ETAB",""),IF(ROUND('6-tab CR_TF_ETAB'!J48,-1)<>ROUND(E25,-1),"! Incohérence var trésorerie BR Tab6 ETAB","")) ->  | F36: =IF('6-tab CR_TF_ETAB'!K48<=0,IF(ROUND('6-tab CR_TF_ETAB'!K48,-1)<>-ROUND(L25,-1),"! Incohérence var trésorerie BR tot Tab6 ETAB",""),IF(ROUND('6-tab CR_TF_ETAB'!K48,-1)<>ROUND(F25,-1),"! Incohérence var trésorerie BR tot Tab6 ETAB","")) ->  | G36: =IF('6-tab CR_TF_ETAB'!L48<=0,IF(ROUND('6-tab CR_TF_ETAB'!L48,-1)<>-ROUND(M25,-1),"! Incohérence var trésorerie Total Tab6 ETAB",""),IF(ROUND('6-tab CR_TF_ETAB'!L48,-1)<>ROUND(G25,-1),"! Incohérence var trésorerie Total Tab6 ETAB","")) -> 
G37: =IF('8-tab recettes_fléchées_ETAB'!D28>0,IF(ROUND(G27,-1)<>ROUND('8-tab recettes_fléchées_ETAB'!D28,-1),"! Incohérence abond. trésorerie fléchée avec Tab8 ETAB",""),"") -> 
B38: SAIC : service d'activités industrielles et commerciales
B39: FU : fondation universitaire
B40: BAI : budget annexe immobilier
B41: SIE : service inter-établissements

Sheet 5-tab compte de tiers_ETAB
B1: Tableau 5 - Université de Bretagne Sud (0561718N) : Etablissement principal + Fondation
B2: ="Opérations pour le compte de tiers - Budget consolidé "&Maquette!B4&" "&Maquette!B5&" "&Maquette!B3 -> Opérations pour le compte de tiers - Budget consolidé rectificatif n° 1 2022
B5: POUR INFORMATION DE L'ORGANE DÉLIBÉRANT
B9: Opérations ou regroupement d'opérations de même nature | C9: Comptes | D9: Libellé | E9: Prévisions de décaissements | F9: Prévisions d'encaissements
B10: Opération 1 | C10: C 47311 | D10: Bourse Mobilité Internationale | E10: 86784.2 | F10: 180800
C11: C 4…
B12: Opération 2 | C12: C 44571 et C 44551 | D12: TVA | E12: 904139.94 | F12: 852593.78
C13: C 4...
B14: Opération 3 | C14: C 4731 | D14: Projet Flower (Interreg) | E14: 500002 | F14: 500002
C15: C 4...
B16: Opération 4 | C16: C 4731 | D16: Projet Indigo (Interreg) | E16: 584389 | F16: 584389
C17: C 4...
B18: Opération 5 | C18: C 4731 | D18: Projet Cyberus | E18: 0 | F18: 365736
C19: C 4...
B20: TOTAL | E20: =SUM(E10:E19) -> 2075315.14 | F20: =SUM(F10:F19) -> 2483520.78
E21: (c1) | F21: (c2)
D22: (c1) et (c2) étant repris au tableau "Équilibre financier" (tableau 4)
B23: N.B. : Dans l'hypothèse d'un écart entre les crédits et les débits d'un même compte, l'opération concernée devra faire l'objet d'une explication spécifique.

Sheet 6-tab CR_TF_ETAB
A1: Tableau 6 - Université de Bretagne Sud (0561718N) : Etablissement principal + Fondation
A2: ="Situation patrimoniale - Budget consolidé "&Maquette!B4&" "&Maquette!B5&" "&Maquette!B3 -> Situation patrimoniale - Budget consolidé rectificatif n° 1 2022
A4: POUR VOTE DE L'ORGANE DÉLIBÉRANT
A6: Compte de résultat prévisionnel | G6: =IF(ROUND(L13,-1)=ROUND('6-tab CR_TF_AGR'!L13+'6-tab CR_TF_SIE'!L13,-1),"","! Pb agrégat produits") -> 
A8: CHARGES | B8: Exécution N-1 | C8: Budget initial (a) | D8: Nouveau BR | E8: Somme des BR (yc nouveau BR) (b) | F8: TOTAL : dernier budget modifié (c) = (a) + (b) | G8: PRODUITS | H8: Exécution N-1 | I8: Budget initial (d) | J8: Nouveau BR | K8: Somme des BR (yc nouveau BR) (e) | L8: TOTAL : dernier budget modifié (f) = (d) + (e)
A9: Personnel | B9: ='6-tab CR_TF_AGR'!B9+'6-tab CR_TF_SIE'!B9 -> 70374192.43 | C9: ='6-tab CR_TF_PRINC'!C9+'6-tab CR_TF_FU'!C9 -> 75343549 | D9: ='6-tab CR_TF_PRINC'!D9+'6-tab CR_TF_FU'!D9 -> 170199.77 | E9: ='6-tab CR_TF_PRINC'!E9+'6-tab CR_TF_FU'!E9 -> 170199.77 | F9: =C9+E9 -> 75513748.77 | G9: Subventions de l'Etat | H9: ='6-tab CR_TF_AGR'!H9+'6-tab CR_TF_SIE'!H9 -> 70096627.44 | I9: ='6-tab CR_TF_PRINC'!I9+'6-tab CR_TF_FU'!I9 -> 70854541 | J9: ='6-tab CR_TF_PRINC'!J9+'6-tab CR_TF_FU'!J9 -> 442083.69 | K9: ='6-tab CR_TF_PRINC'!K9+'6-tab CR_TF_FU'!K9 -> 442083.69 | L9: =I9+K9 -> 71296624.69
A10: dont charges de pensions civiles* | B10: ='6-tab CR_TF_AGR'!B10+'6-tab CR_TF_SIE'!B10 -> 19743662.52 | C10: ='6-tab CR_TF_PRINC'!C10+'6-tab CR_TF_FU'!C10 -> 20455893 | D10: ='6-tab CR_TF_PRINC'!D10+'6-tab CR_TF_FU'!D10 -> 0 | E10: ='6-tab CR_TF_AGR'!E10+'6-tab CR_TF_SIE'!E10 -> 0 | F10: =C10+E10 -> 20455893 | G10: Fiscalité affectée | H10: ='6-tab CR_TF_AGR'!H10+'6-tab CR_TF_SIE'!H10 -> 611679.76 | I10: ='6-tab CR_TF_PRINC'!I10+'6-tab CR_TF_FU'!I10 -> 600000 | J10: ='6-tab CR_TF_PRINC'!J10+'6-tab CR_TF_FU'!J10 -> 0 | K10: ='6-tab CR_TF_PRINC'!K10+'6-tab CR_TF_FU'!K10 -> 0 | L10: =I10+K10 -> 600000
A11: Fonctionnement (autre que les charges de personnel) et intervention | B11: ='6-tab CR_TF_AGR'!B11:B12+'6-tab CR_TF_SIE'!B11:B12 -> 19238485.61 | C11: ='6-tab CR_TF_PRINC'!C11:C12+'6-tab CR_TF_FU'!C11:C12 -> 22087759 | D11: ='6-tab CR_TF_PRINC'!D11:D12+'6-tab CR_TF_FU'!D11:D12 -> 1657757.65 | E11: ='6-tab CR_TF_PRINC'!E11:E12+'6-tab CR_TF_FU'!E11:E12 -> 1657757.65 | F11: =C11+E11 -> 23745516.65 | G11: Autres subventions | H11: ='6-tab CR_TF_AGR'!H11+'6-tab CR_TF_SIE'!H11 -> 2979192.72 | I11: ='6-tab CR_TF_PRINC'!I11+'6-tab CR_TF_FU'!I11 -> 5777910 | J11: ='6-tab CR_TF_PRINC'!J11+'6-tab CR_TF_FU'!J11 -> 1557013.85 | K11: ='6-tab CR_TF_PRINC'!K11+'6-tab CR_TF_FU'!K11 -> 1557013.85 | L11: 7334923.85
G12: Autres produits | H12: ='6-tab CR_TF_AGR'!H12+'6-tab CR_TF_SIE'!H12 -> 19262631.43 | I12: ='6-tab CR_TF_PRINC'!I12+'6-tab CR_TF_FU'!I12 -> 19869459 | J12: ='6-tab CR_TF_PRINC'!J12+'6-tab CR_TF_FU'!J12 -> 441782.04 | K12: ='6-tab CR_TF_PRINC'!K12+'6-tab CR_TF_FU'!K12 -> 441782.04 | L12: 20311241.04
A13: TOTAL DES CHARGES (1) | B13: =B9+B11 -> 89612678.04 | C13: =C9+C11 -> 97431308 | D13: =D9+D11 -> 1827957.42 | E13: =E9+E11 -> 1827957.42 | F13: =F9+F11 -> 99259265.42 | G13: TOTAL DES PRODUITS (2) | H13: =SUM(H9:H12) -> 92950131.35 | I13: =SUM(I9:I12) -> 97101910 | J13: 2440879.58 | K13: 2440879.58 | L13: =SUM(L9:L12) -> 99542789.58
A14: Résultat prévisionnel : bénéfice (3) = (2) - (1) | B14: =IF(H13-B13>0,H13-B13,0) -> 3337453.31 | C14: =IF(I13-C13>0,I13-C13,0) -> 0 | D14: =IF(J13-D13>0,J13-D13,0) -> 612922.16 | E14: =IF(K13-E13>0,K13-E13,0) -> 612922.16 | F14: =IF(L13-F13>0,L13-F13,0) -> 283524.16 | G14: Résultat prévisionnel : perte (4) = (1) - (2) | H14: =IF(B13-H13>0,B13-H13,0) -> 0 | I14: =IF(C13-I13>0,C13-I13,0) -> 329398 | J14: =IF(D13-J13>0,D13-J13,0) -> 0 | K14: =IF(E13-K13>0,E13-K13,0) -> 0 | L14: =IF(F13-L13>0,F13-L13,0) -> 0
A15: TOTAL EQUILIBRE du compte de résultat prévisionnel (1) + (3) = (2) + (4) | B15: =B13+B14 -> 92950131.35 | C15: =C13+C14 -> 97431308 | D15: =D13+D14 -> 2440879.58 | E15: =E13+E14 -> 2440879.58 | F15: =F13+F14 -> 99542789.58 | G15: TOTAL EQUILIBRE du compte de résultat prévisionnel (1) + (3) = (2) + (4) | H15: =H13+H14 -> 92950131.35 | I15: =I13+I14 -> 97431308 | J15: =J13+J14 -> 2440879.58 | K15: 2440879.58 | L15: =L13+L14 -> 99542789.58
A16: * Il s'agit des sous catégories de comptes présentant les contributions employeur au CAS Pensions. | D16: ="Nouveau BR : Différence charges de personnel entre tableau 2 et tableau 6 est de : "&(ROUND(D9,0)-ROUND('2-tab_aut_budg_ETAB'!H11+'2-tab_aut_budg_ETAB'!H24,0)) -> Nouveau BR : Différence charges de personnel entre tableau 2 et tableau 6 est de : 1107 | E16: ="Somme des BR : Différence charges de personnel entre tableau 2 et tableau 6 est de : "&(ROUND(E9,0)-ROUND('2-tab_aut_budg_ETAB'!J11+'2-tab_aut_budg_ETAB'!J24,0)) -> Somme des BR : Différence charges de personnel entre tableau 2 et tableau 6 est de : 1107 | F16: ="Budget BI+BR : Différence charges de personnel entre tableau 2 et tableau 6 est de : "&(ROUND(F9,0)-ROUND('2-tab_aut_budg_ETAB'!L11+'2-tab_aut_budg_ETAB'!L24,0)) -> Budget BI+BR : Différence charges de personnel entre tableau 2 et tableau 6 est de : -791597
A19: Calcul de la capacité d'autofinancement (CAF)
B21: Exécution N-1 | C21: Budget initial (g) | D21: Nouveau BR | E21: Somme des BR (yc nouveau BR) (h) | F21: TOTAL : dernier budget modifié (i) = (g) + (h)
A22: Résultat prévisionnel de l'exercice (bénéfice (3) ou perte (-4) | B22: =IF(B14>0,B14,-H14) -> 3337453.31 | C22: =IF(C14>0,C14,-I14) -> -329398 | D22: =IF(D14>0,D14,-J14) -> 612922.16 | E22: =IF(E14>0,E14,-K14) -> 612922.16 | F22: =IF(F14>0,F14,-L14) -> 283524.16
A23: + dotations aux amortissements, dépréciations et provisions | B23: ='6-tab CR_TF_AGR'!B23+'6-tab CR_TF_SIE'!B23 -> 7427632.8 | C23: ='6-tab CR_TF_PRINC'!C23+'6-tab CR_TF_FU'!C23 -> 7659161 | D23: ='6-tab CR_TF_PRINC'!D23+'6-tab CR_TF_FU'!D23 -> 0 | E23: ='6-tab CR_TF_PRINC'!E23+'6-tab CR_TF_FU'!E23 -> 0 | F23: =C23+E23 -> 7659161
A24: - reprises sur amortissements, dépréciations et provisions | B24: ='6-tab CR_TF_AGR'!B24+'6-tab CR_TF_SIE'!B24 -> -257167.28 | C24: ='6-tab CR_TF_PRINC'!C24+'6-tab CR_TF_FU'!C24 -> 0 | D24: ='6-tab CR_TF_PRINC'!D24+'6-tab CR_TF_FU'!D24 -> 0 | E24: ='6-tab CR_TF_PRINC'!E24+'6-tab CR_TF_FU'!E24 -> 0 | F24: =C24+E24 -> 0
A25: + valeur nette comptable des éléments d'actifs cédés | B25: ='6-tab CR_TF_AGR'!B25+'6-tab CR_TF_SIE'!B25 -> 23180.45 | C25: ='6-tab CR_TF_PRINC'!C25+'6-tab CR_TF_FU'!C25 -> 0 | D25: ='6-tab CR_TF_PRINC'!D25+'6-tab CR_TF_FU'!D25 -> 0 | E25: ='6-tab CR_TF_PRINC'!E25+'6-tab CR_TF_FU'!E25 -> 0 | F25: =C25+E25 -> 0
A26: - produits de cession d'éléments d'actifs | B26: ='6-tab CR_TF_AGR'!B26+'6-tab CR_TF_SIE'!B26 -> -16750 | C26: ='6-tab CR_TF_PRINC'!C26+'6-tab CR_TF_FU'!C26 -> 0 | D26: ='6-tab CR_TF_PRINC'!D26+'6-tab CR_TF_FU'!D26 -> 0 | E26: ='6-tab CR_TF_PRINC'!E26+'6-tab CR_TF_FU'!E26 -> 0 | F26: =C26+E26 -> 0
A27: - quote-part des subventions d’investissement virée au résultat de l’exercice | B27: ='6-tab CR_TF_AGR'!B27+'6-tab CR_TF_SIE'!B27 -> -4989339.24 | C27: ='6-tab CR_TF_PRINC'!C27+'6-tab CR_TF_FU'!C27 -> -5072618 | D27: ='6-tab CR_TF_PRINC'!D27+'6-tab CR_TF_FU'!D27 -> 0 | E27: ='6-tab CR_TF_PRINC'!E27+'6-tab CR_TF_FU'!E27 -> 0 | F27: =C27+E27 -> -5072618
A28: = CAF ou IAF* | B28: =SUM(B22:B27) -> 5525010.04 | C28: =SUM(C22:C27) -> 2257145 | D28: 612922.16 | E28: 612922.16 | F28: =SUM(F22:F27) -> 2870067.16
A29: * capacité d'autofinancement ou insuffisance d'autofinancement
A32: État prévisionnel de l'évolution de la situation patrimoniale en droits constatés
A34: EMPLOIS | B34: Exécution N-1 | C34: Budget initial (j) | D34: Nouveau BR | E34: Somme des BR (yc nouveau BR) (k) | F34: TOTAL : dernier budget modifié (l) = (j) + (k) | G34: RESSOURCES | H34: Exécution N-1 | I34: Budget initial (m) | J34: Nouveau BR | K34: Somme des BR (yc nouveau BR) (n) | L34: TOTAL : dernier budget modifié (o) = (m) + (n)
A35: Insuffisance d'autofinancement* | B35: =IF(B28<0,-B28,0) -> 0 | C35: =IF(C28<0,-C28,0) -> 0 | D35: =IF(D28<0,-D28,0) -> 0 | E35: =IF(E28<0,-E28,0) -> 0 | F35: =IF(F28<0,-F28,0) -> 0 | G35: Capacité d'autofinancement* | H35: =IF(B28>0,B28,0) -> 5525010.04 | I35: =IF(C28>0,C28,0) -> 2257145 | J35: =IF(D28>0,D28,0) -> 612922.16 | K35: =IF(E28>0,E28,0) -> 612922.16 | L35: =IF(F28>0,F28,0) -> 2870067.16
A36: Investissements | B36: ='6-tab CR_TF_AGR'!B36+'6-tab CR_TF_SIE'!B36 -> 5642435.72 | C36: ='6-tab CR_TF_PRINC'!C36:C38+'6-tab CR_TF_FU'!C36:C38 -> 7103450 | D36: ='6-tab CR_TF_PRINC'!D36:D38+'6-tab CR_TF_FU'!D36:D38 -> 1607785.62 | E36: ='6-tab CR_TF_PRINC'!E36:E38+'6-tab CR_TF_FU'!E36:E38 -> 1607785.62 | F36: =C36+E36 -> 8711235.62 | G36: Financement de l'actif par l'État | H36: ='6-tab CR_TF_AGR'!H36+'6-tab CR_TF_SIE'!H36 -> 2448903.86 | I36: ='6-tab CR_TF_PRINC'!I36+'6-tab CR_TF_FU'!I36 -> 150000 | J36: ='6-tab CR_TF_PRINC'!J36+'6-tab CR_TF_FU'!J36 -> 425431.02 | K36: ='6-tab CR_TF_PRINC'!K36+'6-tab CR_TF_FU'!K36 -> 425431.02 | L36: =I36+K36 -> 575431.02
B37: ='6-tab CR_TF_AGR'!B37+'6-tab CR_TF_SIE'!B37 -> 0 | C37: ='6-tab CR_TF_AGR'!C37+'6-tab CR_TF_SIE'!C37 -> 0 | D37: ='6-tab CR_TF_AGR'!D37+'6-tab CR_TF_SIE'!D37 -> 0 | E37: ='6-tab CR_TF_AGR'!E37+'6-tab CR_TF_SIE'!E37 -> 0 | G37: Financement de l'actif par des tiers autres que l'Etat | H37: ='6-tab CR_TF_AGR'!H37+'6-tab CR_TF_SIE'!H37 -> 571708.4 | I37: ='6-tab CR_TF_PRINC'!I37+'6-tab CR_TF_FU'!I37 -> 2100000 | J37: ='6-tab CR_TF_PRINC'!J37+'6-tab CR_TF_FU'!J37 -> 101214.04 | K37: ='6-tab CR_TF_PRINC'!K37+'6-tab CR_TF_FU'!K37 -> 101214.04 | L37: =I37+K37 -> 2201214.04
B38: ='6-tab CR_TF_AGR'!B38+'6-tab CR_TF_SIE'!B38 -> 0 | C38: ='6-tab CR_TF_AGR'!C38+'6-tab CR_TF_SIE'!C38 -> 0 | D38: ='6-tab CR_TF_AGR'!D38+'6-tab CR_TF_SIE'!D38 -> 0 | E38: ='6-tab CR_TF_AGR'!E38+'6-tab CR_TF_SIE'!E38 -> 0 | G38: Autres ressources | H38: ='6-tab CR_TF_AGR'!H38+'6-tab CR_TF_SIE'!H38 -> 44889.9 | I38: ='6-tab CR_TF_PRINC'!I38+'6-tab CR_TF_FU'!I38 -> 488495 | J38: ='6-tab CR_TF_PRINC'!J38+'6-tab CR_TF_FU'!J38 -> 0 | K38: ='6-tab CR_TF_PRINC'!K38+'6-tab CR_TF_FU'!K38 -> 0 | L38: 488495
A39: Remboursement des dettes financières | B39: ='6-tab CR_TF_AGR'!B39+'6-tab CR_TF_SIE'!B39 -> 0 | C39: ='6-tab CR_TF_AGR'!C39+'6-tab CR_TF_SIE'!C39 -> 0 | D39: ='6-tab CR_TF_AGR'!D39+'6-tab CR_TF_SIE'!D39 -> 0 | E39: ='6-tab CR_TF_AGR'!E39+'6-tab CR_TF_SIE'!E39 -> 0 | F39: =C39+E39 -> 0 | G39: Augmentation des dettes financières | H39: ='6-tab CR_TF_AGR'!H39+'6-tab CR_TF_SIE'!H39 -> 0 | I39: ='6-tab CR_TF_PRINC'!I39+'6-tab CR_TF_FU'!I39 -> 0 | J39: ='6-tab CR_TF_PRINC'!J39+'6-tab CR_TF_FU'!J39 -> 0 | K39: ='6-tab CR_TF_PRINC'!K39+'6-tab CR_TF_FU'!K39 -> 0 | L39: 0
A40: TOTAL DES EMPLOIS (5) | B40: =SUM(B35:B39) -> 5642435.72 | C40: 7103450 | D40: 1607785.62 | E40: =SUM(E35:E39) -> 1607785.62 | F40: =SUM(F35:F39) -> 8711235.62 | G40: TOTAL DES RESSOURCES (6) | H40: =SUM(H35:H39) -> 8590512.2 | I40: 4995640 | J40: 1139567.22 | K40: =SUM(K35:K39) -> 1139567.22 | L40: =SUM(L35:L39) -> 6135207.22
A41: APPORT au FONDS DE ROULEMENT (7) = (6)-(5) | B41: =IF(H40-B40>0,H40-B40,0) -> 2948076.48 | C41: =IF(I40-C40>0,I40-C40,0) -> 0 | D41: =IF(J40-D40>0,J40-D40,0) -> 0 | E41: =IF(K40-E40>0,K40-E40,0) -> 0 | F41: =IF(L40-F40>0,L40-F40,0) -> 0 | G41: PRELEVEMENT sur FONDS DE ROULEMENT (8) = (5)-(6) | H41: =IF(B40-H40>0,B40-H40,0) -> 0 | I41: =IF(C40-I40>0,C40-I40,0) -> 2107810 | J41: =IF(D40-J40>0,D40-J40,0) -> 468218.4 | K41: =IF(E40-K40>0,E40-K40,0) -> 468218.4 | L41: =IF(F40-L40>0,F40-L40,0) -> 2576028.4
A43: POUR INFORMATION DE L'ORGANE DÉLIBÉRANT
H45: Exécution N-1 | I45: Budget initial (q) | J45: Nouveau BR | K45: Somme des BR (yc nouveau BR) (r) | L45: TOTAL : dernier budget modifié Variation (s) = (q) + (r) Niveau = (p) + (s)
A46: VARIATION DU FONDS DE ROULEMENT : APPORT (7) ou PRELEVEMENT (8) | H46: =IF(B41>0,B41,-H41) -> 2948076.48 | I46: =IF(C41>0,C41,-I41) -> -2107810 | J46: =IF(D41>0,D41,-J41) -> -468218.4 | K46: =IF(E41>0,E41,-K41) -> -468218.4 | L46: =I46+K46 -> -2576028.4
A47: Variation du BESOIN en FONDS DE ROULEMENT | H47: ='6-tab CR_TF_PRINC'!H49+'6-tab CR_TF_FU'!H49 -> 13746877.81 | I47: ='6-tab CR_TF_PRINC'!I47+'6-tab CR_TF_FU'!I47 -> -829495 | J47: ='6-tab CR_TF_PRINC'!J47+'6-tab CR_TF_FU'!J47 -> 647094.7 | K47: =J47 -> 647094.7 | L47: =L46-L48 -> -182400.3
A48: Variation de la TRESORERIE : ABONDEMENT (I) ou PRELEVEMENT (II) * | H48: ='6-tab CR_TF_PRINC'!H48+'6-tab CR_TF_FU'!H48 -> 4005193.84 | I48: ='6-tab CR_TF_PRINC'!I48+'6-tab CR_TF_FU'!I48 -> -1278315 | J48: ='6-tab CR_TF_PRINC'!J48+'6-tab CR_TF_FU'!J48 -> -1115313.1 | K48: =J48 -> -1115313.1 | L48: =I48+K48 -> -2393628.1
A49: Niveau du FONDS DE ROULEMENT | H49: ='6-tab CR_TF_PRINC'!H49+'6-tab CR_TF_FU'!H49 -> 13746877.81 | I49: ='6-tab CR_TF_PRINC'!I49+'6-tab CR_TF_FU'!I49 -> 11639067.81 | J49: ='6-tab CR_TF_AGR'!J49+'6-tab CR_TF_SIE'!J49 -> 0 | K49: ='6-tab CR_TF_AGR'!K49+'6-tab CR_TF_SIE'!K49 -> 0 | L49: ='6-tab CR_TF_PRINC'!L49+'6-tab CR_TF_FU'!L49 -> 11170849.41
A50: Niveau du BESOIN EN FONDS DE ROULEMENT | H50: ='6-tab CR_TF_PRINC'!H50+'6-tab CR_TF_FU'!H50 -> 162438.61 | I50: ='6-tab CR_TF_PRINC'!I50+'6-tab CR_TF_FU'!I50 -> -667056.39 | J50: ='6-tab CR_TF_AGR'!J50+'6-tab CR_TF_SIE'!J50 -> 0 | K50: ='6-tab CR_TF_AGR'!K50+'6-tab CR_TF_SIE'!K50 -> 0 | L50: ='6-tab CR_TF_PRINC'!L50+'6-tab CR_TF_FU'!L50 -> -19961.69
A51: Niveau de la TRESORERIE | H51: ='6-tab CR_TF_PRINC'!H51+'6-tab CR_TF_FU'!H51 -> 13584439.2 | I51: ='6-tab CR_TF_PRINC'!I51+'6-tab CR_TF_FU'!I51 -> 12306124.2 | J51: ='6-tab CR_TF_AGR'!J51+'6-tab CR_TF_SIE'!J51 -> 0 | K51: ='6-tab CR_TF_AGR'!K51+'6-tab CR_TF_SIE'!K51 -> 0 | L51: ='6-tab CR_TF_PRINC'!L51+'6-tab CR_TF_FU'!L51 -> 11190811.1
A53: * : montant issu du tableau "équilibre financier"

Sheet 6-tab CR_TF_PRINC
A1: Tableau 6 - Université de Bretagne Sud (0561718N) : Etablissement principal
A2: ="Situation patrimoniale - Budget "&Maquette!B4&" "&Maquette!B5&" "&Maquette!B3 -> Situation patrimoniale - Budget rectificatif n° 1 2022
A4: POUR VOTE DE L'ORGANE DÉLIBÉRANT
A6: Compte de résultat prévisionnel
A8: CHARGES | B8: Exécution N-1 | C8: Budget initial (a) | D8: Nouveau BR | E8: Somme des BR (yc nouveau BR) (b) | F8: TOTAL : dernier budget modifié (c) = (a) + (b) | G8: PRODUITS | H8: Exécution N-1 | I8: Budget initial (d) | J8: Nouveau BR | K8: Somme des BR (yc nouveau BR) (e) | L8: TOTAL : dernier budget modifié (f) = (d) + (e)
A9: Personnel | B9: 70286181.28 | C9: 75153444 | D9: 169721.53 | E9: =D9 -> 169721.53 | F9: =C9+E9 -> 75323165.53 | G9: Subventions de l'Etat | H9: 70090097.33 | I9: 70854541 | J9: 442083.69 | K9: =J9 -> 442083.69 | L9: =I9+K9 -> 71296624.69
A10: dont charges de pensions civiles* | B10: 19743662.52 | C10: 20455893 | E10: =D10 -> 0 | F10: =C10+E10 -> 20455893 | G10: Fiscalité affectée | H10: 611679.76 | I10: 600000 | J10: 0 | K10: =J10 -> 0 | L10: =I10+K10 -> 600000
A11: Fonctionnement (autre que les charges de personnel) et intervention | B11: 18858129.26 | C11: =21774576-1 -> 21774575 | D11: 1657757.65 | E11: =D11 -> 1657757.65 | F11: =C11+E11 -> 23432332.65 | G11: Autres subventions | H11: 2879040.12 | I11: 5567910 | J11: 1556535.61 | K11: =J11 -> 1556535.61 | L11: 7124445.61
G12: Autres produits | H12: 18909768.4 | I12: =20121701-600000 -> 19521701 | J12: 441782.04 | K12: =J12 -> 441782.04 | L12: 19963483.04
A13: TOTAL DES CHARGES (1) | B13: =B9+B11 -> 89144310.54 | C13: =C9+C11 -> 96928019 | D13: =D9+D11 -> 1827479.18 | E13: 1827479.18 | F13: =F9+F11 -> 98755498.18 | G13: TOTAL DES PRODUITS (2) | H13: =SUM(H9:H12) -> 92490585.61 | I13: =SUM(I9:I12) -> 96544152 | J13: 2440401.34 | K13: 2440401.34 | L13: =SUM(L9:L12) -> 98984553.34
A14: Résultat prévisionnel : bénéfice (3) = (2) - (1) | B14: =IF(H13-B13>0,H13-B13,0) -> 3346275.07 | C14: =IF(I13-C13>0,I13-C13,0) -> 0 | D14: =IF(J13-D13>0,J13-D13,0) -> 612922.16 | E14: =IF(K13-E13>0,K13-E13,0) -> 612922.16 | F14: =IF(L13-F13>0,L13-F13,0) -> 229055.16 | G14: Résultat prévisionnel : perte (4) = (1) - (2) | H14: =IF(B13-H13>0,B13-H13,0) -> 0 | I14: =IF(C13-I13>0,C13-I13,0) -> 383867 | J14: =IF(D13-J13>0,D13-J13,0) -> 0 | K14: =IF(E13-K13>0,E13-K13,0) -> 0 | L14: =IF(F13-L13>0,F13-L13,0) -> 0
A15: TOTAL EQUILIBRE du compte de résultat prévisionnel (1) + (3) = (2) + (4) | B15: =B13+B14 -> 92490585.61 | C15: =C13+C14 -> 96928019 | D15: =D13+D14 -> 2440401.34 | E15: 2440401.34 | F15: =F13+F14 -> 98984553.34 | G15: TOTAL EQUILIBRE du compte de résultat prévisionnel (1) + (3) = (2) + (4) | H15: =H13+H14 -> 92490585.61 | I15: =I13+I14 -> 96928019 | J15: 2440401.34 | K15: 2440401.34 | L15: =L13+L14 -> 98984553.34
A16: * Il s'agit des sous catégories de comptes présentant les contributions employeur au CAS Pensions. | D16: ="Nouveau BR : Différence charges de personnel entre tableau 2 et tableau 6 est de : "&(ROUND(D9,0)-ROUND('2-tab_aut_budg_PRINC'!H11+'2-tab_aut_budg_PRINC'!H24,0)) -> Nouveau BR : Différence charges de personnel entre tableau 2 et tableau 6 est de : 1108 | E16: ="Somme des BR : Différence charges de personnel entre tableau 2 et tableau 6 est de : "&(ROUND(E9,0)-ROUND('2-tab_aut_budg_PRINC'!J11+'2-tab_aut_budg_PRINC'!J24,0)) -> Somme des BR : Différence charges de personnel entre tableau 2 et tableau 6 est de : 1108 | F16: ="Budget BI+BR : Différence charges de personnel entre tableau 2 et tableau 6 est de : "&(ROUND(F9,0)-ROUND('2-tab_aut_budg_PRINC'!L11+'2-tab_aut_budg_PRINC'!L24,0)) -> Budget BI+BR : Différence charges de personnel entre tableau 2 et tableau 6 est de : -788702
A19: Calcul de la capacité d'autofinancement (CAF)
B21: Exécution N-1 | C21: Budget initial (g) | D21: Nouveau BR | E21: Somme des BR (yc nouveau BR) (h) | F21: TOTAL : dernier budget modifié (i) = (g) + (h)
A22: Résultat prévisionnel de l'exercice (bénéfice (3) ou perte (-4) | B22: =IF(B14>0,B14,-H14) -> 3346275.07 | C22: =IF(C14>0,C14,-I14) -> -383867 | D22: =IF(D14>0,D14,-J14) -> 612922.16 | E22: =IF(E14>0,E14,-K14) -> 612922.16 | F22: =IF(F14>0,F14,-L14) -> 229055.16
A23: + dotations aux amortissements, dépréciations et provisions | B23: 7199806.03 | C23: 7628872 | F23: =C23+E23 -> 7628872
A24: - reprises sur amortissements, dépréciations et provisions | B24: -50026.1 | F24: =C24+E24 -> 0
A25: + valeur nette comptable des éléments d'actifs cédés | B25: 23180.45 | F25: =C25+E25 -> 0
A26: - produits de cession d'éléments d'actifs | B26: -16750 | F26: =C26+E26 -> 0
A27: - quote-part des subventions d’investissement virée au résultat de l’exercice | B27: -4977879.39 | C27: -5062535 | F27: =C27+E27 -> -5062535
A28: = CAF ou IAF* | B28: =SUM(B22:B27) -> 5524606.06 | C28: =SUM(C22:C27) -> 2182470 | D28: 612922.16 | E28: 612922.16 | F28: =SUM(F22:F27) -> 2795392.16
A29: * capacité d'autofinancement ou insuffisance d'autofinancement
A32: État prévisionnel de l'évolution de la situation patrimoniale en droits constatés
A34: EMPLOIS | B34: Exécution N-1 | C34: Budget initial (j) | D34: Nouveau BR | E34: Somme des BR (yc nouveau BR) (k) | F34: TOTAL : dernier budget modifié (l) = (j) + (k) | G34: RESSOURCES | H34: Exécution N-1 | I34: Budget initial (m) | J34: Nouveau BR | K34: Somme des BR (yc nouveau BR) (n) | L34: TOTAL : dernier budget modifié (o) = (m) + (n)
A35: Insuffisance d'autofinancement* | B35: =IF(B28<0,-B28,0) -> 0 | C35: =IF(C28<0,-C28,0) -> 0 | D35: =IF(D28<0,-D28,0) -> 0 | E35: =IF(E28<0,-E28,0) -> 0 | F35: =IF(F28<0,-F28,0) -> 0 | G35: Capacité d'autofinancement* | H35: =IF(B28>0,B28,0) -> 5524606.06 | I35: =IF(C28>0,C28,0) -> 2182470 | J35: =IF(D28>0,D28,0) -> 612922.16 | K35: =IF(E28>0,E28,0) -> 612922.16 | L35: =IF(F28>0,F28,0) -> 2795392.16
A36: Investissements | B36: 5626852.59 | C36: 7058450 | D36: 1607785.62 | E36: =D36 -> 1607785.62 | F36: =C36+E36 -> 8666235.62 | G36: Financement de l'actif par l'État | H36: 2448903.86 | I36: 150000 | J36: 425431.02 | K36: =J36 -> 425431.02 | L36: =I36+K36 -> 575431.02
G37: Financement de l'actif par des tiers autres que l'Etat | H37: 561185.09 | I37: 2100000 | J37: 101214.04 | K37: =J37 -> 101214.04 | L37: =I37+K37 -> 2201214.04
G38: Autres ressources | H38: 16750 | I38: 312278 | K38: =J38 -> 0 | L38: 312278
A39: Remboursement des dettes financières | F39: =C39+E39 -> 0 | G39: Augmentation des dettes financières | L39: 0
A40: TOTAL DES EMPLOIS (5) | B40: =SUM(B35:B39) -> 5626852.59 | C40: 7058450 | D40: 1607785.62 | E40: =SUM(E35:E39) -> 1607785.62 | F40: =SUM(F35:F39) -> 8666235.62 | G40: TOTAL DES RESSOURCES (6) | H40: =SUM(H35:H39) -> 8551445.01 | I40: 4744748 | J40: 1139567.22 | K40: 1139567.22 | L40: =SUM(L35:L39) -> 5884315.22
A41: APPORT au FONDS DE ROULEMENT (7) = (6)-(5) | B41: =IF(H40-B40>0,H40-B40,0) -> 2924592.42 | C41: =IF(I40-C40>0,I40-C40,0) -> 0 | D41: =IF(J40-D40>0,J40-D40,0) -> 0 | E41: =IF(K40-E40>0,K40-E40,0) -> 0 | F41: =IF(L40-F40>0,L40-F40,0) -> 0 | G41: PRELEVEMENT sur FONDS DE ROULEMENT (8) = (5)-(6) | H41: =IF(B40-H40>0,B40-H40,0) -> 0 | I41: =IF(C40-I40>0,C40-I40,0) -> 2313702 | J41: =IF(D40-J40>0,D40-J40,0) -> 468218.4 | K41: =IF(E40-K40>0,E40-K40,0) -> 468218.4 | L41: =IF(F40-L40>0,F40-L40,0) -> 2781920.4
A43: POUR INFORMATION DE L'ORGANE DÉLIBÉRANT
H45: Exécution N-1 | I45: Budget initial (q) | J45: Nouveau BR | K45: Somme des BR (yc nouveau BR) (r) | L45: TOTAL : dernier budget modifié Variation (s) = (q) + (r) Niveau = (p) + (s)
A46: VARIATION DU FONDS DE ROULEMENT : APPORT (7) ou PRELEVEMENT (8) | H46: =IF(B41>0,B41,-H41) -> 2924592.42 | I46: =IF(C41>0,C41,-I41) -> -2313702 | J46: =IF(D41>0,D41,-J41) -> -468218.4 | K46: =IF(E41>0,E41,-K41) -> -468218.4 | L46: =I46+K46 -> -2781920.4
A47: Variation du BESOIN en FONDS DE ROULEMENT | H47: =H46-H48 -> -948806.8 | I47: =I46-I48 -> -900712 | J47: =J46-J48 -> 647683.7 | K47: 647683.7 | L47: =L46-L48 -> -253028.3
A48: Variation de la TRESORERIE : ABONDEMENT (I) ou PRELEVEMENT (II) * | H48: 3873399.22 | I48: -1412990 | J48: =-('2-tab_aut_budg_PRINC'!P30)-52699.25 -> -1115902.1 | K48: =J48 -> -1115902.1 | L48: =I48+K48 -> -2528892.1
A49: Niveau du FONDS DE ROULEMENT | H49: 13573648.82 | I49: =H49+I46 -> 11259946.82 | L49: =H49+L46 -> 10791728.42
A50: Niveau du BESOIN EN FONDS DE ROULEMENT | H50: =H49-H51 -> 163229.6 | I50: =I49-I51 -> -737482.4 | J50: 0 | K50: 0 | L50: =L49-L51 -> -89798.7
A51: Niveau de la TRESORERIE | H51: 13410419.22 | I51: =H51+I48 -> 11997429.22 | L51: =H51+L48 -> 10881527.12
A53: * : montant issu du tableau "équilibre financier"

Sheet 6-tab CR_TF_FU
A1: Tableau 6 - Université de Bretagne Sud (0561718N) : Fondation
A2: ="Situation patrimoniale - Budget "&Maquette!B4&" "&Maquette!B5&" "&Maquette!B3 -> Situation patrimoniale - Budget rectificatif n° 1 2022
A4: POUR VOTE DE L'ORGANE DÉLIBÉRANT
A6: Compte de résultat prévisionnel
A8: CHARGES | B8: Exécution N-1 | C8: Budget initial (a) | D8: Nouveau BR | E8: Somme des BR (yc nouveau BR) (b) | F8: TOTAL : dernier budget modifié (c) = (a) + (b) | G8: PRODUITS | H8: Exécution N-1 | I8: Budget initial (d) | J8: Nouveau BR | K8: Somme des BR (yc nouveau BR) (e) | L8: TOTAL : dernier budget modifié (f) = (d) + (e)
A9: Personnel | B9: 88011.15 | C9: 190105 | D9: 478.24 | E9: =D9 -> 478.24 | F9: =C9+E9 -> 190583.24 | G9: Subventions de l'Etat | H9: 6530.11 | K9: =J9 -> 0 | L9: =I9+K9 -> 0
A10: dont charges de pensions civiles* | F10: =C10+E10 -> 0 | G10: Fiscalité affectée | K10: =J10 -> 0 | L10: =I10+K10 -> 0
A11: Fonctionnement (autre que les charges de personnel) et intervention | B11: 380356.35 | C11: 313184 | E11: =D11 -> 0 | F11: =C11+E11 -> 313184 | G11: Autres subventions | H11: 100152.6 | I11: 210000 | J11: 478.24 | K11: 478.24 | L11: 210478.24
G12: Autres produits | H12: 352863.03 | I12: 347758 | K12: 0 | L12: 347758
A13: TOTAL DES CHARGES (1) | B13: =B9+B11 -> 468367.5 | C13: =C9+C11 -> 503289 | D13: =D9+D11 -> 478.24 | E13: 478.24 | F13: =F9+F11 -> 503767.24 | G13: TOTAL DES PRODUITS (2) | H13: =SUM(H9:H12) -> 459545.74 | I13: =SUM(I9:I12) -> 557758 | J13: 478.24 | K13: 478.24 | L13: =SUM(L9:L12) -> 558236.24
A14: Résultat prévisionnel : bénéfice (3) = (2) - (1) | B14: =IF(H13-B13>0,H13-B13,0) -> 0 | C14: =IF(I13-C13>0,I13-C13,0) -> 54469 | D14: =IF(J13-D13>0,J13-D13,0) -> 0 | E14: =IF(K13-E13>0,K13-E13,0) -> 0 | F14: =IF(L13-F13>0,L13-F13,0) -> 54469 | G14: Résultat prévisionnel : perte (4) = (1) - (2) | H14: =IF(B13-H13>0,B13-H13,0) -> 8821.76 | I14: =IF(C13-I13>0,C13-I13,0) -> 0 | J14: =IF(D13-J13>0,D13-J13,0) -> 0 | K14: =IF(E13-K13>0,E13-K13,0) -> 0 | L14: =IF(F13-L13>0,F13-L13,0) -> 0
A15: TOTAL EQUILIBRE du compte de résultat prévisionnel (1) + (3) = (2) + (4) | B15: =B13+B14 -> 468367.5 | C15: =C13+C14 -> 557758 | D15: =D13+D14 -> 478.24 | E15: 478.24 | F15: =F13+F14 -> 558236.24 | G15: TOTAL EQUILIBRE du compte de résultat prévisionnel (1) + (3) = (2) + (4) | H15: =H13+H14 -> 468367.5 | I15: =I13+I14 -> 557758 | J15: 478.24 | K15: 478.24 | L15: =L13+L14 -> 558236.24
A16: * Il s'agit des sous catégories de comptes présentant les contributions employeur au CAS Pensions. | D16: ="Nouveau BR : Différence charges de personnel entre tableau 2 et tableau 6 est de : "&(ROUND(D9,0)-ROUND('2-tab_aut_budg_FU'!H11+'2-tab_aut_budg_FU'!H24,0)) -> Nouveau BR : Différence charges de personnel entre tableau 2 et tableau 6 est de : 0 | E16: ="Somme des BR : Différence charges de personnel entre tableau 2 et tableau 6 est de : "&(ROUND(E9,0)-ROUND('2-tab_aut_budg_FU'!J11+'2-tab_aut_budg_FU'!J24,0)) -> Somme des BR : Différence charges de personnel entre tableau 2 et tableau 6 est de : 0 | F16: ="Budget BI+BR : Différence charges de personnel entre tableau 2 et tableau 6 est de : "&(ROUND(F9,0)-ROUND('2-tab_aut_budg_FU'!L11+'2-tab_aut_budg_FU'!L24,0)) -> Budget BI+BR : Différence charges de personnel entre tableau 2 et tableau 6 est de : -2895
A19: Calcul de la capacité d'autofinancement (CAF)
B21: Exécution N-1 | C21: Budget initial (g) | D21: Nouveau BR | E21: Somme des BR (yc nouveau BR) (h) | F21: TOTAL : dernier budget modifié (i) = (g) + (h)
A22: Résultat prévisionnel de l'exercice (bénéfice (3) ou perte (-4) | B22: =IF(B14>0,B14,-H14) -> -8821.76 | C22: =IF(C14>0,C14,-I14) -> 54469 | D22: =IF(D14>0,D14,-J14) -> 0 | E22: =IF(E14>0,E14,-K14) -> 0 | F22: =IF(F14>0,F14,-L14) -> 54469
A23: + dotations aux amortissements, dépréciations et provisions | B23: 227826.77 | C23: 30289 | E23: =D23 -> 0 | F23: =C23+E23 -> 30289
A24: - reprises sur amortissements, dépréciations et provisions | B24: -207141.18 | E24: =D24 -> 0 | F24: =C24+E24 -> 0
A25: + valeur nette comptable des éléments d'actifs cédés | E25: 0 | F25: =C25+E25 -> 0
A26: - produits de cession d'éléments d'actifs | E26: 0 | F26: =C26+E26 -> 0
A27: - quote-part des subventions d’investissement virée au résultat de l’exercice | B27: -11459.85 | C27: -10083 | E27: 0 | F27: =C27+E27 -> -10083
A28: = CAF ou IAF* | B28: =SUM(B22:B27) -> 403.98 | C28: =SUM(C22:C27) -> 74675 | D28: 0 | E28: 0 | F28: =SUM(F22:F27) -> 74675
A29: * capacité d'autofinancement ou insuffisance d'autofinancement
A32: État prévisionnel de l'évolution de la situation patrimoniale en droits constatés
A34: EMPLOIS | B34: Exécution N-1 | C34: Budget initial (j) | D34: Nouveau BR | E34: Somme des BR (yc nouveau BR) (k) | F34: TOTAL : dernier budget modifié (l) = (j) + (k) | G34: RESSOURCES | H34: Exécution N-1 | I34: Budget initial (m) | J34: Nouveau BR | K34: Somme des BR (yc nouveau BR) (n) | L34: TOTAL : dernier budget modifié (o) = (m) + (n)
A35: Insuffisance d'autofinancement* | B35: =IF(B28<0,-B28,0) -> 0 | C35: =IF(C28<0,-C28,0) -> 0 | D35: =IF(D28<0,-D28,0) -> 0 | E35: =IF(E28<0,-E28,0) -> 0 | F35: =IF(F28<0,-F28,0) -> 0 | G35: Capacité d'autofinancement* | H35: =IF(B28>0,B28,0) -> 403.98 | I35: =IF(C28>0,C28,0) -> 74675 | J35: =IF(D28>0,D28,0) -> 0 | K35: =IF(E28>0,E28,0) -> 0 | L35: =IF(F28>0,F28,0) -> 74675
A36: Investissements | B36: 15583.13 | C36: 45000 | E36: =D36 -> 0 | F36: =C36+E36 -> 45000 | G36: Financement de l'actif par l'État | K36: =J36 -> 0 | L36: =I36+K36 -> 0
G37: Financement de l'actif par des tiers autres que l'Etat | H37: 10523.31 | K37: =J37 -> 0 | L37: =I37+K37 -> 0
G38: Autres ressources | H38: 28139.9 | I38: 176217 | K38: 0 | L38: 176217
A39: Remboursement des dettes financières | F39: =C39+E39 -> 0 | G39: Augmentation des dettes financières | K39: 0 | L39: 0
A40: TOTAL DES EMPLOIS (5) | B40: =SUM(B35:B39) -> 15583.13 | C40: 45000 | D40: 0 | E40: =SUM(E35:E39) -> 0 | F40: =SUM(F35:F39) -> 45000 | G40: TOTAL DES RESSOURCES (6) | H40: =SUM(H35:H39) -> 39067.19 | I40: 250892 | J40: 0 | K40: 0 | L40: =SUM(L35:L39) -> 250892
A41: APPORT au FONDS DE ROULEMENT (7) = (6)-(5) | B41: =IF(H40-B40>0,H40-B40,0) -> 23484.06 | C41: =IF(I40-C40>0,I40-C40,0) -> 205892 | D41: =IF(J40-D40>0,J40-D40,0) -> 0 | E41: =IF(K40-E40>0,K40-E40,0) -> 0 | F41: =IF(L40-F40>0,L40-F40,0) -> 205892 | G41: PRELEVEMENT sur FONDS DE ROULEMENT (8) = (5)-(6) | H41: =IF(B40-H40>0,B40-H40,0) -> 0 | I41: =IF(C40-I40>0,C40-I40,0) -> 0 | J41: =IF(D40-J40>0,D40-J40,0) -> 0 | K41: =IF(E40-K40>0,E40-K40,0) -> 0 | L41: =IF(F40-L40>0,F40-L40,0) -> 0
A43: POUR INFORMATION DE L'ORGANE DÉLIBÉRANT
H45: Exécution N-1 | I45: Budget initial (q) | J45: Nouveau BR | K45: Somme des BR (yc nouveau BR) (r) | L45: TOTAL : dernier budget modifié Variation (s) = (q) + (r) Niveau = (p) + (s)
A46: VARIATION DU FONDS DE ROULEMENT : APPORT (7) ou PRELEVEMENT (8) | H46: =IF(B41>0,B41,-H41) -> 23484.06 | I46: =IF(C41>0,C41,-I41) -> 205892 | J46: =IF(D41>0,D41,-J41) -> 0 | K46: =IF(E41>0,E41,-K41) -> 0 | L46: =I46+K46 -> 205892
A47: Variation du BESOIN en FONDS DE ROULEMENT | H47: =H46-H48 -> -108310.56 | I47: =I46-I48 -> 71217 | J47: =J46-J48 -> -589 | K47: =J47 -> -589 | L47: =L46-L48 -> 70628
A48: Variation de la TRESORERIE : ABONDEMENT (I) ou PRELEVEMENT (II) * | H48: 131794.62 | I48: ='2-tab_aut_budg_FU'!F30 -> 134675 | J48: 589 | K48: =J48 -> 589 | L48: =I48+K48 -> 135264
A49: Niveau du FONDS DE ROULEMENT | H49: 173228.99 | I49: =H49+I46 -> 379120.99 | L49: =H49+L46 -> 379120.99
A50: Niveau du BESOIN EN FONDS DE ROULEMENT | H50: =H49-H51 -> -790.99 | I50: =I49-I51 -> 70426.01 | J50: 0 | K50: 0 | L50: =L49-L51 -> 69837.01
A51: Niveau de la TRESORERIE | H51: 174019.98 | I51: =H51+I48 -> 308694.98 | L51: =H51+L48 -> 309283.98
A53: * : montant issu du tableau "équilibre financier"

Sheet 6-tab CR_TF_AGR (hidden)
A1: Tableau 6 - Université de Bretagne Sud (0561718N) : Etablissement principal + Fondation
A2: ="Situation patrimoniale - Budget agrégé "&Maquette!B4&" "&Maquette!B5&" "&Maquette!B3 -> Situation patrimoniale - Budget agrégé rectificatif n° 1 2022
A4: POUR VOTE DE L'ORGANE DÉLIBÉRANT
A6: Compte de résultat prévisionnel | B6: =IF(ROUND(F13,-1)=ROUND('6-tab CR_TF_PRINC'!F13+'6-tab CR_TF_FU'!F13,-1),"","! Pb agrégat charges") ->  | G6: =IF(ROUND(L13,-1)=ROUND('6-tab CR_TF_PRINC'!L13+'6-tab CR_TF_FU'!L13,-1),"","! Pb agrégat produits") -> 
A8: CHARGES | B8: Exécution N-1 | C8: Budget initial (a) | D8: Nouveau BR | E8: Somme des BR (yc nouveau BR) (b) | F8: TOTAL : dernier budget modifié (c) = (a) + (b) | G8: PRODUITS | H8: Exécution N-1 | I8: Budget initial (d) | J8: Nouveau BR | K8: Somme des BR (yc nouveau BR) (e) | L8: TOTAL : dernier budget modifié (f) = (d) + (e)
A9: Personnel | B9: ='6-tab CR_TF_PRINC'!B9+'6-tab CR_TF_FU'!B9 -> 70374192.43 | C9: ='6-tab CR_TF_PRINC'!C9+'6-tab CR_TF_FU'!C9 -> 75343549 | D9: ='6-tab CR_TF_PRINC'!D9+'6-tab CR_TF_FU'!D9 -> 170199.77 | E9: ='6-tab CR_TF_PRINC'!E9+'6-tab CR_TF_FU'!E9 -> 170199.77 | F9: =C9+E9 -> 75513748.77 | G9: Subventions de l'Etat | H9: ='6-tab CR_TF_PRINC'!H9+'6-tab CR_TF_FU'!H9 -> 70096627.44 | I9: ='6-tab CR_TF_PRINC'!I9+'6-tab CR_TF_FU'!I9 -> 70854541 | J9: ='6-tab CR_TF_PRINC'!J9+'6-tab CR_TF_FU'!J9 -> 442083.69 | K9: ='6-tab CR_TF_PRINC'!K9+'6-tab CR_TF_FU'!K9 -> 442083.69 | L9: =I9+K9 -> 71296624.69
A10: dont charges de pensions civiles* | B10: ='6-tab CR_TF_PRINC'!B10+'6-tab CR_TF_FU'!B10 -> 19743662.52 | C10: ='6-tab CR_TF_PRINC'!C10+'6-tab CR_TF_FU'!C10 -> 20455893 | D10: ='6-tab CR_TF_PRINC'!D10+'6-tab CR_TF_FU'!D10 -> 0 | E10: ='6-tab CR_TF_PRINC'!E10+'6-tab CR_TF_FU'!E10 -> 0 | F10: =C10+E10 -> 20455893 | G10: Fiscalité affectée | H10: ='6-tab CR_TF_PRINC'!H10+'6-tab CR_TF_FU'!H10 -> 611679.76 | I10: ='6-tab CR_TF_PRINC'!I10+'6-tab CR_TF_FU'!I10 -> 600000 | J10: ='6-tab CR_TF_PRINC'!J10+'6-tab CR_TF_FU'!J10 -> 0 | K10: ='6-tab CR_TF_PRINC'!K10+'6-tab CR_TF_FU'!K10 -> 0 | L10: =I10+K10 -> 600000
A11: Fonctionnement (autre que les charges de personnel) et intervention | B11: ='6-tab CR_TF_PRINC'!B11+'6-tab CR_TF_FU'!B11 -> 19238485.61 | C11: ='6-tab CR_TF_PRINC'!C11+'6-tab CR_TF_FU'!C11 -> 22087759 | D11: ='6-tab CR_TF_PRINC'!D11+'6-tab CR_TF_FU'!D11 -> 1657757.65 | E11: ='6-tab CR_TF_PRINC'!E11+'6-tab CR_TF_FU'!E11 -> 1657757.65 | F11: =C11+E11 -> 23745516.65 | G11: Autres subventions | H11: ='6-tab CR_TF_PRINC'!H11+'6-tab CR_TF_FU'!H11 -> 2979192.72 | I11: ='6-tab CR_TF_PRINC'!I11+'6-tab CR_TF_FU'!I11 -> 5777910 | J11: ='6-tab CR_TF_PRINC'!J11+'6-tab CR_TF_FU'!J11 -> 1557013.85 | K11: ='6-tab CR_TF_PRINC'!K11+'6-tab CR_TF_FU'!K11 -> 1557013.85 | L11: 7334923.85
B12: ='6-tab CR_TF_PRINC'!B12+'6-tab CR_TF_FU'!B12 -> 0 | C12: ='6-tab CR_TF_PRINC'!C12+'6-tab CR_TF_FU'!C12 -> 0 | D12: ='6-tab CR_TF_PRINC'!D12+'6-tab CR_TF_FU'!D12 -> 0 | E12: ='6-tab CR_TF_PRINC'!E12+'6-tab CR_TF_FU'!E12 -> 0 | G12: Autres produits | H12: ='6-tab CR_TF_PRINC'!H12+'6-tab CR_TF_FU'!H12 -> 19262631.43 | I12: ='6-tab CR_TF_PRINC'!I12+'6-tab CR_TF_FU'!I12 -> 19869459 | J12: ='6-tab CR_TF_PRINC'!J12+'6-tab CR_TF_FU'!J12 -> 441782.04 | K12: ='6-tab CR_TF_PRINC'!K12+'6-tab CR_TF_FU'!K12 -> 441782.04 | L12: 20311241.04
A13: TOTAL DES CHARGES (1) | B13: =B9+B11 -> 89612678.04 | C13: =C9+C11 -> 97431308 | D13: =D9+D11 -> 1827957.42 | E13: 1827957.42 | F13: =F9+F11 -> 99259265.42 | G13: TOTAL DES PRODUITS (2) | H13: =SUM(H9:H12) -> 92950131.35 | I13: =SUM(I9:I12) -> 97101910 | J13: 2440879.58 | K13: 2440879.58 | L13: =SUM(L9:L12) -> 99542789.58
A14: Résultat prévisionnel : bénéfice (3) = (2) - (1) | B14: =IF(H13-B13>0,H13-B13,0) -> 3337453.31 | C14: =IF(I13-C13>0,I13-C13,0) -> 0 | D14: =IF(J13-D13>0,J13-D13,0) -> 612922.16 | E14: =IF(K13-E13>0,K13-E13,0) -> 612922.16 | F14: =IF(L13-F13>0,L13-F13,0) -> 283524.16 | G14: Résultat prévisionnel : perte (4) = (1) - (2) | H14: =IF(B13-H13>0,B13-H13,0) -> 0 | I14: =IF(C13-I13>0,C13-I13,0) -> 329398 | J14: =IF(D13-J13>0,D13-J13,0) -> 0 | K14: =IF(E13-K13>0,E13-K13,0) -> 0 | L14: =IF(F13-L13>0,F13-L13,0) -> 0
A15: TOTAL EQUILIBRE du compte de résultat prévisionnel (1) + (3) = (2) + (4) | B15: =B13+B14 -> 92950131.35 | C15: =C13+C14 -> 97431308 | D15: =D13+D14 -> 2440879.58 | E15: 2440879.58 | F15: =F13+F14 -> 99542789.58 | G15: TOTAL EQUILIBRE du compte de résultat prévisionnel (1) + (3) = (2) + (4) | H15: =H13+H14 -> 92950131.35 | I15: =I13+I14 -> 97431308 | J15: 2440879.58 | K15: 2440879.58 | L15: =L13+L14 -> 99542789.58
A16: * Il s'agit des sous catégories de comptes présentant les contributions employeur au CAS Pensions. | B16: ="Exécution N-1 : Différence charges de personnel entre tableau 2 et tableau 6 est de : "&(ROUND(B9,0)-ROUND(#REF!+#REF!,0)) ->  | C16: ="BI : Différence charges de personnel entre tableau 2 et tableau 6 est de : "&(ROUND(C9,0)-ROUND(#REF!+#REF!,0)) ->  | D16: ="Nouveau BR : Différence charges de personnel entre tableau 2 et tableau 6 est de : "&(ROUND(D9,0)-ROUND(#REF!+#REF!,0)) ->  | E16: ="Somme des BR : Différence charges de personnel entre tableau 2 et tableau 6 est de : "&(ROUND(E9,0)-ROUND(#REF!+#REF!,0)) ->  | F16: ="Budget BI+BR : Différence charges de personnel entre tableau 2 et tableau 6 est de : "&(ROUND(F9,0)-ROUND(#REF!+#REF!,0)) -> 
B17: =IF(#REF!="",IF(ROUND(B10,-1)<>ROUND(#REF!,-1),"! Incohérence charges PC Tab2 AGR",""),"") ->  | C17: =IF(#REF!="",IF(ROUND(C10,-1)<>ROUND(#REF!,-1),"! Incohérence charges PC Tab2 AGR",""),"") ->  | D17: =IF(#REF!="",IF(ROUND(D10,-1)<>ROUND(#REF!,-1),"! Incohérence charges PC Tab2 AGR",""),"") ->  | E17: =IF(#REF!="",IF(ROUND(E10,-1)<>ROUND(#REF!,-1),"! Incohérence charges PC Tab2 AGR",""),"") ->  | F17: =IF(#REF!="",IF(ROUND(F10,-1)<>ROUND(#REF!,-1),"! Incohérence charges PCl Tab2 AGR",""),"") -> 
A19: Calcul de la capacité d'autofinancement (CAF) | B19: =IF(ROUND(F28,-1)=ROUND('6-tab CR_TF_PRINC'!F28+'6-tab CR_TF_FU'!F28,-1),"","! Pb agrégat CAF/IAF") -> 
B21: Exécution N-1 | C21: Budget initial (g) | D21: Nouveau BR | E21: Somme des BR (yc nouveau BR) (h) | F21: TOTAL : dernier budget modifié (i) = (g) + (h)
A22: Résultat prévisionnel de l'exercice (bénéfice (3) ou perte (-4) | B22: =IF(B14>0,B14,-H14) -> 3337453.31 | C22: =IF(C14>0,C14,-I14) -> -329398 | D22: =IF(D14>0,D14,-J14) -> 612922.16 | E22: =IF(E14>0,E14,-K14) -> 612922.16 | F22: =IF(F14>0,F14,-L14) -> 283524.16
A23: + dotations aux amortissements, dépréciations et provisions | B23: ='6-tab CR_TF_PRINC'!B23+'6-tab CR_TF_FU'!B23 -> 7427632.8 | C23: ='6-tab CR_TF_PRINC'!C23+'6-tab CR_TF_FU'!C23 -> 7659161 | D23: ='6-tab CR_TF_PRINC'!D23+'6-tab CR_TF_FU'!D23 -> 0 | E23: ='6-tab CR_TF_PRINC'!E23+'6-tab CR_TF_FU'!E23 -> 0 | F23: =C23+E23 -> 7659161
A24: - reprises sur amortissements, dépréciations et provisions | B24: ='6-tab CR_TF_PRINC'!B24+'6-tab CR_TF_FU'!B24 -> -257167.28 | C24: ='6-tab CR_TF_PRINC'!C24+'6-tab CR_TF_FU'!C24 -> 0 | D24: ='6-tab CR_TF_PRINC'!D24+'6-tab CR_TF_FU'!D24 -> 0 | E24: ='6-tab CR_TF_PRINC'!E24+'6-tab CR_TF_FU'!E24 -> 0 | F24: =C24+E24 -> 0
A25: + valeur nette comptable des éléments d'actifs cédés | B25: ='6-tab CR_TF_PRINC'!B25+'6-tab CR_TF_FU'!B25 -> 23180.45 | C25: ='6-tab CR_TF_PRINC'!C25+'6-tab CR_TF_FU'!C25 -> 0 | D25: ='6-tab CR_TF_PRINC'!D25+'6-tab CR_TF_FU'!D25 -> 0 | E25: ='6-tab CR_TF_PRINC'!E25+'6-tab CR_TF_FU'!E25 -> 0 | F25: =C25+E25 -> 0
A26: - produits de cession d'éléments d'actifs | B26: ='6-tab CR_TF_PRINC'!B26+'6-tab CR_TF_FU'!B26 -> -16750 | C26: ='6-tab CR_TF_PRINC'!C26+'6-tab CR_TF_FU'!C26 -> 0 | D26: ='6-tab CR_TF_PRINC'!D26+'6-tab CR_TF_FU'!D26 -> 0 | E26: ='6-tab CR_TF_PRINC'!E26+'6-tab CR_TF_FU'!E26 -> 0 | F26: =C26+E26 -> 0
A27: - quote-part des subventions d’investissement virée au résultat de l’exercice | B27: ='6-tab CR_TF_PRINC'!B27+'6-tab CR_TF_FU'!B27 -> -4989339.24 | C27: ='6-tab CR_TF_PRINC'!C27+'6-tab CR_TF_FU'!C27 -> -5072618 | D27: ='6-tab CR_TF_PRINC'!D27+'6-tab CR_TF_FU'!D27 -> 0 | E27: ='6-tab CR_TF_PRINC'!E27+'6-tab CR_TF_FU'!E27 -> 0 | F27: =C27+E27 -> -5072618
A28: = CAF ou IAF* | B28: =SUM(B22:B27) -> 5525010.04 | C28: =SUM(C22:C27) -> 2257145 | D28: 612922.16 | E28: 612922.16 | F28: =SUM(F22:F27) -> 2870067.16
A29: * capacité d'autofinancement ou insuffisance d'autofinancement
A32: État prévisionnel de l'évolution de la situation patrimoniale en droits constatés | D32: =IF(ROUND(F41,-1)=ROUND('6-tab CR_TF_PRINC'!F41+'6-tab CR_TF_FU'!F41,-1),"","! Pb agrégat apport FDR") -> ! Pb agrégat apport FDR | G32: =IF(ROUND(L41,-1)=ROUND('6-tab CR_TF_PRINC'!L41+'6-tab CR_TF_FU'!L41,-1),"","! Pb agrégat prélèvement FDR") -> ! Pb agrégat prélèvement FDR
A34: EMPLOIS | B34: Exécution N-1 | C34: Budget initial (j) | D34: Nouveau BR | E34: Somme des BR (yc nouveau BR) (k) | F34: TOTAL : dernier budget modifié (l) = (j) + (k) | G34: RESSOURCES | H34: Exécution N-1 | I34: Budget initial (m) | J34: Nouveau BR | K34: Somme des BR (yc nouveau BR) (n) | L34: TOTAL : dernier budget modifié (o) = (m) + (n)
A35: Insuffisance d'autofinancement* | B35: =IF(B28<0,-B28,0) -> 0 | C35: =IF(C28<0,-C28,0) -> 0 | D35: =IF(D28<0,-D28,0) -> 0 | E35: =IF(E28<0,-E28,0) -> 0 | F35: =IF(F28<0,-F28,0) -> 0 | G35: Capacité d'autofinancement* | H35: =IF(B28>0,B28,0) -> 5525010.04 | I35: =IF(C28>0,C28,0) -> 2257145 | J35: =IF(D28>0,D28,0) -> 612922.16 | K35: =IF(E28>0,E28,0) -> 612922.16 | L35: =IF(F28>0,F28,0) -> 2870067.16
A36: Investissements | B36: ='6-tab CR_TF_PRINC'!B36+'6-tab CR_TF_FU'!B36 -> 5642435.72 | C36: ='6-tab CR_TF_PRINC'!C36+'6-tab CR_TF_FU'!C36 -> 7103450 | D36: ='6-tab CR_TF_PRINC'!D36+'6-tab CR_TF_FU'!D36 -> 1607785.62 | E36: ='6-tab CR_TF_PRINC'!E36+'6-tab CR_TF_FU'!E36 -> 1607785.62 | F36: =C36+E36 -> 8711235.62 | G36: Financement de l'actif par l'État | H36: ='6-tab CR_TF_PRINC'!H36+'6-tab CR_TF_FU'!H36 -> 2448903.86 | I36: ='6-tab CR_TF_PRINC'!I36+'6-tab CR_TF_FU'!I36 -> 150000 | J36: ='6-tab CR_TF_PRINC'!J36+'6-tab CR_TF_FU'!J36 -> 425431.02 | K36: ='6-tab CR_TF_PRINC'!K36+'6-tab CR_TF_FU'!K36 -> 425431.02 | L36: =I36+K36 -> 575431.02
B37: ='6-tab CR_TF_PRINC'!B37+'6-tab CR_TF_FU'!B37 -> 0 | C37: ='6-tab CR_TF_PRINC'!C37+'6-tab CR_TF_FU'!C37 -> 0 | D37: ='6-tab CR_TF_PRINC'!D37+'6-tab CR_TF_FU'!D37 -> 0 | E37: ='6-tab CR_TF_PRINC'!E37+'6-tab CR_TF_FU'!E37 -> 0 | G37: Financement de l'actif par des tiers autres que l'Etat | H37: ='6-tab CR_TF_PRINC'!H37+'6-tab CR_TF_FU'!H37 -> 571708.4 | I37: ='6-tab CR_TF_PRINC'!I37+'6-tab CR_TF_FU'!I37 -> 2100000 | J37: ='6-tab CR_TF_PRINC'!J37+'6-tab CR_TF_FU'!J37 -> 101214.04 | K37: ='6-tab CR_TF_PRINC'!K37+'6-tab CR_TF_FU'!K37 -> 101214.04 | L37: =I37+K37 -> 2201214.04
B38: ='6-tab CR_TF_PRINC'!B38+'6-tab CR_TF_FU'!B38 -> 0 | C38: ='6-tab CR_TF_PRINC'!C38+'6-tab CR_TF_FU'!C38 -> 0 | D38: ='6-tab CR_TF_PRINC'!D38+'6-tab CR_TF_FU'!D38 -> 0 | E38: ='6-tab CR_TF_PRINC'!E38+'6-tab CR_TF_FU'!E38 -> 0 | G38: Autres ressources | H38: ='6-tab CR_TF_PRINC'!H38+'6-tab CR_TF_FU'!H38 -> 44889.9 | I38: ='6-tab CR_TF_PRINC'!I38+'6-tab CR_TF_FU'!I38 -> 488495 | J38: ='6-tab CR_TF_PRINC'!J38+'6-tab CR_TF_FU'!J38 -> 0 | K38: ='6-tab CR_TF_PRINC'!K38+'6-tab CR_TF_FU'!K38 -> 0 | L38: 488495
A39: Remboursement des dettes financières | B39: ='6-tab CR_TF_PRINC'!B39+'6-tab CR_TF_FU'!B39 -> 0 | C39: ='6-tab CR_TF_PRINC'!C39+'6-tab CR_TF_FU'!C39 -> 0 | D39: ='6-tab CR_TF_PRINC'!D39+'6-tab CR_TF_FU'!D39 -> 0 | E39: ='6-tab CR_TF_PRINC'!E39+'6-tab CR_TF_FU'!E39 -> 0 | F39: =C39+E39 -> 0 | G39: Augmentation des dettes financières | H39: ='6-tab CR_TF_PRINC'!H39+'6-tab CR_TF_FU'!H39 -> 0 | I39: ='6-tab CR_TF_PRINC'!I39+'6-tab CR_TF_FU'!I39 -> 0 | J39: ='6-tab CR_TF_PRINC'!J39+'6-tab CR_TF_FU'!J39 -> 0 | K39: ='6-tab CR_TF_PRINC'!K39+'6-tab CR_TF_FU'!K39 -> 0 | L39: 0
A40: TOTAL DES EMPLOIS (5) | B40: =SUM(B35:B39) -> 5642435.72 | C40: 7103450 | D40: 1607785.62 | E40: =SUM(E35:E39) -> 1607785.62 | F40: =SUM(F35:F39) -> 8711235.62 | G40: TOTAL DES RESSOURCES (6) | H40: =SUM(H35:H39) -> 8590512.2 | I40: 4995640 | J40: 1139567.22 | K40: 1139567.22 | L40: =SUM(L35:L39) -> 6135207.22
A41: APPORT au FONDS DE ROULEMENT (7) = (6)-(5) | B41: =IF(H40-B40>0,H40-B40,0) -> 2948076.48 | C41: =IF(I40-C40>0,I40-C40,0) -> 0 | D41: =IF(J40-D40>0,J40-D40,0) -> 0 | E41: =IF(K40-E40>0,K40-E40,0) -> 0 | F41: =IF(L40-F40>0,L40-F40,0) -> 0 | G41: PRELEVEMENT sur FONDS DE ROULEMENT (8) = (5)-(6) | H41: =IF(B40-H40>0,B40-H40,0) -> 0 | I41: =IF(C40-I40>0,C40-I40,0) -> 2107810 | J41: =IF(D40-J40>0,D40-J40,0) -> 468218.4 | K41: =IF(E40-K40>0,E40-K40,0) -> 468218.4 | L41: =IF(F40-L40>0,F40-L40,0) -> 2576028.4
A43: POUR INFORMATION DE L'ORGANE DÉLIBÉRANT
H45: Exécution N-1 (p) | I45: Budget initial (q) | J45: Nouveau BR | K45: Somme des BR (yc nouveau BR) (r) | L45: TOTAL : dernier budget modifié Variation (s) = (q) + (r) Niveau = (p) + (s)
A46: VARIATION DU FONDS DE ROULEMENT : APPORT (7) ou PRELEVEMENT (8) | H46: =IF(B41>0,B41,-H41) -> 2948076.48 | I46: =IF(C41>0,C41,-I41) -> -2107810 | J46: =IF(D41>0,D41,-J41) -> -468218.4 | K46: =IF(E41>0,E41,-K41) -> -468218.4 | L46: =I46+K46 -> -2576028.4 | N46: =IF(L46<0,IF(ROUND(L46,-1)=-ROUND(#REF!,-1),"! Impossibilité Var fonds de roulement = Solde budg Tab2 AGR",""),IF(L46>0,IF(ROUND(L46,-1)=ROUND(#REF!,-1),"! Impossibilité Var fonds de roulement = Solde budg Tab2 AGR",""),"")) -> 
A47: Variation du BESOIN en FONDS DE ROULEMENT | H47: ='6-tab CR_TF_PRINC'!H47+'6-tab CR_TF_FU'!H47 -> -1057117.36 | I47: ='6-tab CR_TF_PRINC'!I47+'6-tab CR_TF_FU'!I47 -> -829495 | J47: ='6-tab CR_TF_PRINC'!J47+'6-tab CR_TF_FU'!J47 -> 647094.7 | K47: ='6-tab CR_TF_PRINC'!K47+'6-tab CR_TF_FU'!K47 -> 647094.7 | L47: =I47+K47 -> -182400.3
A48: Variation de la TRESORERIE : ABONDEMENT (I) ou PRELEVEMENT (II) * | H48: ='6-tab CR_TF_PRINC'!H48+'6-tab CR_TF_FU'!H48 -> 4005193.84 | I48: ='6-tab CR_TF_PRINC'!I48+'6-tab CR_TF_FU'!I48 -> -1278315 | J48: ='6-tab CR_TF_PRINC'!J48+'6-tab CR_TF_FU'!J48 -> -1115313.1 | K48: ='6-tab CR_TF_PRINC'!K48+'6-tab CR_TF_FU'!K48 -> -1115313.1 | L48: -2393628.1 | N48: =IF(ROUND(L48,-1)=ROUND('6-tab CR_TF_PRINC'!L48+'6-tab CR_TF_FU'!L48,-1),"","! Pb agrégat variation trésorerie") -> 
A49: Niveau du FONDS DE ROULEMENT | H49: ='6-tab CR_TF_PRINC'!H49+'6-tab CR_TF_FU'!H49 -> 13746877.81 | I49: ='6-tab CR_TF_PRINC'!I49+'6-tab CR_TF_FU'!I49 -> 11639067.81 | J49: ='6-tab CR_TF_PRINC'!J49+'6-tab CR_TF_FU'!J49 -> 0 | K49: ='6-tab CR_TF_PRINC'!K49+'6-tab CR_TF_FU'!K49 -> 0 | L49: =H49+L46 -> 11170849.41
A50: Niveau du BESOIN EN FONDS DE ROULEMENT | H50: ='6-tab CR_TF_PRINC'!H50+'6-tab CR_TF_FU'!H50 -> 162438.61 | I50: ='6-tab CR_TF_PRINC'!I50+'6-tab CR_TF_FU'!I50 -> -667056.39 | J50: ='6-tab CR_TF_PRINC'!J50+'6-tab CR_TF_FU'!J50 -> 0 | K50: ='6-tab CR_TF_PRINC'!K50+'6-tab CR_TF_FU'!K50 -> 0 | L50: =H50+L47 -> -19961.69
A51: Niveau de la TRESORERIE | H51: ='6-tab CR_TF_PRINC'!H51+'6-tab CR_TF_FU'!H51 -> 13584439.2 | I51: ='6-tab CR_TF_PRINC'!I51+'6-tab CR_TF_FU'!I51 -> 12306124.2 | J51: ='6-tab CR_TF_PRINC'!J51+'6-tab CR_TF_FU'!J51 -> 0 | K51: ='6-tab CR_TF_PRINC'!K51+'6-tab CR_TF_FU'!K51 -> 0 | L51: 11190811.1 | N51: =IF(ROUND(L51,-1)=ROUND('6-tab CR_TF_PRINC'!L51+'6-tab CR_TF_FU'!L51,-1),"","! Pb agrégat niveau trésorerie") -> 
A53: * : montant issu du tableau "équilibre financier"

Sheet 6-tab CR_TF_SIE (hidden)
A1: Tableau 6 - Université de Bretagne Sud (0561718N) : CFA
A2: ="Situation patrimoniale - Budget "&Maquette!B4&" "&Maquette!B5&" "&Maquette!B3 -> Situation patrimoniale - Budget rectificatif n° 1 2022
A4: POUR VOTE DE L'ORGANE DÉLIBÉRANT
A6: Compte de résultat prévisionnel
A8: CHARGES | B8: Exécution N-1 | C8: Budget initial (a) | D8: Nouveau BR | E8: Somme des BR (yc nouveau BR) (b) | F8: TOTAL : dernier budget modifié (c) = (a) + (b) | G8: PRODUITS | H8: Exécution N-1 | I8: Budget initial (d) | J8: Nouveau BR | K8: Somme des BR (yc nouveau BR) (e) | L8: TOTAL : dernier budget modifié (f) = (d) + (e)
A9: Personnel | F9: =C9+E9 -> 0 | G9: Subventions de l'Etat | L9: =I9+K9 -> 0
A10: dont charges de pensions civiles* | F10: =C10+E10 -> 0 | G10: Fiscalité affectée | L10: =I10+K10 -> 0
A11: Fonctionnement (autre que les charges de personnel) et intervention | F11: =C11+E11 -> 0 | G11: Autres subventions | L11: 0
G12: Autres produits | L12: 0
A13: TOTAL DES CHARGES (1) | B13: =B9+B11 -> 0 | C13: =C9+C11 -> 0 | D13: =D9+D11 -> 0 | E13: 0 | F13: =F9+F11 -> 0 | G13: TOTAL DES PRODUITS (2) | H13: =SUM(H9:H12) -> 0 | I13: =SUM(I9:I12) -> 0 | J13: 0 | K13: 0 | L13: =SUM(L9:L12) -> 0
A14: Résultat prévisionnel : bénéfice (3) = (2) - (1) | B14: =IF(H13-B13>0,H13-B13,0) -> 0 | C14: =IF(I13-C13>0,I13-C13,0) -> 0 | D14: =IF(J13-D13>0,J13-D13,0) -> 0 | E14: =IF(K13-E13>0,K13-E13,0) -> 0 | F14: =IF(L13-F13>0,L13-F13,0) -> 0 | G14: Résultat prévisionnel : perte (4) = (1) - (2) | H14: =IF(B13-H13>0,B13-H13,0) -> 0 | I14: =IF(C13-I13>0,C13-I13,0) -> 0 | J14: =IF(D13-J13>0,D13-J13,0) -> 0 | K14: =IF(E13-K13>0,E13-K13,0) -> 0 | L14: =IF(F13-L13>0,F13-L13,0) -> 0
A15: TOTAL EQUILIBRE du compte de résultat prévisionnel (1) + (3) = (2) + (4) | B15: =B13+B14 -> 0 | C15: =C13+C14 -> 0 | D15: =D13+D14 -> 0 | E15: 0 | F15: =F13+F14 -> 0 | G15: TOTAL EQUILIBRE du compte de résultat prévisionnel (1) + (3) = (2) + (4) | H15: =H13+H14 -> 0 | I15: =I13+I14 -> 0 | J15: 0 | K15: 0 | L15: =L13+L14 -> 0
A16: * Il s'agit des sous catégories de comptes présentant les contributions employeur au CAS Pensions. | B16: ="Exécution N-1 : Différence charges de personnel entre tableau 2 et tableau 6 est de : "&(ROUND(B9,0)-ROUND(#REF!+#REF!,0)) ->  | C16: ="BI : Différence charges de personnel entre tableau 2 et tableau 6 est de : "&(ROUND(C9,0)-ROUND(#REF!+#REF!,0)) ->  | D16: ="Nouveau BR : Différence charges de personnel entre tableau 2 et tableau 6 est de : "&(ROUND(D9,0)-ROUND(#REF!+#REF!,0)) ->  | E16: ="Somme des BR : Différence charges de personnel entre tableau 2 et tableau 6 est de : "&(ROUND(E9,0)-ROUND(#REF!+#REF!,0)) ->  | F16: ="Budget BI+BR : Différence charges de personnel entre tableau 2 et tableau 6 est de : "&(ROUND(F9,0)-ROUND(#REF!+#REF!,0)) -> 
B17: =IF(#REF!="",IF(ROUND(B10,-1)<>ROUND(#REF!,-1),"! Incohérence charges PC Tab2 SIE",""),"") ->  | C17: =IF(#REF!="",IF(ROUND(C10,-1)<>ROUND(#REF!,-1),"! Incohérence charges PC Tab2 SIE",""),"") ->  | D17: =IF(#REF!="",IF(ROUND(D10,-1)<>ROUND(#REF!,-1),"! Incohérence charges PC Tab2 SIE",""),"") ->  | E17: =IF(#REF!="",IF(ROUND(E10,-1)<>ROUND(#REF!,-1),"! Incohérence charges PC Tab2 SIE",""),"") ->  | F17: =IF(#REF!="",IF(ROUND(F10,-1)<>ROUND(#REF!,-1),"! Incohérence charges PCl Tab2 SIE",""),"") -> 
A19: Calcul de la capacité d'autofinancement (CAF)
B21: Exécution N-1 | C21: Budget initial (g) | D21: Nouveau BR | E21: Somme des BR (yc nouveau BR) (h) | F21: TOTAL : dernier budget modifié (i) = (g) + (h)
A22: Résultat prévisionnel de l'exercice (bénéfice (3) ou perte (-4) | B22: =IF(B14>0,B14,-H14) -> 0 | C22: =IF(C14>0,C14,-I14) -> 0 | D22: =IF(D14>0,D14,-J14) -> 0 | E22: =IF(E14>0,E14,-K14) -> 0 | F22: =IF(F14>0,F14,-L14) -> 0
A23: + dotations aux amortissements, dépréciations et provisions | F23: =C23+E23 -> 0
A24: - reprises sur amortissements, dépréciations et provisions | F24: =C24+E24 -> 0
A25: + valeur nette comptable des éléments d'actifs cédés | F25: =C25+E25 -> 0
A26: - produits de cession d'éléments d'actifs | F26: =C26+E26 -> 0
A27: - quote-part des subventions d’investissement virée au résultat de l’exercice | F27: =C27+E27 -> 0
A28: = CAF ou IAF* | B28: =SUM(B22:B27) -> 0 | C28: =SUM(C22:C27) -> 0 | D28: 0 | E28: 0 | F28: =SUM(F22:F27) -> 0
A29: * capacité d'autofinancement ou insuffisance d'autofinancement
A32: État prévisionnel de l'évolution de la situation patrimoniale en droits constatés
A34: EMPLOIS | B34: Exécution N-1 | C34: Budget initial (j) | D34: Nouveau BR | E34: Somme des BR (yc nouveau BR) (k) | F34: TOTAL : dernier budget modifié (l) = (j) + (k) | G34: RESSOURCES | H34: Exécution N-1 | I34: Budget initial (m) | J34: Nouveau BR | K34: Somme des BR (yc nouveau BR) (n) | L34: TOTAL : dernier budget modifié (o) = (m) + (n)
A35: Insuffisance d'autofinancement* | B35: =IF(B28<0,-B28,0) -> 0 | C35: =IF(C28<0,-C28,0) -> 0 | D35: =IF(D28<0,-D28,0) -> 0 | E35: =IF(E28<0,-E28,0) -> 0 | F35: =IF(F28<0,-F28,0) -> 0 | G35: Capacité d'autofinancement* | H35: =IF(B28>0,B28,0) -> 0 | I35: =IF(C28>0,C28,0) -> 0 | J35: =IF(D28>0,D28,0) -> 0 | K35: =IF(E28>0,E28,0) -> 0 | L35: =IF(F28>0,F28,0) -> 0
A36: Investissements | F36: =C36+E36 -> 0 | G36: Financement de l'actif par l'État | L36: =I36+K36 -> 0
G37: Financement de l'actif par des tiers autres que l'Etat | L37: =I37+K37 -> 0
G38: Autres ressources | L38: 0
A39: Remboursement des dettes financières | F39: =C39+E39 -> 0 | G39: Augmentation des dettes financières | L39: 0
A40: TOTAL DES EMPLOIS (5) | B40: =SUM(B35:B39) -> 0 | C40: 0 | D40: 0 | E40: =SUM(E35:E39) -> 0 | F40: =SUM(F35:F39) -> 0 | G40: TOTAL DES RESSOURCES (6) | H40: =SUM(H35:H39) -> 0 | I40: 0 | J40: 0 | K40: 0 | L40: =SUM(L35:L39) -> 0
A41: APPORT au FONDS DE ROULEMENT (7) = (6)-(5) | B41: =IF(H40-B40>0,H40-B40,0) -> 0 | C41: =IF(I40-C40>0,I40-C40,0) -> 0 | D41: =IF(J40-D40>0,J40-D40,0) -> 0 | E41: =IF(K40-E40>0,K40-E40,0) -> 0 | F41: =IF(L40-F40>0,L40-F40,0) -> 0 | G41: PRELEVEMENT sur FONDS DE ROULEMENT (8) = (5)-(6) | H41: =IF(B40-H40>0,B40-H40,0) -> 0 | I41: =IF(C40-I40>0,C40-I40,0) -> 0 | J41: =IF(D40-J40>0,D40-J40,0) -> 0 | K41: =IF(E40-K40>0,E40-K40,0) -> 0 | L41: =IF(F40-L40>0,F40-L40,0) -> 0
A43: POUR INFORMATION DE L'ORGANE DÉLIBÉRANT
H45: Exécution N-1 (p) | I45: Budget initial (q) | J45: Nouveau BR | K45: Somme des BR (yc nouveau BR) (r) | L45: TOTAL : dernier budget modifié Variation (s) = (q) + (r) Niveau = (p) + (s)
A46: VARIATION DU FONDS DE ROULEMENT : APPORT (7) ou PRELEVEMENT (8) | H46: =IF(B41>0,B41,-H41) -> 0 | I46: =IF(C41>0,C41,-I41) -> 0 | J46: =IF(D41>0,D41,-J41) -> 0 | K46: =IF(E41>0,E41,-K41) -> 0 | L46: =I46+K46 -> 0 | N46: =IF(L46<0,IF(ROUND(L46,-1)=-ROUND(#REF!,-1),"! Impossibilité Var fonds de roulement = Solde budg Tab2 SIE",""),IF(L46>0,IF(ROUND(L46,-1)=ROUND(#REF!,-1),"! Impossibilité Var fonds de roulement = Solde budg Tab2 SIE",""),"")) -> 
A47: Variation du BESOIN en FONDS DE ROULEMENT | L47: =I47+K47 -> 0
A48: Variation de la TRESORERIE : ABONDEMENT (I) ou PRELEVEMENT (II) * | L48: 0
A49: Niveau du FONDS DE ROULEMENT | L49: =H49+L46 -> 0
A50: Niveau du BESOIN EN FONDS DE ROULEMENT | H50: =H49-H51 -> 0 | I50: =I49-I51 -> 0 | J50: 0 | K50: 0 | L50: =H50+L47 -> 0
A51: Niveau de la TRESORERIE | L51: 0
A53: * : montant issu du tableau "équilibre financier"

Sheet 7-tab Plan_tréso_ETAB
B1: Tableau 7- Université de Bretagne Sud (0561718N) : Etablissement principal + Fondation
B2: ="Plan de trésorerie - Budget consolidé "&Maquette!B4&" "&Maquette!B5&" "&Maquette!B3 -> Plan de trésorerie - Budget consolidé rectificatif n° 1 2022
B4: POUR INFORMATION DE L'ORGANE DÉLIBÉRANT
B6: ( K€ ) | C6: janvier | D6: février | E6: mars | F6: avril | G6: mai | H6: juin | I6: juillet | J6: août | K6: septembre | L6: octobre | M6: novembre | N6: décembre | O6: TOTAL Variation de la trésorerie annuelle
B7: (1) SOLDE INITIAL (début de mois) | C7: 13584439.2 | D7: =C49 -> 25985406.27 | E7: =D49 -> 22788389.98 | F7: 16807537.16 | G7: 28071272.57 | H7: 22846192.43 | I7: 16785168.43 | J7: 32878351.43 | K7: 28147397.43 | L7: 20470001.93 | M7: 24069843.93 | N7: 15817783.93 | O7: =SUM(C7:N7) -> 268251784.7
B8: ENCAISSEMENTS
B9: Recettes budgétaires globalisées | C9: =SUM(C10:C14) -> 2257255.01 | D9: =SUM(D10:D14) -> 17909362.69 | E9: 2352976.64 | F9: 18319388.01 | G9: 1409772.47 | H9: 1354760 | I9: 24785193 | J9: 1624465 | K9: 2103564 | L9: 13443993 | M9: 2436016 | N9: 7605810.87 | O9: 95602556.69
B10: Subvention pour charges de service public | C10: 0 | D10: 16544431 | E10: 0 | F10: 17089896 | G10: 0 | H10: 0 | I10: 23260426 | L10: 9962464 | O10: =SUM(C10:N10) -> 66857217
B11: Autres financements de l'Etat | C11: 50295.64 | D11: 292855.87 | E11: 83153.69 | F11: 36250 | G11: 5682 | H11: 283418 | I11: 512080 | J11: 17522 | K11: 19274 | L11: 856387 | M11: 296999 | N11: 1046048.3 | O11: =SUM(C11:N11) -> 3499965.5
B12: Fiscalité affectée | C12: 0 | D12: 0 | E12: 0 | F12: 0 | G12: 0 | H12: 0 | K12: 470000 | N12: 130000 | O12: 600000
B13: Autres financements publics | C13: 365872.91 | D13: 521076.62 | E13: 626356.94 | F13: 128469.12 | G13: 256194.66 | H13: 762405 | I13: 503328 | J13: 175579 | K13: 1008217 | L13: 977783 | M13: 760845 | N13: 1404248.53 | O13: 7490375.78
B14: Recettes propres | C14: 1841086.46 | D14: 550999.2 | E14: 1643466.01 | F14: 1064772.89 | G14: 1147895.81 | H14: 308937 | I14: 509359 | J14: 1431364 | K14: 606073 | L14: 1647359 | M14: 1378172 | N14: 5025514.04 | O14: 17154998.41
B15: Recettes budgétaires fléchées | C15: =SUM(C16:C18) -> 0 | D15: =SUM(D16:D18) -> 0 | E15: 0 | F15: 0 | G15: 0 | H15: 2221464 | I15: 0 | J15: 0 | K15: 0 | L15: 0 | M15: 0 | N15: 0 | O15: =SUM(C15:N15) -> 2221464
B16: Financements de l'Etat fléchés | O16: 0 | Q16: =IF(ROUND(O16,-1)<>ROUND('8-tab recettes_fléchées_ETAB'!D13,-1),"! Incohérence Financ. Etat fléchés avec Tab8 ETAB","") -> 
B17: Autres financements publics fléchés | H17: 2221464 | O17: 2221464 | Q17: =IF(ROUND(O17,-1)<>ROUND('8-tab recettes_fléchées_ETAB'!D14,-1),"! Incohérence Autres financ. fléchés avec Tab8 ETAB","") -> 
B18: Recettes propres fléchées | O18: 0 | Q18: =IF(ROUND(O18,-1)<>ROUND('8-tab recettes_fléchées_ETAB'!D15,-1),"! Incohérence Recettes propres fléchées avec Tab8 ETAB","") -> 
B19: Opérations non budgétaires | C19: =SUM(C20:C22) -> 0 | D19: =SUM(D20:D22) -> 0 | E19: 0 | F19: 0 | G19: 0 | H19: 0 | I19: 0 | J19: 0 | K19: 0 | L19: 0 | M19: 0 | N19: 0 | O19: 0
B20: Emprunts : encaissements en capital | O20: 0
B21: Prêts : encaissements en capital | O21: 0
B22: Dépôts et cautionnements | O22: 0
B23: Opérations gérées en comptes de tiers : | C23: =SUM(C24:C26) -> 17166357.84 | D23: =SUM(D24:D26) -> -13530209.74 | E23: 321355.08 | F23: -400327.83 | G23: 769842.4 | H23: -2271178 | I23: -107715 | J23: -59586 | K23: -102666 | L23: 204107 | M23: -62363 | N23: 555904.2 | O23: 2483520.95
B24: TVA encaissée | C24: 28731.39 | D24: 42141.57 | E24: 29864.5 | F24: 46155.46 | G24: 45415.86 | H24: 46782 | I24: 26588 | J24: 74717 | K24: 31637 | L24: 85992 | M24: 71940 | N24: 322629 | O24: 852593.78
B25: Dispositifs d'intervention pour compte de tiers : encaissements | C25: 0 | D25: 300001.93 | E25: 232629.24 | F25: 0 | G25: 112560 | H25: 365736 | L25: 252418 | N25: =817582-450000 -> 367582 | O25: 1630927.17
B26: Autres encaissements d'opérations gérées en comptes de tiers | C26: 17137626.45 | D26: -13872353.24 | E26: 58861.34 | F26: -446483.29 | G26: 611866.54 | H26: -2683696 | I26: -134303 | J26: -134303 | K26: -134303 | L26: -134303 | M26: -134303 | N26: -134306.8 | O26: -1.105945557e-09
B27: A. TOTAL | C27: =C23+C19+C15+C9 -> 19423612.85 | D27: =D23+D19+D15+D9 -> 4379152.95 | E27: 2674331.72 | F27: 17919060.18 | G27: 2179614.87 | H27: 1305046 | I27: 24677478 | J27: 1564879 | K27: 2000898 | L27: 13648100 | M27: 2373653 | N27: 8161715.07 | O27: 100307541.6
B28: DECAISSEMENTS
B29: Dépenses liées à des recettes globalisées | C29: =SUM(C30:C33) -> 6957641.41 | D29: =SUM(D30:D33) -> 7196178.24 | E29: 8370071.35 | F29: 6626599.3 | G29: 7354703.84 | H29: 7345069 | I29: 8469666 | J29: 6285745 | K29: 9428466.5 | L29: 9799270 | M29: 10473503 | N29: 12027004.31 | O29: =SUM(C29:N29) -> 100333918
B30: Personnel | C30: 5890239.53 | D30: 6040550.99 | E30: 6329809.89 | F30: 5819695.93 | G30: 5908624.69 | H30: 5910000 | I30: 5960000 | J30: 5960000 | K30: 6818607 | L30: 6843606 | M30: 6843606 | N30: 7937606.33 | O30: =SUM(C30:N30) -> 76262346.36
B31: Fonctionnement | C31: 859650.95 | D31: 788089.78 | E31: 1409412.32 | F31: 585690.09 | G31: 1130652.15 | H31: 928940 | I31: 1690219 | J31: 221306 | K31: 1681067 | L31: 1686531 | M31: 1748005 | N31: 2632227.57 | O31: 15361790.86
B32: Intervention | O32: 0
B33: Investissement | C33: 207750.93 | D33: 367537.47 | E33: 630849.14 | F33: 221213.28 | G33: 315427 | H33: 506129 | I33: 819447 | J33: 104439 | K33: 928792.5 | L33: 1269133 | M33: 1881892 | N33: 1457170.41 | O33: 8709780.73
B34: Dépenses liées à des recettes fléchées | C34: =SUM(C35:C38) -> 0 | D34: =SUM(D35:D38) -> 0 | E34: 0 | F34: 0 | G34: 0 | H34: 6500 | I34: 8000 | J34: 4000 | K34: 58875 | L34: 68875 | M34: 68875 | N34: 76812 | O34: 291937
B35: Personnel | H35: 1500 | I35: 3000 | J35: 3000 | K35: 8875 | L35: 8875 | M35: 8875 | N35: 8875 | O35: 43000 | Q35: =IF(ROUND(O35,-1)<>ROUND('8-tab recettes_fléchées_ETAB'!D19,-1),"! Incohérence dépenses pers. fléchées avec Tab8 ETAB","") -> 
B36: Fonctionnement | H36: 5000 | I36: 5000 | J36: 1000 | K36: 35000 | L36: 45000 | M36: 45000 | N36: 57937 | O36: 193937 | Q36: =IF(ROUND(SUM(O36:O37),-1)<>ROUND('8-tab recettes_fléchées_ETAB'!D21,-1),"! Incohérence dépenses Fonct. fléchées avec Tab8 ETAB","") -> 
B37: Intervention | O37: 0
B38: Investissement | K38: 15000 | L38: 15000 | M38: 15000 | N38: 10000 | O38: 55000 | Q38: =IF(ROUND(O38,-1)<>ROUND('8-tab recettes_fléchées_ETAB'!D24,-1),"! Incohérence dépenses invest fléchées avec Tab8 ETAB","") -> 
B39: Opérations non budgétaires | C39: =SUM(C40:C42) -> 0 | D39: =SUM(D40:D42) -> 0 | E39: 0 | F39: 0 | G39: 0 | H39: 0 | I39: 0 | J39: 0 | K39: 0 | L39: 0 | M39: 0 | N39: 0 | O39: 0
B40: Emprunts : remboursements en capital | O40: 0
B41: Prêts : décaissements en capital | O41: 0
B42: Dépôts et cautionnements | O42: 0
B43: Opérations gérées en compte de tiers : | C43: =SUM(C44:C46) -> 65004.37 | D43: =SUM(D44:D46) -> 379991 | E43: 285113.19 | F43: 28725.47 | G43: 49991.17 | H43: 14501 | I43: 106629 | J43: 6088 | K43: 190952 | L43: 180113 | M43: 83335 | N43: 684872 | O43: 2075315.2
B44: TVA décaissée | C44: 49270.07 | D44: 31833.8 | E44: 68220.66 | F44: 31714.49 | G44: 39584.92 | H44: 9590 | I44: 105907 | J44: 13746 | K44: 109081 | L44: 123674 | M44: 152126 | N44: 169392 | O44: 904139.94
B45: Dispositifs d'intervention pour compte de tiers : décaissements | C45: 2000 | D45: 328001.93 | E45: 199589.24 | F45: 1840 | G45: 4000 | H45: 405.09 | I45: 10268 | J45: 1888 | K45: 91417 | L45: =320985-255000 -> 65985 | M45: =195755-255000 -> -59245 | N45: =780026-255000 -> 525026 | O45: 1171175.26
B46: Autres décaissements d'opérations gérées en comptes de tiers | C46: 13734.3 | D46: 20155.27 | E46: 17303.29 | F46: -4829.02 | G46: 6406.25 | H46: 4505.91 | I46: -9546 | J46: -9546 | K46: -9546 | L46: -9546 | M46: -9546 | N46: -9546 | O46: -4.802132025e-10
B47: B. TOTAL | C47: =C43+C39+C34+C29 -> 7022645.78 | D47: =D43+D39+D34+D29 -> 7576169.24 | E47: 8655184.54 | F47: 6655324.77 | G47: 7404695.01 | H47: 7366070 | I47: 8584295 | J47: 6295833 | K47: 9678293.5 | L47: 10048258 | M47: 10625713 | N47: 12788688.31 | O47: 102701170.2
B48: (2) SOLDE DU MOIS = A - B | C48: =C27-C47 -> 12400967.07 | D48: =D27-D47 -> -3197016.29 | E48: -5980852.82 | F48: 11263735.41 | G48: -5225080.14 | H48: -6061024 | I48: 16093183 | J48: -4730954 | K48: -7677395.5 | L48: 3599842 | M48: -8252060 | N48: -4626973.24 | O48: =SUM(C48:N48) -> -2393628.51
B49: SOLDE CUMULE (1) + (2) | C49: =C48+C7 -> 25985406.27 | D49: =D48+D7 -> 22788389.98 | E49: 16807537.16 | F49: 28071272.57 | G49: 22846192.43 | H49: 16785168.43 | I49: 32878351.43 | J49: 28147397.43 | K49: 20470001.93 | L49: 24069843.93 | M49: 15817783.93 | N49: 11190810.69
O50: Variation de trésorerie correspondant à celle du tableau d'équilibre financier (I) ou (II)

Sheet 8-tab recettes_fléchées_ETAB
B1: Tableau 8 - Université de Bretagne Sud (0561718N) : Etablissement principal + Fondation
B2: ="Opérations liées aux recettes fléchées - Budget consolidé "&Maquette!B4&" "&Maquette!B5&" "&Maquette!B3 -> Opérations liées aux recettes fléchées - Budget consolidé rectificatif n° 1 2022
B5: POUR INFORMATION DE L'ORGANE DÉLIBÉRANT
C8: Antérieures à N non dénouées | D8: N | E8: N+1 | F8: N+2 | G8: N+3
B9: Position de financement des opérations fléchées en début d'exercice (a)
B11: Recettes fléchées (b) | C11: =SUM(C13:C15) -> 0 | D11: =SUM(D13:D15) -> 2221464 | E11: 0 | F11: 0 | G11: 0
B13: Financements de l'État fléchés | J13: =IF(ROUND(D13,-1)<>ROUND('7-tab Plan_tréso_ETAB'!O16,-1),"! Incohérence Financ. Etat fléchés avec Tab7","") -> 
B14: Autres financements publics fléchés | D14: 2221464 | J14: =IF(ROUND(D14,-1)<>ROUND('7-tab Plan_tréso_ETAB'!O17,-1),"! Incohérence Autres financ. fléchés avec Tab7","") -> 
B15: Recettes propres fléchées | J15: =IF(ROUND(D15,-1)<>ROUND('7-tab Plan_tréso_ETAB'!O18,-1),"! Incohérence Recettes propres fléchées avec Tab7","") -> 
B17: Dépenses sur recettes fléchées (c) | C17: =C19+C21+C24 -> 0 | D17: =D19+D21+D24 -> 291937 | E17: 774736 | F17: 1026198 | G17: 1009936
B19: Personnel | C19: =C20 -> 0 | D19: =D20 -> 43000 | E19: 151000 | F19: 151000 | G19: 151000
B20: AE=CP | D20: 43000 | E20: 151000 | F20: 151000 | G20: 151000
B21: Fonctionnement et intervention | C21: =C23 -> 0 | D21: =D23 -> 193937 | E21: 610736 | F21: 862198 | G21: 845936
B22: AE | D22: 193937 | E22: 610736 | F22: 862198 | G22: 845936
B23: CP | D23: 193937 | E23: 610736 | F23: 862198 | G23: 845936
B24: Investissement | C24: =C26 -> 0 | D24: =D26 -> 55000 | E24: 13000 | F24: 13000 | G24: 13000
B25: AE | D25: 55000 | E25: 13000 | F25: 13000 | G25: 13000
B26: CP | D26: 55000 | E26: 13000 | F26: 13000 | G26: 13000
B28: Solde budgétaire de l'exercice résultant des opérations fléchées (b) - (c) | C28: =C11-C17 -> 0 | D28: =D11-D17 -> 1929527 | E28: =E11-E17 -> -774736 | F28: -1026198 | G28: -1009936
D29: (1)
D30: (1) repris au tableau "Équilibre financier" en (a) (tableau 4)

Sheet 8-tab recettes_fléchées_PRINC
B1: Tableau 8 - Université de Bretagne Sud (0561718N) : Etablissement principal
B2: ="Opérations liées aux recettes fléchées - Budget "&Maquette!B4&" "&Maquette!B5&" "&Maquette!B3 -> Opérations liées aux recettes fléchées - Budget rectificatif n° 1 2022
B5: POUR INFORMATION DE L'ORGANE DÉLIBÉRANT
C8: Antérieures à N non dénouées | D8: N | E8: N+1 | F8: N+2 | G8: N+3
B9: Position de financement des opérations fléchées en début d'exercice (a)
B11: Recettes fléchées (b) | C11: =SUM(C13:C15) -> 0 | D11: =SUM(D13:D15) -> 2221464 | E11: 0 | F11: 0 | G11: 0
B13: Financements de l'État fléchés
B14: Autres financements publics fléchés | D14: 2221464
B15: Recettes propres fléchées
B17: Dépenses sur recettes fléchées (c) | C17: =C19+C21+C24 -> 0 | D17: =D19+D21+D24 -> 291937 | E17: 774736 | F17: 1026198 | G17: 1009936
B19: Personnel | C19: =C20 -> 0 | D19: =D20 -> 43000 | E19: 151000 | F19: 151000 | G19: 151000
B20: AE=CP | D20: 43000 | E20: 151000 | F20: 151000 | G20: 151000
B21: Fonctionnement et intervention | C21: =C23 -> 0 | D21: =D23 -> 193937 | E21: 610736 | F21: 862198 | G21: 845936
B22: AE | D22: 193937 | E22: 610736 | F22: 862198 | G22: 845936
B23: CP | D23: 193937 | E23: 610736 | F23: 862198 | G23: 845936
B24: Investissement | C24: =C26 -> 0 | D24: =D26 -> 55000 | E24: 13000 | F24: 13000 | G24: 13000
B25: AE | D25: 55000 | E25: 13000 | F25: 13000 | G25: 13000
B26: CP | D26: 55000 | E26: 13000 | F26: 13000 | G26: 13000
B28: Solde budgétaire de l'exercice résultant des opérations fléchées (b) - (c) | C28: =C11-C17 -> 0 | D28: =D11-D17 -> 1929527 | E28: =E11-E17 -> -774736 | F28: -1026198 | G28: -1009936
D29: (1)
D30: (1) repris au tableau "Équilibre financier" en (a) (tableau 4)

Sheet 8-tab recettes_fléchées_AGR (hidden)
B1: Tableau 8 - Université de Bretagne Sud (0561718N) : Etablissement principal + Fondation
B2: ="Opérations liées aux recettes fléchées - Budget agrégé "&Maquette!B4&" "&Maquette!B5&" "&Maquette!B3 -> Opérations liées aux recettes fléchées - Budget agrégé rectificatif n° 1 2022
B5: POUR INFORMATION DE L'ORGANE DÉLIBÉRANT
C8: Antérieures à N non dénouées | D8: N | E8: N+1 | F8: N+2 | G8: N+3
B9: Position de financement des opérations fléchées en début d'exercice (a)
B11: Recettes fléchées (b) | C11: =SUM(C13:C15) -> 0 | D11: =SUM(D13:D15) -> 0 | E11: 0 | F11: 0 | G11: 0
B13: Financements de l'État fléchés | H13: =IF(ROUND(D13,-1)<>ROUND(#REF!,-1),"! Incohérence Financ. Etat fléchés avec Tab2 AGR","") ->  | I13: =IF(ROUND(D13,-1)<>ROUND('3-tab_destination_origine_AGR'!H50,-1),"! Incohérence Financ. Etat fléchés avec Tab3 AGR","") -> 
B14: Autres financements publics fléchés | H14: =IF(ROUND(D14,-1)<>ROUND(#REF!,-1),"! Incohérence Autres financ. fléchés avec Tab2 AGR","") ->  | I14: =IF(ROUND(D14,-1)<>ROUND('3-tab_destination_origine_AGR'!I50,-1),"! Incohérence Autres financ. fléchés avec Tab3 AGR","") -> 
B15: Recettes propres fléchées | H15: =IF(ROUND(D15,-1)<>ROUND(#REF!,-1),"! Incohérence Recettes propres fléchées avec Tab2 AGR","") ->  | I15: =IF(ROUND(D15,-1)<>ROUND('3-tab_destination_origine_AGR'!J50,-1),"! Incohérence Recettes propres fléchées avec Tab3 AGR","") -> 
B17: Dépenses sur recettes fléchées (c) | C17: =C19+C21+C24 -> 0 | D17: =D19+D21+D24 -> 0 | E17: 0 | F17: 0 | G17: 0
B19: Personnel | C19: =C20 -> 0 | D19: =D20 -> 0 | E19: 0 | F19: 0 | G19: 0
B20: AE=CP
B21: Fonctionnement et intervention | C21: =C23 -> 0 | D21: =D23 -> 0 | E21: 0 | F21: 0 | G21: 0
B22: AE
B23: CP
B24: Investissement | C24: =C26 -> 0 | D24: =D26 -> 0 | E24: 0 | F24: 0 | G24: 0
B25: AE
B26: CP
B28: Solde budgétaire de l'exercice résultant des opérations fléchées (b) - (c) | C28: =C11-C17 -> 0 | D28: =D11-D17 -> 0 | E28: =E11-E17 -> 0 | F28: 0 | G28: 0
D29: (1)
D30: (1) repris au tableau "Équilibre financier" en (a) (tableau 4)

Sheet 9-tab op_pluriannuelles_ETAB
B1: Tableau 9 - Université de Bretagne Sud (0561718N) : Etablissement principal + Fondation
B2: ="Tableau des opérations pluriannuelles - Budget consolidé "&Maquette!B4&" "&Maquette!B5&" "&Maquette!B3 -> Tableau des opérations pluriannuelles - Budget consolidé rectificatif n° 1 2022
B3: POUR VOTE DE L'ORGANE DÉLIBÉRANT
E5: Tableaux identiques à ceux présentés au Budget intial 2022 - Une situation actualisée sera présentée au BR2 de novembre 2022
B6: A - Dépenses
B8: Opérations | E8: Montant de l'opération | F8: Autorisations d'engagement | K8: Crédits de paiement | P8: Restes
F9: AE ouvertes < N | G9: Conso AE < N | H9: Reports ou Reprogrammations N | I9: AE nouvelles ouvertes N | J9: Total AE N | K9: CP ouverts < N | L9: Conso CP < N | M9: Reports ou Reprogrammations N | N9: CP nouveaux ouverts N | O9: Total CP N | P9: Restes à engager > N (AE) | Q9: Restes à payer > N sur AE consommées <= N (CP)
B10: PFIRECHSAC | C10: RECH SUBVENTIONS AVEC CONDITIONS | E10: =218184.74+14952011.32 -> 15170196.06 | F10: =218184.74-1001447.13+9940398.79 -> 9157136.4 | G10: =218184.74+7516512.09 -> 7734696.83 | H10: 0 | I10: 4066329.13 | J10: 4066329.13 | K10: =218184.74-1188248.26+10080533.26 -> 9110469.74 | L10: =218184.74+7225197.05 -> 7443381.79 | M10: 0 | N10: 4112995.79 | O10: 4112995.79 | P10: =E10-G10-J10 -> 3369170.1 | Q10: =G10+J10-L10-O10 -> 244648.38
B11: PFIRECHARE | C11: RECH ALLOCATION DE RECHERCHE DOCTORALE | E11: 2150976.1 | F11: =-45283.36+1136489.67 -> 1091206.31 | G11: 924394.94 | H11: 0 | I11: 565172.08 | J11: 565172.08 | K11: =-45283.36+1136489.67 -> 1091206.31 | L11: 924394.94 | M11: 0 | N11: 565172.08 | O11: 565172.08 | P11: =E11-G11-J11 -> 661409.08 | Q11: =G11+J11-L11-O11 -> 0
B12: PFIRECHCIF | C12: RECH CONTRATS CIFRE | E12: 401471.01 | F12: =-48641.52+306536.76 -> 257895.24 | G12: 160399.17 | H12: 0 | I12: 126677.96 | J12: 126677.96 | K12: =-59629.26+317524.5 -> 257895.24 | L12: 156882.77 | M12: 0 | N12: 126677.96 | O12: 126677.96 | P12: 114393.88 | Q12: 3516.4
B13: PFIRECHSSC | C13: RECH SUBVENTIONS SANS CONDITIONS | E13: 125879.31 | F13: =-29100.88+80626.75 -> 51525.87 | G13: 19945.73 | H13: 0 | I13: 33775.86 | J13: 33775.86 | K13: =-29411.99+80937.86 -> 51525.87 | L13: 19854.62 | M13: 0 | N13: 33775.86 | O13: 33775.86 | P13: 72157.72 | Q13: 91.11
B14: PFIRECHAUT | C14: RECH CONTRATS AUTRES | E14: 232074.09 | F14: =-4804.3+157446.36 -> 152642.06 | G14: 59620.85 | H14: 0 | I14: 79432.03 | J14: 79432.03 | K14: =-5559.98+158202.04 -> 152642.06 | L14: 54430.95 | M14: 0 | N14: 79432.03 | O14: 79432.03 | P14: 93021.21 | Q14: 5189.9
B15: PFIRECHCCR | C15: RECH CONTRATS DE COLLABORATION | E15: 1887276.16 | F15: =-40289.38+1012544.44 -> 972255.06 | G15: 780920.99 | H15: 0 | I15: 672214.02 | J15: 672214.02 | K15: =-41737.2+1013992.26 -> 972255.06 | L15: 766078.79 | M15: 0 | N15: 672214.02 | O15: 672214.02 | P15: 434141.15 | Q15: 14842.2
B16: PFIPIAHITR | C16: PIA HIT VOLET RECHERCHE | E16: 864000 | F16: 41500 | G16: 9368.43 | H16: 0 | I16: 239250 | J16: 239250 | K16: 41500 | L16: 9368.43 | M16: 0 | N16: 239250 | O16: 239250 | P16: 615381.57 | Q16: 0
B17: Total Contrats de recherche | E17: =SUM(E10:E16) -> 20831872.73 | F17: =SUM(F10:F16) -> 11724160.94 | G17: =SUM(G10:G16) -> 9689346.94 | H17: 0 | I17: 5782851.08 | J17: 5782851.08 | K17: =SUM(K10:K16) -> 11677494.28 | L17: =SUM(L10:L16) -> 9374392.29 | M17: 0 | N17: 5829517.74 | O17: 5829517.74 | P17: =SUM(P10:P16) -> 5359674.71 | Q17: =SUM(Q10:Q16) -> 268287.99
B18: PFIENS0 | C18: CONTRATS D'ENSEIGNEMENT | E18: 1810752 | F18: =-106873.03+724503.61 -> 617630.58 | G18: 442046.56 | H18: 0 | I18: 928848.42 | J18: 928848.42 | K18: =-213823.72+831454.3 -> 617630.58 | L18: 431044.93 | M18: 0 | N18: 928848.42 | O18: 928848.42 | P18: =E18-G18-J18 -> 439857.02 | Q18: =G18+J18-L18-O18 -> 11001.63
B19: PFIPIACOHY | C19: CO-HY-B PLAN DE RELANCE ETAT | E19: 300000 | F19: 102734 | G19: 89551.86 | H19: 0 | I19: 197266 | J19: 197266 | K19: 102734 | L19: 49375.86 | M19: 0 | N19: 197266 | O19: 197266 | P19: 13182.14 | Q19: 40176
B20: PFIPIABRIO | C20: PIA BRIO | E20: 862000 | F20: 70052 | G20: 48423.05 | H20: 0 | I20: 121050 | J20: 121050 | K20: 70052 | L20: 47995.55 | M20: 0 | N20: 121050 | O20: 121050 | P20: 692526.95 | Q20: 427.5
B21: PFIANRFORM | C21: ANR PROJET FORMAFLEX | E21: 273880 | F21: 19292 | G21: 0 | H21: 0 | I21: 139364 | J21: 139364 | K21: 19292 | L21: 0 | M21: 0 | N21: 139364 | O21: 139364 | P21: 134516 | Q21: 0
B22: Total Contrats d'enseignement | E22: =SUM(E18:E21) -> 3246632 | F22: =SUM(F18:F21) -> 809708.58 | G22: =SUM(G18:G21) -> 580021.47 | H22: 0 | I22: 1386528.42 | J22: 1386528.42 | K22: =SUM(K18:K21) -> 809708.58 | L22: =SUM(L18:L21) -> 528416.34 | M22: 0 | N22: 1386528.42 | O22: 1386528.42 | P22: =SUM(P18:P21) -> 1280082.11 | Q22: =SUM(Q18:Q21) -> 51605.13
B23: CPERDURAB | C23: CPER 2014-2020 DURABIMAT / IRDL | E23: =105309+1549093.05 -> 1654402.05 | F23: =105309-293175.56+1842268.61 -> 1654402.05 | G23: =105309+1444396.07 -> 1549705.07 | H23: 0 | I23: 0 | J23: 0 | K23: =105309.02-209452.88-113957.74+1758545.91 -> 1540444.31 | L23: =105309.02-50802.4+1485937.69 -> 1540444.31 | M23: 0 | N23: 113957.74 | O23: 113957.74 | P23: =E23-G23-J23 -> 104696.98 | Q23: =G23+J23-L23-O23 -> -104696.98
B24: CPERECOSY | C24: CPER 2014-2020 ECOSYS-MER / IRDL | E24: =284230.34+287579.53 -> 571809.87 | F24: =284230.34-329770.52+617350.05 -> 571809.87 | G24: =284230.34+285425.81 -> 569656.15 | H24: 0 | I24: 0 | J24: 0 | K24: =284230.34-72021.91+359601.44 -> 571809.87 | L24: =284230.34-7437+292862.81 -> 569656.15 | M24: 0 | N24: 0 | O24: 0 | P24: 2153.72 | Q24: 0
B25: PPICVEC | C25: PPI CVEC | E25: 1340000 | F25: 140000 | G25: 36649.96 | H25: 0 | I25: 1200000 | J25: 1200000 | K25: 100000 | L25: 35577.61 | M25: 0 | N25: 640000 | O25: 640000 | P25: 103350.04 | Q25: 561072.35
B26: CPERSMDMA | C26: CPER 2014-2020 SMD MAR / LABSTICC | E26: 133169.68 | F26: =-26728.84+159898.52 -> 133169.68 | G26: 126800.63 | H26: 0 | I26: 0 | J26: 0 | K26: =-28612.88+161782.56 -> 133169.68 | L26: 126800.54 | M26: 0 | N26: 0 | O26: 0 | P26: 6369.05 | Q26: 0.09000000001
B27: PRECERYC | C27: PLAN DE RELANCE ETAT REHAB CERYC | E27: 3600000 | F27: 3600000 | G27: 3521467.1 | H27: 0 | I27: 0 | J27: 0 | K27: 2700000 | L27: 1948413.11 | M27: 0 | N27: 900000 | O27: 900000 | P27: 78532.9 | Q27: 673053.99
B28: PREKERJU | C28: PLAN DE RELANCE ETAT LED KERJULAUDE | E28: 110000 | F28: 110000 | G28: 109999.99 | H28: 0 | I28: 0 | J28: 0 | K28: 110000 | L28: 109999.99 | M28: 0 | N28: 0 | O28: 0 | P28: 0.009999999995 | Q28: 0
B29: SACUEREACT | C29: FEDER REHAB ENERGETIQ PAQUEBOT | E29: 1800000 | F29: 100000 | G29: 98148 | H29: 0 | I29: 1700000 | J29: 1700000 | K29: 65000 | L29: 10776 | M29: 0 | N29: 1000000 | O29: 1000000 | P29: 1852 | Q29: 787372
B30: Total Programme pluriannuels d'inv | E30: =SUM(E23:E29) -> 9209381.6 | F30: =SUM(F23:F29) -> 6309381.6 | G30: =SUM(G23:G29) -> 6012426.9 | H30: 0 | I30: 2900000 | J30: 2900000 | K30: =SUM(K23:K29) -> 5220423.86 | L30: =SUM(L23:L29) -> 4341667.71 | M30: 0 | N30: 2653957.74 | O30: 2653957.74 | P30: =SUM(P23:P29) -> 296954.7 | Q30: =SUM(Q23:Q29) -> 1916801.45
B31: Total | E31: =E17+E22+E30 -> 33287886.33 | F31: =F17+F22+F30 -> 18843251.12 | G31: =G17+G22+G30 -> 16281795.31 | H31: 0 | I31: 10069379.5 | J31: 10069379.5 | K31: =K17+K22+K30 -> 17707626.72 | L31: =L17+L22+L30 -> 14244476.34 | M31: 0 | N31: 9870003.9 | O31: 9870003.9 | P31: =P17+P22+P30 -> 6936711.52 | Q31: =Q17+Q22+Q30 -> 2236694.57
B32: Ss total personnel | E32: 14888663.17 | F32: 8091692.2 | G32: 6904467.01 | H32: 0 | I32: 3907484.7 | J32: 3907484.7 | K32: 8091692.2 | L32: 6904467.01 | M32: 0 | N32: 3907484.7 | O32: 3907484.7 | P32: =E32-G32-J32 -> 4076711.46 | Q32: =G32+J32-L32-O32 -> 0
B33: Ss total fonctionnement | E33: 8093017.26 | F33: 3789138.54 | G33: 2823036.35 | H33: 0 | I33: 2929838.92 | J33: 2929838.92 | K33: 3742471.88 | L33: 2484257.96 | M33: 0 | N33: 2976505.58 | O33: 2976505.58 | P33: 2340141.99 | Q33: 292111.73
B34: Ss total investissement | E34: 10306205.9 | F34: 6962420.38 | G34: 6554291.95 | H34: 0 | I34: 3232055.88 | J34: 3232055.88 | K34: 5873462.64 | L34: 4855751.37 | M34: 0 | N34: 2986013.62 | O34: 2986013.62 | P34: 519858.07 | Q34: 1944582.84
B37: B - Recettes
B38: Opérations | E38: Montant de l'opération | F38: Prélèvement sur la trésorerie | G38: Financements extérieurs
G39: Montant | H39: Encaissements < N | I39: Encaissements prévus N | J39: Restes à encaisser > N
B40: PFIRECHSAC | C40: RECH SUBVENTIONS AVEC CONDITIONS | E40: 15170196.06 | F40: =E40-G40 -> -190687.49 | G40: =222394+15138489.55 -> 15360883.55 | H40: =222394+6822511.27 -> 7044905.27 | I40: 5266368.81 | J40: 3049609.47
B41: PFIRECHARE | C41: RECH ALLOCATION DE RECHERCHE DOCTORALE | E41: 2150976.1 | F41: =E41-G41 -> -45397.32 | G41: 2196373.42 | H41: 718339.41 | I41: 549000 | J41: 929034.01
B42: PFIRECHCIF | C42: RECH CONTRATS CIFRE | E42: 401471.01 | F42: -135053.13 | G42: 536524.14 | H42: 383637.66 | I42: 99526.54 | J42: 53359.94
B43: PFIRECHSSC | C43: RECH SUBVENTIONS SANS CONDITIONS | E43: 125879.31 | F43: -11620.69 | G43: 137500 | H43: 50928 | I43: 27500 | J43: 59072
B44: PFIRECHAUT | C44: RECH CONTRATS AUTRES | E44: 232074.09 | F44: -31475.56 | G44: 263549.65 | H44: 46774.33 | I44: 147877.49 | J44: 68897.83
B45: PFIRECHCCR | C45: RECH CONTRATS DE COLLABORATION | E45: 1887276.16 | F45: -259396.87 | G45: 2146673.03 | H45: 924442.45 | I45: 609275.43 | J45: 612955.15
B46: PFIPIAHITR | C46: PIA HIT VOLET RECHERCHE | E46: 864000 | F46: 0 | G46: 864000 | H46: 112800 | I46: 110933 | J46: 640267
B47: Total Contrats de recherche | E47: =SUM(E40:E46) -> 20831872.73 | F47: =SUM(F40:F46) -> -673631.06 | G47: =SUM(G40:G46) -> 21505503.79 | H47: =SUM(H40:H46) -> 9281827.12 | I47: 6810481.27 | J47: 5413195.4
B48: PFIENS0 | C48: CONTRATS D'ENSEIGNEMENT | E48: 1810752 | F48: =E48-G48 -> 0 | G48: 1810752 | H48: 1073054.94 | I48: 206763.7 | J48: 530933.36
B49: PFIPIACOHY | C49: PIA CO-HY-B PLAN DE RELANCE ETAT | E49: 300000 | F49: 0 | G49: 300000 | H49: 0 | I49: 300000 | J49: 0
B50: PFIPIABRIO | C50: PIA BRIO | E50: 862000 | F50: 0 | G50: 862000 | H50: 172400 | I50: 86200 | J50: 603400
B51: PFIANRFORM | C51: ANR PROJET FORMAFLEX | E51: 273880 | F51: 0 | G51: 273880 | H51: 0 | I51: 92862 | J51: 181018
B52: Total Contrats d'enseignement | E52: 3246632 | F52: 0 | G52: 3246632 | H52: 1245454.94 | I52: 685825.7 | J52: 1315351.36
B53: CPERDURAB | C53: CPER 2014-2020 DURABIMAT / IRDL | E53: 1654402.05 | F53: =E53-G53 -> 292023.86 | G53: =134500+1227878.19 -> 1362378.19 | H53: =134500+992092.08 -> 1126592.08 | I53: 127700 | J53: 108086.11
B54: CPERECOSY | C54: CPER 2014-2020 ECOSYS-MER / IRDL | E54: 571809.87 | F54: 16532.1 | G54: =25000+530277.77 -> 555277.77 | H54: =25000+471542.15 -> 496542.15 | I54: 0 | J54: 58735.62
B55: PPICVEC | C55: PPI CVEC | E55: 1340000 | F55: 497703.55 | G55: 842296.45 | H55: 485496.45 | I55: 230200 | J55: 126600
B56: CPERSMDMA | C56: CPER 2014-2020 SMD MAR / LABSTICC | E56: 133169.68 | F56: -3830.32 | G56: 137000 | H56: 117740.44 | I56: 0 | J56: 19259.56
B57: PRECERYC | C57: PLAN DE RELANCE ETAT REHAB CERYC | E57: 3600000 | F57: 0 | G57: 3600000 | H57: 187500 | I57: 900000 | J57: 2512500
B58: PREKERJU | C58: PLAN DE RELANCE ETAT LED KERJULAUDE | E58: 110000 | F58: 0 | G58: 110000 | H58: 110000 | I58: 0 | J58: 0
B59: SACUEREACT | C59: FEDER REHAB ENERGETIQ PAQUEBOT | E59: 1800000 | F59: 0 | G59: 1800000 | H59: 0 | I59: 1000000 | J59: 800000
B60: Total Programme pluriannuels d'inv | E60: =SUM(E53:E59) -> 9209381.6 | F60: =SUM(F53:F59) -> 802429.19 | G60: =SUM(G53:G59) -> 8406952.41 | H60: =SUM(H53:H59) -> 2523871.12 | I60: 2257900 | J60: 3625181.29
B61: Total | E61: =+E47+E52+E60 -> 33287886.33 | F61: =+F47+F52+F60 -> 128798.13 | G61: =+G47+G52+G60 -> 33159088.2 | H61: =+H47+H52+H60 -> 13051153.18 | I61: 9754206.97 | J61: 10353728.05
B74: Différence Dépenses - Recettes | C74: =E31-E61 -> 0
B77: COMMENTAIRES SUR LES TABLEAUX DE SUIVI DES OPÉRATIONS PLURIANNUELLES
B79: 1 | C79: Les opérations sont identifiées par un nom et un millésime ; elles peuvent ne pas être toutes individualisées et faire l'objet de regroupements, un niveau de détail suffisant au regard des caractéristiques de l'établissements devant néanmoins être maintenu ;
B81: 2 | C81: Le degré d'exigence quant à la précision de l'évaluation, au budget initial, des reports prévisibles devra être fonction des contraintes qui pèsent sur les établissements pour établir ce chiffrage, notamment pour les contrats de recherche ;
B83: 3 | C83: En recettes, une ligne sera maintenue, même après la fin d'une opération tant que la totalité des financements extérieurs n'a pas été recouvrée ;
B85: 4 | C85: Pour les contrats de recherche, ne devra être indiquée au titre de l'autofinancement que, le cas échéant, la participation de l'établissement qui doit donner lieu à justification en application du contrat.

Sheet 10-tab_op_pluri_détail_ETAB
C1: Tableau 10 - Université de Bretagne Sud (0561718N) : Etablissement principal + Fondation
C2: ="Tableau détaillé des opérations pluriannuelles et programmation - Budget consolidé "&Maquette!B4&" "&Maquette!B5&" "&Maquette!B3 -> Tableau détaillé des opérations pluriannuelles et programmation - Budget consolidé rectificatif n° 1 2022
G3: Tableaux identiques à ceux présentés au Budget intial 2022 - Une situation actualisée sera présentée au BR2 de novembre 2022
C4: POUR INFORMATION DE L'ORGANE DÉLIBÉRANT
C5: Suivi par opération (ou par regroupement d'opérations) des autorisations d'engagement, des crédits de paiement et des recettes
C7: A - Prévision d'autorisations d'engagement et de crédits de paiement
C8: Prévisions d'AE et de CP | G8: Prévisions | I8: Prévisions N (BI + BR) | W8: Prévisions N+1 et suivantes
C9: Opération | F9: Nature | G9: Coût total de l'opération | I9: AE ouvertes < N | J9: Conso AE < N | K9: Reports ou Reprogrammations N | M9: AE nouvelles ouvertes N | N9: Total AE N | O9: CP ouverts < N | P9: Conso CP < N | R9: Reports ou Reprogrammations N | T9: CP nouveaux ouverts N | U9: Total CP N | W9: AE prévues en N+1 | X9: CP prévus en N+1 | Y9: AE prévues en N+2 | Z9: CP prévus en N+2 | AA9: AE prévues > N+2 | AB9: CP prévus > N+2
C10: Contrats de recherche | F10: Personnel | G10: =118140.29+13484650.59 -> 13602790.88 | I10: =118140.29-276121.48+8034779.1 -> 7876797.91 | J10: =118140.29+6665556.37 -> 6783696.66 | K10: 0 | M10: 3457773.7 | N10: 3457773.7 | O10: =118140.29-276122.02+8034779.64 -> 7876797.91 | P10: =118140.29+6665556.37 -> 6783696.66 | R10: 0 | T10: 3457773.7 | U10: 3457773.7 | W10: 1591275.49 | X10: 1591275.49 | Y10: 528943.78 | Z10: 528943.78 | AA10: 148000 | AB10: 148000
F11: Fonctionnement | G11: =100044.45+6232222.56 -> 6332267.01 | I11: =100044.45-823644.7+4039983.96 -> 3316383.71 | J11: =100044.45+2360779.48 -> 2460823.93 | K11: 0 | M11: 2070971.5 | N11: 2070971.5 | O11: =100044.45-978816.69+4148489.29 -> 3269717.05 | P11: =100044.45+2073115.43 -> 2173159.88 | R11: 0 | T11: 2117638.16 | U11: 2117638.16 | W11: 692135.37 | X11: 692135.37 | Y11: 215756.57 | Z11: 215756.57 | AA11: 37019.86 | AB11: 37019.86
F12: Investissement | G12: 896814.84 | I12: =-69800.39+600779.71 -> 530979.32 | J12: 444826.35 | K12: 0 | M12: 254105.88 | N12: 254105.88 | O12: =-114931.34+645910.66 -> 530979.32 | P12: 417535.75 | R12: 0 | T12: 254105.88 | U12: 254105.88 | W12: 74055.5 | X12: 74055.5 | Y12: 37674.14 | Z12: 37674.14 | AA12: 0 | AB12: 0
C13: Total Contrats de recherche | G13: =SUM(G10:G12) -> 20831872.73 | I13: =SUM(I10:I12) -> 11724160.94 | J13: =SUM(J10:J12) -> 9689346.94 | K13: 0 | M13: 5782851.08 | N13: 5782851.08 | O13: =SUM(O10:O12) -> 11677494.28 | P13: =SUM(P10:Q12) -> 9374392.29 | R13: 0 | T13: 5829517.74 | U13: 5829517.74 | W13: 2357466.36 | X13: 2357466.36 | Y13: 782374.49 | Z13: 782374.49 | AA13: 185019.86 | AB13: 185019.86
C14: Contrats d'enseignement | F14: Personnel | G14: 1285872.29 | I14: =-8827.96+223722.25 -> 214894.29 | J14: 120770.35 | K14: 0 | M14: 449711 | N14: 449711 | O14: =-8827.96+223722.25 -> 214894.29 | P14: 120770.35 | R14: 0 | T14: 449711 | U14: 449711 | W14: 221717 | X14: 221717 | Y14: 63425 | Z14: 63425 | AA14: 336125 | AB14: 336125
F15: Fonctionnement | G15: 1755623.94 | I15: =-56733.26+524361.78 -> 467628.52 | J15: 357086.11 | K15: 0 | M15: 858867.42 | N15: 858867.42 | O15: =-76134.21+543762.73 -> 467628.52 | P15: 305971.77 | R15: 0 | T15: 858867.42 | U15: 858867.42 | W15: 240478 | X15: 240478 | Y15: 22775 | Z15: 22775 | AA15: 165875 | AB15: 165875
F16: Investissement | G16: 205135.77 | I16: =-41311.81+168497.58 -> 127185.77 | J16: 102165.01 | K16: 0 | M16: 77950 | N16: 77950 | O16: =-128861.55+256047.32 -> 127185.77 | P16: 101674.22 | R16: 0 | T16: 77950 | U16: 77950 | W16: 0 | X16: 0 | Y16: 0 | Z16: 0 | AA16: 0 | AB16: 0
C17: Total Contrats d'enseignement | G17: =SUM(G14:G16) -> 3246632 | I17: =SUM(I14:I16) -> 809708.58 | J17: =SUM(J14:J16) -> 580021.47 | K17: 0 | M17: 1386528.42 | N17: 1386528.42 | O17: =SUM(O14:O16) -> 809708.58 | P17: =SUM(P14:Q16) -> 528416.34 | R17: 0 | T17: 1386528.42 | U17: 1386528.42 | W17: 462195 | X17: 462195 | Y17: 86200 | Z17: 86200 | AA17: 502000 | AB17: 502000
C18: Programme pluriannuels d'inv | F18: Personnel | G18: 0 | I18: 0 | J18: 0 | K18: 0 | M18: 0 | N18: 0 | O18: 0 | P18: 0 | R18: 0 | T18: 0 | U18: 0 | W18: 0 | X18: 0 | Y18: 0 | Z18: 0 | AA18: 0 | AB18: 0
F19: Fonctionnement | G19: 5126.31 | I19: 5126.31 | J19: 5126.31 | K19: 0 | M19: 0 | N19: 0 | O19: =-5126.31+10252.62 -> 5126.31 | P19: 5126.31 | R19: 0 | T19: 0 | U19: 0 | W19: 0 | X19: 0 | Y19: 0 | Z19: 0 | AA19: 0 | AB19: 0
F20: Investissement | G20: =389539.34+8814715.95 -> 9204255.29 | I20: =389539.34-649674.92+6564390.87 -> 6304255.29 | J20: =389539.34+5617761.25 -> 6007300.59 | K20: 0 | M20: 2900000 | N20: 2900000 | O20: =389539.36-418919.1+5244677.29 -> 5215297.55 | P20: =389539.36-58239.4+4005241.44 -> 4336541.4 | R20: 0 | T20: 2653957.74 | U20: 2653957.74 | W20: 0 | X20: 1335000 | Y20: 0 | Z20: 0 | AA20: 0 | AB20: 0
C21: Total Programme pluriannuels d'inv | G21: =SUM(G18:G20) -> 9209381.6 | I21: =SUM(I18:I20) -> 6309381.6 | J21: =SUM(J18:J20) -> 6012426.9 | K21: 0 | M21: 2900000 | N21: 2900000 | O21: =SUM(O18:O20) -> 5220423.86 | P21: =SUM(P18:Q20) -> 4341667.71 | R21: 0 | T21: 2653957.74 | U21: 2653957.74 | W21: 0 | X21: 1335000 | Y21: 0 | Z21: 0 | AA21: 0 | AB21: 0
F22: Ss total Personnel | G22: =G10+G14+G18 -> 14888663.17 | I22: =I10+I14+I18 -> 8091692.2 | J22: 6904467.01 | K22: 0 | M22: 3907484.7 | N22: 3907484.7 | O22: =O10+O14+O18 -> 8091692.2 | P22: 6904467.01 | R22: 0 | T22: 3907484.7 | U22: 3907484.7 | W22: 1812992.49 | X22: 1812992.49 | Y22: 592368.78 | Z22: 592368.78 | AA22: 484125 | AB22: 484125
F23: Ss total Fonctionnement | G23: =G11+G15+G19 -> 8093017.26 | I23: 3789138.54 | J23: 2823036.35 | K23: 0 | M23: 2929838.92 | N23: 2929838.92 | O23: 3742471.88 | P23: 2484257.96 | R23: 0 | T23: 2976505.58 | U23: 2976505.58 | W23: 932613.37 | X23: 932613.37 | Y23: 238531.57 | Z23: 238531.57 | AA23: 202894.86 | AB23: 202894.86
F24: Ss total Investissement | G24: =G12+G16+G20 -> 10306205.9 | I24: 6962420.38 | J24: 6554291.95 | K24: 0 | M24: 3232055.88 | N24: 3232055.88 | O24: 5873462.64 | P24: 4855751.37 | R24: 0 | T24: 2986013.62 | U24: 2986013.62 | W24: 74055.5 | X24: 1409055.5 | Y24: 37674.14 | Z24: 37674.14 | AA24: 0 | AB24: 0
C25: TOTAL | G25: =SUM(G22:G24) -> 33287886.33 | I25: =SUM(I22:I24) -> 18843251.12 | J25: =SUM(J22:J24) -> 16281795.31 | K25: 0 | M25: 10069379.5 | N25: 10069379.5 | O25: =SUM(O22:O24) -> 17707626.72 | P25: =SUM(P22:Q24) -> 14244476.34 | R25: 0 | T25: 9870003.9 | U25: 9870003.9 | W25: 2819661.36 | X25: 4154661.36 | Y25: 868574.49 | Z25: 868574.49 | AA25: 687019.86 | AB25: 687019.86
C27: B - Prévisions de recettes
C29: Prévisions de recettes | G29: Prévisions | I29: Prévisions N | L29: Prévisions en N+1 et suivantes
C30: Opération | F30: Nature | G30: Financement de l'opération | I30: Encaissements < N | J30: Encaissements prévus N | L30: Encaissements prévus en N+1 | M30: Encaissements prévus en N+2 | N30: Encaissements prévus > N+2
C31: Contrats de recherche | F31: Financement de l'Etat | G31: 5119934.81 | I31: 1695958.26 | J31: 2061471.6 | L31: 479422.08 | M31: 572356.25 | N31: 476200
F32: Autres financements publics | G32: =222394+12904773.26 -> 13127167.26 | I32: =222394+6054727.64 -> 6277121.64 | J32: 3708445.43 | L32: 1621752.05 | M32: 941162.4 | N32: 556986.8
F33: Autres financements | G33: 3258401.72 | I33: 1308747.22 | J33: 1040564.24 | L33: 489414.79 | M33: 0 | N33: 0
C34: Total Contrats de recherche | G34: =SUM(G31:G33) -> 21505503.79 | I34: =SUM(I31:I33) -> 9281827.12 | J34: 6810481.27 | L34: 2590588.92 | M34: 1513518.65 | N34: 1033186.8
C35: Contrats d'enseignement | F35: Financement de l'Etat | G35: 1338860 | I35: 232400 | J35: 386200 | L35: 86200 | M35: 86200 | N35: 344800
F36: Autres financements publics | G36: 1907772 | I36: 1012955.94 | J36: 299625.7 | L36: 258175.86 | M36: 27388 | N36: 0
F37: Autres financements | G37: 0 | I37: 99 | J37: 0 | L37: 0 | M37: 0 | N37: 0
C38: Total Contrats d'enseignement | G38: =SUM(G35:G37) -> 3246632 | I38: =SUM(I35:I37) -> 1245454.94 | J38: 685825.7 | L38: 344375.86 | M38: 113588 | N38: 344800
C39: Programme pluriannuels d'inv | F39: Financement de l'Etat | G39: =95000+5047296.45 -> 5142296.45 | I39: =95000+1255971.6 -> 1350971.6 | J39: 1130200 | L39: 0 | M39: 0 | N39: 0
F40: Autres financements publics | G40: =64500+3200155.96 -> 3264655.96 | I40: =64500+1131357.38 -> 1195857.38 | J40: 1127700 | L40: 800000 | M40: 0 | N40: 0
F41: Autres financements | G41: 0 | I41: -22957.86 | J41: 0 | L41: 0 | M41: 0 | N41: 0
C42: Total Programme pluriannuels d'inv | G42: =SUM(G39:G41) -> 8406952.41 | I42: =SUM(I39:I41) -> 2523871.12 | J42: 2257900 | L42: 800000 | M42: 0 | N42: 0
F43: Ss total Financement de l'Etat | G43: =G31+G35+G39 -> 11601091.26 | I43: =I31+I35+I39 -> 3279329.86 | J43: 3577871.6 | L43: 565622.08 | M43: 658556.25 | N43: 821000
F44: Ss total Autres financements publics | G44: =G32+G36+G40 -> 18299595.22 | I44: =I32+I36+I40 -> 8485934.96 | J44: 5135771.13 | L44: 2679927.91 | M44: 968550.4 | N44: 556986.8
F45: Ss total Autres financements | G45: =G33+G37+G41 -> 3258401.72 | I45: =I33+I37+I41 -> 1285888.36 | J45: 1040564.24 | L45: 489414.79 | M45: 0 | N45: 0
C46: TOTAL | G46: =SUM(G43:G45) -> 33159088.2 | I46: =SUM(I43:I45) -> 13051153.18 | J46: 9754206.97 | L46: 3734964.78 | M46: 1627106.65 | N46: 1377986.8

Sheet 11-tab_UMR_ETAB
A1: TABLEAU 11 - Université de Bretagne Sud (0561718N) : Etablissement principal + Fondation
A2: ="TABLEAU RETRAÇANT LES MOYENS DES UNITÉS MIXTES DE RECHERCHE - Budget consolidé "&Maquette!B4&" "&Maquette!B5&" "&Maquette!B3 -> TABLEAU RETRAÇANT LES MOYENS DES UNITÉS MIXTES DE RECHERCHE - Budget consolidé rectificatif n° 1 2022
A5: POUR INFORMATION DE L'ORGANE DÉLIBÉRANT
C9: Moyens de l’établissement | E9: Moyens hors budget de l’établissement _2021
E10: CNRS | G10: ENTSA Bretagne | I10: ENIB | K10: ubo
A11: IRDL UMR 6027 | B11: Personnel | C11: 105 | D11: Emplois | E11: 1 | F11: Emplois | G11: 46 | H11: Emplois | I11: 10 | J11: Emplois | K11: 20 | L11: Emplois | N11: Emplois | P11: Emplois | R11: Emplois
B12: Fonctionnement (dotation sur SCSP) | C12: 116500 | E12: 107000 | G12: 102000 | I12: Statut Partenaire pas de dotation affichée | K12: 22000
B13: Investissement (PPI recherche)
C16: Moyens de l’établissement | E16: Moyens hors budget de l’établissement
E17: CNRS | G17: UNIV Rennes 1 | I17: INSA | K17: INRIA
A18: IRISA UMR 6074 | B18: Personnel | C18: 40.5 | D18: Emplois | E18: 54.6 | F18: Emplois | G18: 239.75 | H18: Emplois | I18: 37 | J18: Emplois | K18: 255.4 | L18: Emplois | N18: Emplois | P18: Emplois | R18: Emplois
B19: Fonctionnement (dotation sur SCSP) | C19: 41500 | E19: 230000 | G19: 293191 | I19: 15277 | K19: 342000
B20: Investissement (PPI recherche) | I20: 23223
C23: Moyens de l’établissement | E23: Moyens hors budget de l’établissement
E24: CNRS | G24: ENIB | I24: ENSTA Bretagne | K24: IMT Atlantique | M24: UBO
A25: Lab-STICC UMR 6285 | B25: Personnel | C25: 38.2 | D25: Emplois | E25: 7.9 | F25: Emplois | G25: 26.05 | H25: Emplois | I25: 40 | J25: Emplois | K25: 113.5 | L25: Emplois | M25: 76.45 | N25: Emplois | P25: Emplois | R25: Emplois
B26: Fonctionnement (dotation sur SCSP) | C26: 50500 | E26: 70000 | G26: 52200 | I26: 56000 | K26: 83625 | M26: 91280
B27: Investissement (PPI recherche) | C27: 30000
C30: Moyens de l’établissement | E30: Moyens hors budget de l’établissement
A32: LGO UMR 6538 | B32: Personnel | D32: Emplois | F32: Emplois | H32: Emplois | J32: Emplois | L32: Emplois | N32: Emplois | P32: Emplois | R32: Emplois
B33: Fonctionnement (dotation sur SCSP)
B34: Investissement (PPI recherche)
C37: Moyens de l’établissement | E37: Moyens hors budget de l’établissement
E38: CNRS
A39: LMBA UMR 6205 | B39: Personnel | C39: 2 | D39: Emplois | E39: 0 | F39: Emplois | H39: Emplois | J39: Emplois | L39: Emplois | N39: Emplois | P39: Emplois | R39: Emplois
B40: Fonctionnement (dotation sur SCSP) | C40: 33000 | E40: 12000
B41: Investissement (PPI recherche)
C44: Moyens de l’établissement | E44: Moyens hors budget de l’établissement
E45: Université d'Angers | G45: Le Mans Université | I45: CNRS-INSHS
A46: TEMOS UMR 9016 | B46: Personnel | D46: Emplois | E46: 1.5 | F46: Emplois | G46: 0.5 | H46: Emplois | I46: 2 | J46: Emplois | L46: Emplois | N46: Emplois | P46: Emplois | R46: Emplois
B47: Fonctionnement (dotation sur SCSP) | E47: 33500 | G47: 22200 | I47: 30000
B48: Investissement (PPI recherche)

Sheet Annexe Synthèse_ETAB
A1: ANNEXE 5 - Université de Bretagne Sud (0561718N) : Etablissement principal + Fondation
A2: ="Synthèse budgétaire et comptable - Budget consolidé "&Maquette!B4&" "&Maquette!B5&" "&Maquette!B3 -> Synthèse budgétaire et comptable - Budget consolidé rectificatif n° 1 2022
B4: POUR INFORMATION DE L'ORGANE DÉLIBÉRANT
H6: =IF(Maquette!B4="initial","BI "&Maquette!B5,IF(Maquette!B4="rectificatif","BR "&Maquette!B5,"")) -> BR n° 1
B7: Stocks initiaux | D7: 1 | F7: Niveau initial de restes à payer | H7: 3459160.49
D9: 2 | F9: Niveau initial du fonds de roulement | H9: ='6-tab CR_TF_ETAB'!H49 -> 13746877.81
D10: 3 | F10: Niveau initial du besoin en fonds de roulement | H10: =H9-H11 -> 162438.61
D11: 4 | F11: Niveau initial de la trésorerie | H11: ='6-tab CR_TF_ETAB'!H51 -> 13584439.2
E12: 4.a | F12: dont niveau initial de la trésorerie fléchée | H12: ='8-tab recettes_fléchées_ETAB'!D9 -> 0
E13: 4.b | F13: dont niveau initial de la trésorerie non fléchée | H13: =H11-H12 -> 13584439.2
B15: Flux de l'année | D15: 5 | F15: Autorisations d'engagement | H15: ='2-tab_aut_budg_ETAB'!K28 -> 100576750
D17: 6 | F17: Résultat patrimonial | H17: =IF('6-tab CR_TF_ETAB'!F14>0,'6-tab CR_TF_ETAB'!F14,-'6-tab CR_TF_ETAB'!L14) -> 283524.16
D18: 7 | F18: Capacité d'autofinancement (CAF) | H18: ='6-tab CR_TF_ETAB'!F28 -> 2870067.16
D19: 8 | F19: Variation du fonds de roulement | H19: ='6-tab CR_TF_ETAB'!L46 -> -2576028.4
D21: 9 | E21: 9.a | F21: Opérations bilancielles non budgétaires | G21: SENS | H21: =SUM(H22:H24) -> 0
F22: Nouvel emprunt / remboursement de prêt | G22: + / -
F23: Remboursement d'emprunt / prêt accordé | G23: +
F24: Cautionnements et dépôts | G24: - | H24: ='7-tab Plan_tréso_ETAB'!O22-'7-tab Plan_tréso_ETAB'!O42 -> 0
D26: 10 | E26: 9.a | F26: Opérations comptables non retraitées par la CAF, non budgétaires | G26: SENS | H26: =SUM(H27:H30) -> 0
F27: Variation des stocks | G27: + / -
F28: Production immobilisée | G28: +
F29: Charges sur créances irrécouvrables | G29: -
F30: Produits divers de gestion courante | G30: +
D32: 11 | E32: 9.b | F32: Décalages de flux de trésorerie liés aux opérations budgétaires | G32: SENS | H32: =H34-H36 -> 225805.86
F33: Ecart entre les produits / ressources et les encaissements relatifs à des opérations sur exercices antérieurs | G33: + / -
F34: Ecart entre les produits / ressources et les encaissements relatifs à des opérations de l'exercice en cours | G34: + / - | H34: -88709.05
F35: Ecart entre les charges / immobilisations et les décaissements relatifs à des opérations sur exercices antérieurs | G35: + / -
F36: Ecart entre les charges / immobilisations et les décaissements relatifs à des opérations de l'exercice en cours | G36: + / - | H36: -314514.91
D38: 12 | F38: Solde budgétaire = 8 - 9 - 10 - 11 | H38: =H19-H26-H32-H21 -> -2801834.26
E39: 12.a | F39: Recettes budgétaires | H39: ='2-tab_aut_budg_ETAB'!R28 -> 97824020.69
E40: 12.b | F40: Crédits de paiement ouverts | H40: ='2-tab_aut_budg_ETAB'!L28 -> 100625855
D42: 13 | E42: 9.c | F42: Flux de trésorerie liés aux opérations au nom et pour le compte de tiers | H42: ='4-tab_financier_ETAB'!M20-'4-tab_financier_ETAB'!G20 -> 408205.75
D44: 14 | E44: 9.c | F44: Flux de trésorerie liés aux autres encaissements / décaissements sur comptes de tiers (non budgétaires) | H44: ='4-tab_financier_ETAB'!M22-'4-tab_financier_ETAB'!G22 -> 0
D46: 15 | F46: Variation de la trésorerie = 12 - 13 - 14 | H46: =H38+H42-H44 -> -2393628.51
E47: 15.a | F47: dont variation de la trésorerie fléchée | H47: ='4-tab_financier_ETAB'!G27-'4-tab_financier_ETAB'!M27 -> 1929527
E48: 15.b | F48: dont variation de la trésorerie non fléchée | H48: ='4-tab_financier_ETAB'!G29-'4-tab_financier_ETAB'!M29 -> -4323156.17
D50: 16 | F50: Variation du besoin en fonds de roulement = 9 + 10 + 11 - 13 + 14 | H50: =H26+H32-H42+H21+H44 -> -182399.89
D52: 17 | F52: Restes à payer | H52: =H15-H40 -> -49104.97
B54: Stocks finaux | D54: 18 | F54: Niveau final de restes à payer | H54: =H7+H52 -> 3410055.52
D56: 19 | F56: Niveau final du fonds de roulement | H56: =H9+H19 -> 11170849.41
D57: 20 | F57: Niveau final du besoin en fonds de roulement | H57: =H56-H58 -> -19961.28
D58: 21 | F58: Niveau final de la trésorerie | H58: =H11+H46 -> 11190810.69
E59: 21.a | F59: dont niveau final de la trésorerie fléchée | H59: =H12+H47 -> 1929527
E60: 21.b | F60: dont niveau final de la trésorerie non fléchée | H60: =H13+H48 -> 9261283.03
F62: Comptabilité budgétaire
F63: Comptabilité générale

Sheet Annexe PAA_ETAB
B1: ANNEXE 14 - Université de Bretagne Sud (0561718N) : Etablissement principal + Fondation
B2: Plan d'actions achat - Prévisionnel
B4: Identité du projet | K4: Mutualisation du besoin | P4: Objectif de gain achat | T4: Autres objectifs de politique publique | Y4: Suivi du marché
B5: Code CPV à 2 positions | C5: Niveau le plus fin de votre nomenclature achat | D5: Objet du marché, du marché subséquent ou de l'action de progrès | E5: Type de leviers utilisés indiquer maximum 2 leviers | G5: Date de notification prévisionnelle | H5: Durée du contrat en mois (reconductions comprises) | I5: Volume des achats prévisionnel en euros HT | J5: Renouvellement (R) ou nouveau marché (N) | K5: Marché subséquent d'un accord-cadre (O/N) | L5: Accord-cadre avec des entités extérieures (O/N) voir ci-dessous | M5: Groupement de commande (O/N) voir ci-dessous | N5: Recours à un marché du SAE (O/N) | O5: Recours à une centrale d'achats UGAP/AMUE (O/N) | P5: Performance de l'acheteur en prévisionnel sur la durée totale du marché (en euros HT) | Q5: Pourcentage | R5: Chiffre d'affaires attendu base 12 mois en euros HT | S5: Performance de l'acheteur base 12 mois | T5: Rédaction du contrat adaptée à une PME (O/N) | U5: Projet ouvert à des achats innovants (O/N) | W5: Intégration de clauses environnementales (O/N) voir ci-dessous | X5: Intégration de clauses sociales (O/N) voir ci-dessous | Y5: Points d'attention
U6: oui ou non | V6: si oui indiquer les coordonnées de l'acheteur (nom, prénom, adresse électronique)
B7: 90911200 | C7: BB 11 | D7: Nettoyage locaux ENSIBS Vannes | E7: juste besoin | F7: suivi fournisseur | G7: 2022-12-01 | H7: 48 | J7: R | K7: N | L7: N | M7: N | N7: N | O7: N | T7: N | U7: Non | W7: O | X7: N
B8: 22200000 | C8: CE 11 | D8: Revues périodiques en langue française | E8: juste besoin | F8: suivi fournisseur | G8: 2022-12-01 | H8: 48 | J8: R | K8: N | L8: N | M8: N | N8: N | O8: N | T8: N | U8: Non | W8: N | X8: N
B9: 22200000 | C9: CE 11 | D9: Revues périodiques en langue étrangère | E9: juste besoin | F9: suivi fournisseur | G9: 2022-12-01 | H9: 48 | J9: R | K9: N | L9: N | M9: N | N9: N | O9: N | T9: N | U9: Non | W9: N | X9: N
B10: 30197630 | C10: AC 01 | D10: papier blanc et recyclé | E10: juste besoin | F10: suivi fournisseur | G10: 2022-07-01 | H10: 48 | J10: R | K10: N | L10: N | M10: N | N10: N | O10: N | T10: N | U10: Non | W10: O | X10: N
B11: 30197630 | C11: AC 01 | D11: papier couleur et brouillon | E11: juste besoin | F11: suivi fournisseur | G11: 2022-07-01 | H11: 48 | J11: R | K11: N | L11: N | M11: N | N11: N | O11: N | T11: N | U11: Non | W11: N | X11: N
B12: 63500000 | C12: DC 01 | D12: Fourniture de titres de transport aérien et ferroviaire | E12: juste besoin | F12: suivi fournisseur | G12: 2022-08-01 | H12: 48 | J12: R | K12: N | L12: N | M12: N | N12: N | O12: N | T12: N | U12: Non | W12: N | X12: N
B13: 50750000 | C13: BE 11 | D13: Maintenace des ascenseurs | E13: juste besoin | F13: suivi fournisseur | G13: 2022-12-31 | H13: 48 | J13: R | K13: N | L13: N | M13: N | N13: N | O13: N | T13: N | U13: Non | W13: N | X13: N
B14: 55520000 | C14: CB 21 | D14: Prestations de services ; cocktails | E14: juste besoin | F14: suivi fournisseur | G14: 2022-10-01 | H14: 48 | J14: R | K14: N | L14: N | M14: N | N14: N | O14: N | T14: N | U14: Non | W14: O | X14: N
B15: 55520000 | C15: CB 21 | D15: Prestations de services ; plateaux repas Lorient | E15: juste besoin | F15: suivi fournisseur | G15: 2022-10-01 | H15: 48 | J15: R | K15: N | L15: N | M15: N | N15: N | O15: N | T15: N | U15: Non | W15: O | X15: N
B16: 55520000 | C16: CB 21 | D16: Prestations de services ; plateaux repas Vannes | E16: juste besoin | F16: suivi fournisseur | G16: 2022-10-01 | H16: 48 | J16: R | K16: N | L16: N | M16: N | N16: N | O16: N | T16: N | U16: Non | W16: O | X16: N
R17: =IF(H17<12,I17,(I17/H17)*12) -> 0 | S17: =IF(H17<12,P17,(P17/H17)*12) -> 0
R18: 0 | S18: 0
R19: 0 | S19: 0
R20: 0 | S20: 0
R21: Total :
B22: Pour les procédures portées par l'établissement, accords-cadres comme groupements de commande, merci d'indiquer ici | S22: Objectif : X %
B23: (si porteur de plusieurs accords-cadres ou groupement de commande, remettre l'objet avec le noms des autres parties prenantes) :
C24: noms des établissements parties prenantes à la procédure : | S24: du montant annuel des achats (HT)
B27: Commentaires sur les clauses sociales (freins et accélérateurs à l'intégration de clauses, recrutement de personnel handicapé…) :
B31: Commentaires sur les clauses environnementales (freins et accélérateurs à l'intégration de clauses…) :
B35: Actions de structuration de la fonction achat lancées en N-1 (recrutement d'un référent "développement durable", d'acheteurs experts…)

Sheet Annexe immo_ETAB
B2: ANNEXE 15 - Université de Bretagne Sud (0561718N) : Etablissement principal + Fondation
B3: Annexe immobilière
B5: POUR INFORMATION DE L'ORGANE DÉLIBÉRANT
B8: Opérateur : Université Bretagne Sud | D8: Réunion de l'organe délibérant du 14 décembre 2021 | I8: Commentaires portant sur la stratégie immobilière de l'établissement : (notamment sur l'avancement des opérations prévues dans le SPSI, la levée des réserves de France Domaine ou du CIE, les économies réalisées ou programmées,...)
I9: L'Université a libéré de manière définitive, à l'été 2018, les dernières surfaces qu'elle occupait au sein du bâtiment Pôle de Formations Sanitaires et Sociales (PFSS) à Lorient. L'usage de ce bâtiment de 6135m2 de SHON se répartit désormais exclusivement entre deux utilisateurs tiers (l'IFPS de Lorient et l'organisme de formations Askoria). Pour autant, ce bâtiment propriété de l'État est confié en gestion à l'UBS via les conventions d'utilisation passées avec France-Domaine. N'ayant plus d'intérêt à conserver ce bâtiment, le CA de l'Université a pris une délibération, le 14 décembre 2018, approuvant l'inutilité de ce bien pour l'Établissement. Le Centre Hospitalier Bretagne Sud, dont dépend l'IPFS de Lorient, avait marqué son souhait d'acquérir ce bâtiment. Les services des domaines sont mobilisés en vue de la réalisation de cette cession, mais la situation sanitaire 2020 a ralenti le processus, qui n'est pas encore abouti. Par ailleurs, et dans un contexte de doublement des groupes accueillis sur la filière cyber-défense de l'ENSIBS, des espaces au sein de la délégation de Vannes de la CCI du Morbihan lui sont mises à disposition dans le cadre d'une Convention d'Occupation Temporaire. Ce site est limitrophe du campus de Tohannic. La surface occupée sur l'année universitaire 2020/2021 était de 560m2 pour un coût de 56k€ par an (afin d''y positionner la troisième année de la filière cyber-défense), A la rentrée 2021/2022, une surface complémentaire de 326m2 est occupée pour accueillir les étudiants de seconde année de cette même filière. Le coût global de cette occupation passe ainsi à hauteur de 90k€. Il est à souligner que le site de la délégation vannetaise de la CCI a été racheté par Golfe du Morbihan - Vannes Agglomération, en novembre 2021, dans le cadre de la réalisation du projet de pôle numérique de Vannes prévu au CPER 2021-2027. Les conditions d'utilisation de ces espaces sont à redéfinir en lien avec la Collectivité, une fois cette cession opérée. En termes de travaux structurants, l'opération de réhabilitation de l'IUT de Lorient inscrite au CPER2015-2020 avait débuté en 2018 par la réfection complète de l'étanchéité et de l'isolation des toitures-terrasses du bâtiment HSE. Elle s'est poursuivie et achevée sur l'année universitaire 2019/2020 par la réhabilitation énergétique et gros-entretien de ce même bâtiment, ainsi que la rénovation des toitures-terrasses du bâtiment GIM. De même, ont été terminés sur l'exercice 2020 les travaux de réhabilitation du bâtiment ENSIBS de Vannes, eux-aussi inscrits au CPER 2015-2020. Ainsi, à fin 2020, l'ensemble des opérations bâtimentaires du CPER 2015-2020 confiées en maîtrise d'ouvrage à l'UBS était achevé. L'année 2021 est, pour sa part, fortement structurée autour de la réalisation des opérations d'amélioration de la performance énergétique lauréates du plan de relance de l'économie déployé par l'Etat. Dans ce cadre, l'UBS a obtenu une dotation globale de 3,860 M€ se répartissant entre : - la réhabilitation énergétique du bâtiment Coppens à Vannes, pour un montant de 3,750M€. Les travaux, qui seront pour plus de la moitié terminés fin 2021, portent sur l'isolation thermique par l'extérieur des façades, le remplacement des menuiseries extérieures, le reprise de l'isolation des toitures, le remplacement des chaudières, la mise en place d'une installation de production d'électricité photovoltaïque en toiture, ainsi que la migration Led des éclairages. - la migration Led des éclairages des bâtiments Sciences 2 et Kerjulaude à Lorient, accomplie au premier semestre 2021, pour un montant total de 110 k€. L'année 2021 est également marquée par le lancement des études de réhabilitation énergétique du bâtiment Paquebot à Lorient, qui bénéficie de financements européens du programme React-EU à hauteur de 1,8M€. Les travaux sont prévus sur 2022. Après études de faisabilité orientant le projet d'aménagement d'espaces de sport, vie étudiante et culturelle vers l'ancien gymnase de Kerjulaude, ce projet sera mené sur 2022, intégrant un transfert de propriété de ce site appartenant à Lorient-Agglomération vers l'UBS. Cette opération mobilise pour partie des crédits CVEC. Enfin, le projet de SPSI portant sur la période 2021/2025 a été adressé aux entités ayant à formuler un avis avant approbation de ce Schéma Directeur, D'un point de vue des dépenses de fonctionnement, 2021 connait des niveaux normalement t rencontrés les années antérieures, après un exercice 2020 en décrue du fait de la pandémie Covid. Une vigilance particulière concernera le budget de fonctionnement 2022 à l'aune de la forte hausse actuelle des prix de l'électricité et du gaz (ce poste représentant, avant les actuelles augmentation conjoncturelles, une charge de l'ordre de 1M€ par an).
E10: exécution (année 2020) | F10: dernier BR (année 2021)
B11: Données physiques
B12: Nombre de bâtiments occupés | D12: X | E12: 22 | F12: 22
B13: dont biens propres | D13: X | E13: 1 | F13: 1
B14: dont biens domaniaux | D14: X | E14: 21 | F14: 21
B15: dont prises à bail | D15: X | E15: 0 | F15: 0
B16: dont autres mises à disposition (ex. : collectivités territoriales) | D16: X | E16: 0 | F16: 0
B17: Surface totale occupée (m² - SUB) | D17: X | E17: 96151 | F17: 96151
B18: dont biens propres | D18: X | E18: 934 | F18: 934
B19: dont biens domaniaux | D19: X | E19: 94657 | F19: 94657
B20: dont prises à bail | D20: X
B21: dont autres mises à disposition (ex. : collectivités territoriales) | D21: X | E21: 560 | F21: 886
B22: Ratio m² SUN / poste de travail (*) | D22: X
D25: classe de compte (n°) | E25: exécution (N-1) | F25: dernier BR (N)
B26: Dépenses de fonctionnement à l'€ près
B27: Redevances de crédit-bail immobilier (*) | D27: 6125 | E27: 0 | F27: 0
B28: Locations immobilières (*) | D28: 6132 | E28: 79975 | F28: 72922
B29: Entretien et réparations sur biens immobiliers (*) | D29: 6152 | E29: 319213 | F29: 230246
B31: Dépenses d'acquisition à l'€ près
B32: Acquisition de biens propres ou de biens domaniaux | D32: X | E32: 1264500 | F32: 0
B34: Dépenses d'investissement à l'€ près
B35: Réalisation de travaux structurants sur les biens propres ou domaniaux | D35: X | E35: 2229570 | F35: 4185150.25
B37: Produits de cession d'immobilisations corporelles à l'€ près
B38: dont biens propres | D38: 7752 | E38: 0 | F38: 0
B39: dont biens domaniaux | D39: 7752 | E39: 0 | F39: 0
B40: (*) Les données sont disponibles à la saisie dans le système d'informations des opérateurs de l'Etat (SI OPE)
